BIOGUIDE_ID,OFFICE,QUARTER,CATEGORY,DATE,PAYEE,START DATE,END DATE,PURPOSE,AMOUNT,YEAR,TRANSCODE,TRANSCODELONG,RECORDID,RECIP (orig.)
,OFFICE OF THE SPEAKER,2016Q3,SUPPLIES AND MATERIALS,09-20,CITI PCARD-SWEET LEILANI FLORIST,07/29/16,08/28/16,HABITATION EXPENSE,403.14,2016,AP,Accounts payable,00881022,CITI PCARD-SWEET LEILANI FLORIST
,OFFICE OF THE SPEAKER,2016Q3,PERSONNEL COMPENSATION,"","ALTHOUSE,JOSHUA S",07/01/16,09/30/16,CONSERV COALITION OUTREACH COR,"19,166.67",2016,"","","","ALTHOUSE,JOSHUA S"
,OFFICE OF THE SPEAKER,2016Q3,PERSONNEL COMPENSATION,"","ANDRES,DOUGLAS R",07/01/16,09/30/16,PRESS SECRETARY,"26,666.67",2016,"","","","ANDRES,DOUGLAS R"
,OFFICE OF THE SPEAKER,2016Q3,PERSONNEL COMPENSATION,"","ANDREWS,THOMAS S",07/01/16,09/30/16,MEMBER SERVICES COORDINATOR,"22,916.67",2016,"","","","ANDREWS,THOMAS S"
,OFFICE OF THE SPEAKER,2016Q3,PERSONNEL COMPENSATION,"","ANTELL,GEOFFREY",07/01/16,09/30/16,ASST TO THE SPEAKER FOR POLICY,"38,750.00",2016,"","","","ANTELL,GEOFFREY"
,OFFICE OF THE SPEAKER,2016Q3,PERSONNEL COMPENSATION,"","BENJAMIN, WILLIAM C",07/01/16,09/30/16,DIR OF INFORMATION TECHNOLOGY,"24,500.01",2016,"","","","BENJAMIN, WILLIAM C"
,OFFICE OF THE SPEAKER,2016Q3,PERSONNEL COMPENSATION,"","BLAKE,KRISTENE",07/01/16,09/30/16,DIR OF ADMIN OPERATIONS,"32,916.66",2016,"","","","BLAKE,KRISTENE"
,OFFICE OF THE SPEAKER,2016Q3,PERSONNEL COMPENSATION,"","BLANKENSHIP, APRIL L",07/01/16,09/30/16,FINANCIAL ADMINISTRATOR,"6,000.00",2016,"","","","BLANKENSHIP, APRIL L"
,OFFICE OF THE SPEAKER,2016Q3,PERSONNEL COMPENSATION,"","BOLDUC, BRIAN J",07/01/16,09/30/16,DIRECTOR OF SPEECHWRITING,"26,666.67",2016,"","","","BOLDUC, BRIAN J"
,OFFICE OF THE SPEAKER,2016Q3,PERSONNEL COMPENSATION,"","BRADBURY, ANNE B",07/01/16,09/30/16,FLOOR DIRECTOR,"43,125.00",2016,"","","","BRADBURY, ANNE B"
,OFFICE OF THE SPEAKER,2016Q3,PERSONNEL COMPENSATION,"","BROWN,MARYAM S",07/01/16,09/09/16,ASST TO SPEAKER FOR POLICY,"32,200.00",2016,"","","","BROWN,MARYAM S"
,OFFICE OF THE SPEAKER,2016Q3,PERSONNEL COMPENSATION,"","BROWN,MARYAM S",09/01/16,09/09/16,ASST TO SPEAKER FOR POLICY (OTHER COMPENSATION),"7,000.00",2016,"","","","BROWN,MARYAM S"
,OFFICE OF THE SPEAKER,2016Q3,PERSONNEL COMPENSATION,"","BUCK,BRENDAN K",07/01/16,09/30/16,CHIEF ADV ON COMMUNICATIONS,"43,125.00",2016,"","","","BUCK,BRENDAN K"
,OFFICE OF THE SPEAKER,2016Q3,PERSONNEL COMPENSATION,"","BURKS,JONATHAN",07/01/16,09/30/16,ASST TO SPEAKER FOR POLICY,"32,828.76",2016,"","","","BURKS,JONATHAN"
,OFFICE OF THE SPEAKER,2016Q3,PERSONNEL COMPENSATION,"","CALLAS,GEORGE A",07/01/16,09/30/16,CHIEF TAX COUNSEL,"42,674.01",2016,"","","","CALLAS,GEORGE A"
,OFFICE OF THE SPEAKER,2016Q3,PERSONNEL COMPENSATION,"","CASTINE,PETER L",07/01/16,09/30/16,STAFF ASSISTANT,"8,847.22",2016,"","","","CASTINE,PETER L"
,OFFICE OF THE SPEAKER,2016Q3,PERSONNEL COMPENSATION,"","CASTINE,PETER L",06/01/16,07/31/16,STAFF ASSISTANT (OVERTIME),454.32,2016,"","","","CASTINE,PETER L"
,OFFICE OF THE SPEAKER,2016Q3,PERSONNEL COMPENSATION,"","COYLE,SARAH M",07/01/16,09/30/16,FLOOR ASSISTANT,"11,666.67",2016,"","","","COYLE,SARAH M"
,OFFICE OF THE SPEAKER,2016Q3,PERSONNEL COMPENSATION,"","CRAVEN, KELLY F",07/01/16,09/30/16,DIRECTOR OF HOUSE OPERATIONS,"43,125.00",2016,"","","","CRAVEN, KELLY F"
,OFFICE OF THE SPEAKER,2016Q3,PERSONNEL COMPENSATION,"","DAY,VANESSA",07/01/16,07/31/16,SENIOR COMMUNICATIONS ADVISOR,"8,750.00",2016,"","","","DAY,VANESSA"
,OFFICE OF THE SPEAKER,2016Q3,PERSONNEL COMPENSATION,"","DIXON, KELLY A",07/01/16,09/30/16,SHARED EMPLOYEE,"24,999.99",2016,"","","","DIXON, KELLY A"
,OFFICE OF THE SPEAKER,2016Q3,PERSONNEL COMPENSATION,"","DOCKERY,DERRICK D",07/01/16,09/30/16,BUSINESS/STATE GOV OUTREACH CO,"19,166.67",2016,"","","","DOCKERY,DERRICK D"
,OFFICE OF THE SPEAKER,2016Q3,PERSONNEL COMPENSATION,"","EASBY-SMITH,ANNE S",07/01/16,09/30/16,SPECIAL EVENTS COORDINATOR,"22,916.67",2016,"","","","EASBY-SMITH,ANNE S"
,OFFICE OF THE SPEAKER,2016Q3,PERSONNEL COMPENSATION,"","EDWARDS,SPENCER M",07/01/16,09/30/16,DEPUTY PRESS SECRETARY,"14,999.99",2016,"","","","EDWARDS,SPENCER M"
,OFFICE OF THE SPEAKER,2016Q3,PERSONNEL COMPENSATION,"","EICHHORN, JARED D",07/01/16,09/30/16,CLOAKROOM DIRECTOR,"23,333.33",2016,"","","","EICHHORN, JARED D"
,OFFICE OF THE SPEAKER,2016Q3,PERSONNEL COMPENSATION,"","EPLEY,MARK D",07/01/16,09/30/16,GENERAL COUNSEL/OVERSIGHT,"43,125.00",2016,"","","","EPLEY,MARK D"
,OFFICE OF THE SPEAKER,2016Q3,PERSONNEL COMPENSATION,"","FOLTZ,DEVON N",07/01/16,08/31/16,COUNSEL,"20,000.00",2016,"","","","FOLTZ,DEVON N"
,OFFICE OF THE SPEAKER,2016Q3,PERSONNEL COMPENSATION,"","FOLTZ,DEVON N",09/01/16,09/30/16,COUNSEL FOR FLOOR OPERATIONS,"11,666.67",2016,"","","","FOLTZ,DEVON N"
,OFFICE OF THE SPEAKER,2016Q3,PERSONNEL COMPENSATION,"","GEFFERT,REBEKAH L",07/01/16,09/30/16,STAFF ASSISTANT,"9,166.67",2016,"","","","GEFFERT,REBEKAH L"
,OFFICE OF THE SPEAKER,2016Q3,PERSONNEL COMPENSATION,"","GEFFERT,REBEKAH L",06/01/16,07/31/16,STAFF ASSISTANT (OVERTIME),201.92,2016,"","","","GEFFERT,REBEKAH L"
,OFFICE OF THE SPEAKER,2016Q3,PERSONNEL COMPENSATION,"","GILLESPIE,JAMES M",07/01/16,09/30/16,CLERICAL TECHNICAN,"9,583.34",2016,"","","","GILLESPIE,JAMES M"
,OFFICE OF THE SPEAKER,2016Q3,PERSONNEL COMPENSATION,"","GILLESPIE,JAMES M",06/01/16,07/31/16,CLERICAL TECHNICAN (OVERTIME),113.58,2016,"","","","GILLESPIE,JAMES M"
,OFFICE OF THE SPEAKER,2016Q3,PERSONNEL COMPENSATION,"","GOLDOUST,CARAH S",07/01/16,09/30/16,STAFF ASSISTANT,"9,166.67",2016,"","","","GOLDOUST,CARAH S"
,OFFICE OF THE SPEAKER,2016Q3,PERSONNEL COMPENSATION,"","GOLDOUST,CARAH S",06/01/16,07/31/16,STAFF ASSISTANT (OVERTIME),580.52,2016,"","","","GOLDOUST,CARAH S"
,OFFICE OF THE SPEAKER,2016Q3,PERSONNEL COMPENSATION,"","HERRLE, CYNTHIA A",07/01/16,09/30/16,ASST TO THE SPEAKER FOR POLICY,"42,000.00",2016,"","","","HERRLE, CYNTHIA A"
,OFFICE OF THE SPEAKER,2016Q3,PERSONNEL COMPENSATION,"","HIGGINS,CASEY",07/01/16,09/30/16,ASSIST TO SPEAKER FOR POLICY,"34,034.59",2016,"","","","HIGGINS,CASEY"
,OFFICE OF THE SPEAKER,2016Q3,PERSONNEL COMPENSATION,"","HOFFMANN, MATTHEW",07/01/16,09/30/16,ASSIST TO SPEAKER FOR POLICY,"39,034.59",2016,"","","","HOFFMANN, MATTHEW"
,OFFICE OF THE SPEAKER,2016Q3,PERSONNEL COMPENSATION,"","HOPPE,JOHN D",07/01/16,09/30/16,CHIEF OF STAFF,"43,125.00",2016,"","","","HOPPE,JOHN D"
,OFFICE OF THE SPEAKER,2016Q3,PERSONNEL COMPENSATION,"","HUSTON,JOHNATHON B",07/01/16,09/30/16,SHARED EMPLOYEE,"11,250.00",2016,"","","","HUSTON,JOHNATHON B"
,OFFICE OF THE SPEAKER,2016Q3,PERSONNEL COMPENSATION,"","JORDON,BENJAMIN D",07/01/16,09/30/16,STAFF ASSISTANT,"9,166.67",2016,"","","","JORDON,BENJAMIN D"
,OFFICE OF THE SPEAKER,2016Q3,PERSONNEL COMPENSATION,"","JORDON,BENJAMIN D",06/01/16,07/31/16,STAFF ASSISTANT (OVERTIME),252.40,2016,"","","","JORDON,BENJAMIN D"
,OFFICE OF THE SPEAKER,2016Q3,PERSONNEL COMPENSATION,"","KISH, DANIEL V",09/19/16,09/30/16,ASSIST TO SPEAKER FOR POLICY,"5,600.00",2016,"","","","KISH, DANIEL V"
,OFFICE OF THE SPEAKER,2016Q3,PERSONNEL COMPENSATION,"","LEOPOLD,PATRICK R",07/01/16,09/30/16,SHARED EMPLOYEE,"24,999.99",2016,"","","","LEOPOLD,PATRICK R"
,OFFICE OF THE SPEAKER,2016Q3,PERSONNEL COMPENSATION,"","MACDONALD, BRIAN C",07/01/16,09/30/16,SHARED EMPLOYEE,"24,999.99",2016,"","","","MACDONALD, BRIAN C"
,OFFICE OF THE SPEAKER,2016Q3,PERSONNEL COMPENSATION,"","MATTHEWS,TITUS V",07/01/16,09/30/16,STAFF ASSISTANT,"9,041.67",2016,"","","","MATTHEWS,TITUS V"
,OFFICE OF THE SPEAKER,2016Q3,PERSONNEL COMPENSATION,"","MATTHEWS,TITUS V",06/01/16,07/31/16,STAFF ASSISTANT (OVERTIME),416.46,2016,"","","","MATTHEWS,TITUS V"
,OFFICE OF THE SPEAKER,2016Q3,PERSONNEL COMPENSATION,"","MCCALLIE,CARLY L",07/01/16,09/30/16,ASSOCIATE COUNSEL,"14,166.66",2016,"","","","MCCALLIE,CARLY L"
,OFFICE OF THE SPEAKER,2016Q3,PERSONNEL COMPENSATION,"","MCCANN, EDWARD D",07/01/16,09/30/16,ASSIST TO SPEAKER FOR POLICY,"39,166.67",2016,"","","","MCCANN, EDWARD D"
,OFFICE OF THE SPEAKER,2016Q3,PERSONNEL COMPENSATION,"","MEYER, JOYCE Y",07/01/16,09/30/16,DEPUTY CHIEF OF STAFF,"43,125.00",2016,"","","","MEYER, JOYCE Y"
,OFFICE OF THE SPEAKER,2016Q3,PERSONNEL COMPENSATION,"","MILLER,WILLIAM",07/01/16,09/30/16,SPECIAL ASSISTANT TO THE SPEAK,"15,833.33",2016,"","","","MILLER,WILLIAM"
,OFFICE OF THE SPEAKER,2016Q3,PERSONNEL COMPENSATION,"","MINKLER,ANN W",07/01/16,09/30/16,FLOOR ASSISTANT,"17,083.34",2016,"","","","MINKLER,ANN W"
,OFFICE OF THE SPEAKER,2016Q3,PERSONNEL COMPENSATION,"","MITCHELL,MAUREEN E",07/01/16,09/30/16,DIRECTOR OF SCHEDULING,"29,583.34",2016,"","","","MITCHELL,MAUREEN E"
,OFFICE OF THE SPEAKER,2016Q3,PERSONNEL COMPENSATION,"","O'TOOLE,RYAN T",07/01/16,09/30/16,FLOOR ASSISTANT,"10,250.00",2016,"","","","O'TOOLE,RYAN T"
,OFFICE OF THE SPEAKER,2016Q3,PERSONNEL COMPENSATION,"","POINTER,KATHERINE C",07/01/16,09/30/16,SENIOR STAFF ASSISTANT,"11,583.33",2016,"","","","POINTER,KATHERINE C"
,OFFICE OF THE SPEAKER,2016Q3,PERSONNEL COMPENSATION,"","POINTER,KATHERINE C",06/01/16,07/31/16,SENIOR STAFF ASSISTANT (OVERTIME),817.78,2016,"","","","POINTER,KATHERINE C"
,OFFICE OF THE SPEAKER,2016Q3,PERSONNEL COMPENSATION,"","RENZ, BRANDON",07/01/16,09/30/16,SHARED EMPLOYEE,"24,999.99",2016,"","","","RENZ, BRANDON"
,OFFICE OF THE SPEAKER,2016Q3,PERSONNEL COMPENSATION,"","RICCI,MICHAEL",07/01/16,09/30/16,DIRECTOR OF COMMUNICATIONS,"41,500.00",2016,"","","","RICCI,MICHAEL"
,OFFICE OF THE SPEAKER,2016Q3,PERSONNEL COMPENSATION,"","SAGER,MICHAEL J",07/01/16,09/30/16,SYSTEMS ADMINISTRATOR,"21,249.99",2016,"","","","SAGER,MICHAEL J"
,OFFICE OF THE SPEAKER,2016Q3,PERSONNEL COMPENSATION,"","SHAPIRO, MICHAEL I",07/01/16,09/30/16,COMMUNICATIONS ADVISOR,"18,333.33",2016,"","","","SHAPIRO, MICHAEL I"
,OFFICE OF THE SPEAKER,2016Q3,PERSONNEL COMPENSATION,"","SLINGSBY, JULIA K",07/01/16,09/30/16,DEPUTY COMMUNICATIONS DIRECTOR,"25,416.66",2016,"","","","SLINGSBY, JULIA K"
,OFFICE OF THE SPEAKER,2016Q3,PERSONNEL COMPENSATION,"","SMITH, CALEB J",07/01/16,09/30/16,DIGITAL COMMUNICATIONS DIRECTO,"31,666.67",2016,"","","","SMITH, CALEB J"
,OFFICE OF THE SPEAKER,2016Q3,PERSONNEL COMPENSATION,"","SMYTHE,AUGUSTINE",07/01/16,09/30/16,POLICY DIRECTOR,"43,125.00",2016,"","","","SMYTHE,AUGUSTINE"
,OFFICE OF THE SPEAKER,2016Q3,PERSONNEL COMPENSATION,"","STRONG,ASHLEE A",07/01/16,09/30/16,PRESS SECRETARY,"37,916.67",2016,"","","","STRONG,ASHLEE A"
,OFFICE OF THE SPEAKER,2016Q3,PERSONNEL COMPENSATION,"","STRUNK, LYDIA",07/01/16,09/30/16,DEPUTY FLOOR DIRECTOR,"29,583.33",2016,"","","","STRUNK, LYDIA"
,OFFICE OF THE SPEAKER,2016Q3,PERSONNEL COMPENSATION,"","SWINEHART,SARAH V",07/01/16,09/30/16,DIRECTOR OF MEDIA AFFAIRS,"26,666.67",2016,"","","","SWINEHART,SARAH V"
,OFFICE OF THE SPEAKER,2016Q3,PERSONNEL COMPENSATION,"","VREEBURG,JACOBUS A",07/01/16,09/30/16,SHARED EMPLOYEE,"20,000.01",2016,"","","","VREEBURG,JACOBUS A"
,OFFICE OF THE SPEAKER,2016Q3,PERSONNEL COMPENSATION,"","WICKISER,VICTORIA H",07/01/16,09/30/16,DEPUTY DIRECTOR OF SCHEDULING,"19,166.67",2016,"","","","WICKISER,VICTORIA H"
,OFFICE OF THE SPEAKER,2016Q3,PERSONNEL COMPENSATION,"","ZULKOSKY,ERIC T",07/01/16,09/30/16,SHARED EMPLOYEE,"24,999.99",2016,"","","","ZULKOSKY,ERIC T"
,OFFICE OF THE SPEAKER,2016Q3,TRAVEL,07-19,"BLAKE, KRISTENE",06/20/16,06/20/16,TAXI/PARKING/TOLLS,24.23,2016,AP,Accounts payable,E0423429,"BLAKE, KRISTENE"
,OFFICE OF THE SPEAKER,2016Q3,TRAVEL,07-19,"BURKS, JONATHAN",05/04/16,06/10/16,TAXI/PARKING/TOLLS,69.77,2016,AP,Accounts payable,E0423432,"BURKS, JONATHAN"
,OFFICE OF THE SPEAKER,2016Q3,TRAVEL,07-19,"SWINEHART,SARAH V",07/12/16,07/13/16,COMMERCIAL TRANSPORTATION,378.00,2016,AP,Accounts payable,E0423472,"SWINEHART,SARAH V"
,OFFICE OF THE SPEAKER,2016Q3,TRAVEL,07-19,"SWINEHART,SARAH V",07/12/16,07/13/16,LODGING,530.21,2016,AP,Accounts payable,E0423472,"SWINEHART,SARAH V"
,OFFICE OF THE SPEAKER,2016Q3,TRAVEL,07-19,"SWINEHART,SARAH V",07/12/16,07/13/16,MEALS,37.99,2016,AP,Accounts payable,E0423472,"SWINEHART,SARAH V"
,OFFICE OF THE SPEAKER,2016Q3,TRAVEL,07-19,"SWINEHART,SARAH V",07/12/16,07/13/16,TAXI/PARKING/TOLLS,23.51,2016,AP,Accounts payable,E0423472,"SWINEHART,SARAH V"
,OFFICE OF THE SPEAKER,2016Q3,TRAVEL,07-20,"SMITH, CALEB",07/12/16,07/13/16,COMMERCIAL TRANSPORTATION,254.00,2016,AP,Accounts payable,E0423927,"SMITH, CALEB"
,OFFICE OF THE SPEAKER,2016Q3,TRAVEL,07-20,"SMITH, CALEB",07/12/16,07/13/16,LODGING,289.23,2016,AP,Accounts payable,E0423927,"SMITH, CALEB"
,OFFICE OF THE SPEAKER,2016Q3,TRAVEL,07-20,"SMITH, CALEB",07/12/16,07/13/16,MEALS,19.48,2016,AP,Accounts payable,E0423927,"SMITH, CALEB"
,OFFICE OF THE SPEAKER,2016Q3,TRAVEL,07-20,"SMITH, CALEB",07/12/16,07/13/16,TAXI/PARKING/TOLLS,16.75,2016,AP,Accounts payable,E0423927,"SMITH, CALEB"
,OFFICE OF THE SPEAKER,2016Q3,TRAVEL,07-23,"ALTHOUSE, JOSHUA",07/06/16,07/06/16,TAXI/PARKING/TOLLS,17.02,2016,AP,Accounts payable,E0425130,"ALTHOUSE, JOSHUA"
,OFFICE OF THE SPEAKER,2016Q3,TRAVEL,08-17,"EASBY-SMITH, ANNE S",08/01/16,08/05/16,LODGING,901.60,2016,AP,Accounts payable,E0432652,"EASBY-SMITH, ANNE S"
,OFFICE OF THE SPEAKER,2016Q3,TRAVEL,08-17,"EASBY-SMITH, ANNE S",08/01/16,08/05/16,MEALS,31.02,2016,AP,Accounts payable,E0432652,"EASBY-SMITH, ANNE S"
,OFFICE OF THE SPEAKER,2016Q3,TRAVEL,08-17,"EASBY-SMITH, ANNE S",08/01/16,08/01/16,TAXI/PARKING/TOLLS,59.88,2016,AP,Accounts payable,E0432652,"EASBY-SMITH, ANNE S"
,OFFICE OF THE SPEAKER,2016Q3,TRAVEL,08-26,"GOLDOUST, CARAH S",08/01/16,08/05/16,COMMERCIAL TRANSPORTATION,265.20,2016,AP,Accounts payable,E0434970,"GOLDOUST, CARAH S"
,OFFICE OF THE SPEAKER,2016Q3,TRAVEL,08-26,"GOLDOUST, CARAH S",08/01/16,08/05/16,TAXI/PARKING/TOLLS,47.87,2016,AP,Accounts payable,E0434970,"GOLDOUST, CARAH S"
,OFFICE OF THE SPEAKER,2016Q3,TRAVEL,08-31,"EASBY-SMITH, ANNE S",08/01/16,08/05/16,COMMERCIAL TRANSPORTATION,295.20,2016,AP,Accounts payable,E0437118,"EASBY-SMITH, ANNE S"
,OFFICE OF THE SPEAKER,2016Q3,TRAVEL,09-27,"SWINEHART,SARAH V",09/18/16,09/19/16,COMMERCIAL TRANSPORTATION,322.00,2016,AP,Accounts payable,E0444478,"SWINEHART,SARAH V"
,OFFICE OF THE SPEAKER,2016Q3,TRAVEL,09-27,"SWINEHART,SARAH V",09/18/16,09/19/16,MEALS,22.85,2016,AP,Accounts payable,E0444478,"SWINEHART,SARAH V"
,OFFICE OF THE SPEAKER,2016Q3,TRAVEL,09-27,"SWINEHART,SARAH V",09/18/16,09/19/16,TAXI/PARKING/TOLLS,18.70,2016,AP,Accounts payable,E0444478,"SWINEHART,SARAH V"
,OFFICE OF THE SPEAKER,2016Q3,TRAVEL,09-27,"SWINEHART,SARAH V",09/18/16,09/19/16,LODGING,410.87,2016,AP,Accounts payable,E0445019,"SWINEHART,SARAH V"
,OFFICE OF THE SPEAKER,2016Q3,TRAVEL,09-27,"SWINEHART,SARAH V",09/19/16,09/19/16,MEALS,12.70,2016,AP,Accounts payable,E0445019,"SWINEHART,SARAH V"
,OFFICE OF THE SPEAKER,2016Q3,TRAVEL,09-30,"SMITH, CALEB",09/19/16,09/19/16,COMMERCIAL TRANSPORTATION,333.00,2016,AP,Accounts payable,E0446492,"SMITH, CALEB"
,OFFICE OF THE SPEAKER,2016Q3,TRAVEL,09-30,"SMITH, CALEB",09/19/16,09/19/16,MEALS,23.62,2016,AP,Accounts payable,E0446492,"SMITH, CALEB"
,OFFICE OF THE SPEAKER,2016Q3,TRAVEL,09-30,"SMITH, CALEB",09/19/16,09/19/16,TAXI/PARKING/TOLLS,63.74,2016,AP,Accounts payable,E0446492,"SMITH, CALEB"
,OFFICE OF THE SPEAKER,2016Q3,"RENT, COMMUNICATION, UTILITIES",07-15,AMARYLLIS INC,07/04/16,07/04/16,TEMPORARY SPACE RENTAL,"1,200.00",2016,AP,Accounts payable,E0421606,AMARYLLIS INC
,OFFICE OF THE SPEAKER,2016Q3,"RENT, COMMUNICATION, UTILITIES",07-18,AMARYLLIS INC,07/04/16,07/04/16,TEMPORARY SPACE RENTAL,"-1,200.00",2016,AP,Accounts payable,00868128,AMARYLLIS INC
,OFFICE OF THE SPEAKER,2016Q3,"RENT, COMMUNICATION, UTILITIES",07-19,FEDEX,06/27/16,06/27/16,POSTAGE / COURIER / BOX RENTAL,67.40,2016,AP,Accounts payable,E0423427,FEDEX
,OFFICE OF THE SPEAKER,2016Q3,"RENT, COMMUNICATION, UTILITIES",09-27,"SWINEHART,SARAH V",09/19/16,09/19/16,UTILITIES,23.13,2016,AP,Accounts payable,E0444478,"SWINEHART,SARAH V"
,OFFICE OF THE SPEAKER,2016Q3,"RENT, COMMUNICATION, UTILITIES",09-29,FEDEX,09/08/16,09/08/16,POSTAGE / COURIER / BOX RENTAL,7.00,2016,AP,Accounts payable,E0445657,FEDEX
,OFFICE OF THE SPEAKER,2016Q3,PRINTING AND REPRODUCTION,07-28,"",07/01/16,07/31/16,PHOTOGRAPHIC (TRANSFER),67.00,2016,GL,General ledger,PIX0060456,""
,OFFICE OF THE SPEAKER,2016Q3,PRINTING AND REPRODUCTION,08-29,ACCURATE WORD LLC,08/19/16,08/19/16,PRINTING & REPRODUCTION,69.95,2016,AP,Accounts payable,E0436414,ACCURATE WORD LLC
,OFFICE OF THE SPEAKER,2016Q3,PRINTING AND REPRODUCTION,09-09,ACCURATE WORD LLC,08/19/16,08/19/16,PRINTING & REPRODUCTION,-69.95,2016,AP,Accounts payable,00876767,ACCURATE WORD LLC
,OFFICE OF THE SPEAKER,2016Q3,PRINTING AND REPRODUCTION,09-26,"",09/01/16,09/30/16,PHOTOGRAPHIC (TRANSFER),204.00,2016,GL,General ledger,PIX0062004,""
,OFFICE OF THE SPEAKER,2016Q3,OTHER SERVICES,07-28,NJI MEDIA LLC,04/26/16,06/10/16,"WEB DEV HST,EMAIL & RLTD SERV","16,126.25",2016,AP,Accounts payable,00871063,NJI MEDIA LLC
,OFFICE OF THE SPEAKER,2016Q3,OTHER SERVICES,08-18,CITI PCARD-PROTOCOL & DIPLOMACY,06/28/16,07/28/16,TRAINING,890.00,2016,AP,Accounts payable,00875846,CITI PCARD-PROTOCOL & DIPLOMACY
,OFFICE OF THE SPEAKER,2016Q3,OTHER SERVICES,08-26,"GOLDOUST, CARAH S",08/01/16,08/05/16,TRAINING,865.00,2016,AP,Accounts payable,E0434970,"GOLDOUST, CARAH S"
,OFFICE OF THE SPEAKER,2016Q3,SUPPLIES AND MATERIALS,07-05,FIRST CHOICE COFFEE SERVICES,06/24/16,06/24/16,FOOD & BEVERAGE,664.08,2016,AP,Accounts payable,E0418435,FIRST CHOICE COFFEE SERVICES
,OFFICE OF THE SPEAKER,2016Q3,SUPPLIES AND MATERIALS,07-07,FIRST CHOICE COFFEE SERVICES,07/01/16,07/01/16,FOOD & BEVERAGE,833.68,2016,AP,Accounts payable,E0419456,FIRST CHOICE COFFEE SERVICES
,OFFICE OF THE SPEAKER,2016Q3,SUPPLIES AND MATERIALS,07-07,COCA-COLA BOTTLING COMPANY CONSOLIDATED,07/01/16,07/01/16,FOOD & BEVERAGE,120.00,2016,AP,Accounts payable,E0419458,COCA-COLA BOTTLING COMPANY CONSOLIDATED
,OFFICE OF THE SPEAKER,2016Q3,SUPPLIES AND MATERIALS,07-08,"GOLDOUST, CARAH S",06/16/16,06/16/16,FOOD & BEVERAGE,46.15,2016,AP,Accounts payable,E0419888,"GOLDOUST, CARAH S"
,OFFICE OF THE SPEAKER,2016Q3,SUPPLIES AND MATERIALS,07-11,FIRST CHOICE COFFEE SERVICES,06/17/16,06/17/16,FOOD & BEVERAGE,"1,242.55",2016,AP,Accounts payable,E0420722,FIRST CHOICE COFFEE SERVICES
,OFFICE OF THE SPEAKER,2016Q3,SUPPLIES AND MATERIALS,07-18,AMARYLLIS INC,07/04/16,07/04/16,HABITATION EXPENSE,"1,200.00",2016,AP,Accounts payable,00868128,AMARYLLIS INC
,OFFICE OF THE SPEAKER,2016Q3,SUPPLIES AND MATERIALS,07-19,CITI PCARD-CHILI'S,05/29/16,06/28/16,FOOD & BEVERAGE,557.06,2016,AP,Accounts payable,00868192,CITI PCARD-CHILI'S
,OFFICE OF THE SPEAKER,2016Q3,SUPPLIES AND MATERIALS,07-19,CITI PCARD-CHIPOTLE,05/29/16,06/28/16,FOOD & BEVERAGE,330.00,2016,AP,Accounts payable,00868192,CITI PCARD-CHIPOTLE
,OFFICE OF THE SPEAKER,2016Q3,SUPPLIES AND MATERIALS,07-19,CITI PCARD-DT,05/29/16,06/28/16,FOOD & BEVERAGE,309.76,2016,AP,Accounts payable,00868192,CITI PCARD-DT
,OFFICE OF THE SPEAKER,2016Q3,SUPPLIES AND MATERIALS,07-19,CITI PCARD-NANDOS OF THE YARDS,05/29/16,06/28/16,FOOD & BEVERAGE,192.72,2016,AP,Accounts payable,00868192,CITI PCARD-NANDOS OF THE YARDS
,OFFICE OF THE SPEAKER,2016Q3,SUPPLIES AND MATERIALS,07-19,CITI PCARD-PRET A MANGER,05/29/16,06/28/16,FOOD & BEVERAGE,72.56,2016,AP,Accounts payable,00868192,CITI PCARD-PRET A MANGER
,OFFICE OF THE SPEAKER,2016Q3,SUPPLIES AND MATERIALS,07-23,"VREEBURG, JACOBUS A",05/07/16,07/07/16,FOOD & BEVERAGE,186.94,2016,AP,Accounts payable,E0425128,"VREEBURG, JACOBUS A"
,OFFICE OF THE SPEAKER,2016Q3,SUPPLIES AND MATERIALS,07-25,OCCASIONS CATERERS INC,07/15/16,07/15/16,FOOD & BEVERAGE,"7,020.00",2016,AP,Accounts payable,E0425129,OCCASIONS CATERERS INC
,OFFICE OF THE SPEAKER,2016Q3,SUPPLIES AND MATERIALS,07-26,FIRST CHOICE COFFEE SERVICES,07/11/16,07/11/16,FOOD & BEVERAGE,38.95,2016,AP,Accounts payable,E0426326,FIRST CHOICE COFFEE SERVICES
,OFFICE OF THE SPEAKER,2016Q3,SUPPLIES AND MATERIALS,07-26,COCA-COLA BOTTLING COMPANY CONSOLIDATED,07/19/16,07/19/16,FOOD & BEVERAGE,163.68,2016,AP,Accounts payable,E0426327,COCA-COLA BOTTLING COMPANY CONSOLIDATED
,OFFICE OF THE SPEAKER,2016Q3,SUPPLIES AND MATERIALS,07-26,FIRST CHOICE COFFEE SERVICES,07/14/16,07/14/16,FOOD & BEVERAGE,"1,229.43",2016,AP,Accounts payable,E0426328,FIRST CHOICE COFFEE SERVICES
,OFFICE OF THE SPEAKER,2016Q3,SUPPLIES AND MATERIALS,08-03,FIRST CHOICE COFFEE SERVICES,07/11/16,07/11/16,FOOD & BEVERAGE,423.51,2016,AP,Accounts payable,E0428328,FIRST CHOICE COFFEE SERVICES
,OFFICE OF THE SPEAKER,2016Q3,SUPPLIES AND MATERIALS,08-08,FIRST CHOICE COFFEE SERVICES,08/04/16,08/04/16,FOOD & BEVERAGE,159.64,2016,AP,Accounts payable,E0430166,FIRST CHOICE COFFEE SERVICES
,OFFICE OF THE SPEAKER,2016Q3,SUPPLIES AND MATERIALS,08-08,FIRST CHOICE COFFEE SERVICES,07/29/16,07/29/16,FOOD & BEVERAGE,394.77,2016,AP,Accounts payable,E0430167,FIRST CHOICE COFFEE SERVICES
,OFFICE OF THE SPEAKER,2016Q3,SUPPLIES AND MATERIALS,08-09,BOISE CASCADE COMPANY,07/15/16,07/15/16,OFFICE SUPPLIES (OUTSIDE),11.58,2016,AP,Accounts payable,00871547,BOISE CASCADE COMPANY
,OFFICE OF THE SPEAKER,2016Q3,SUPPLIES AND MATERIALS,08-10,"EASBY-SMITH, ANNE S",07/06/16,07/06/16,FOOD & BEVERAGE,60.93,2016,AP,Accounts payable,E0430169,"EASBY-SMITH, ANNE S"
,OFFICE OF THE SPEAKER,2016Q3,SUPPLIES AND MATERIALS,08-15,CITIBANK P CARD,01/03/16,01/28/16,SOFTWARE LESS THAN $500,-158.59,2016,AP,Accounts payable,00871803,CITIBANK P CARD
,OFFICE OF THE SPEAKER,2016Q3,SUPPLIES AND MATERIALS,08-16,FIRST CHOICE COFFEE SERVICES,05/27/16,05/27/16,FOOD & BEVERAGE,883.78,2016,AP,Accounts payable,E0431852,FIRST CHOICE COFFEE SERVICES
,OFFICE OF THE SPEAKER,2016Q3,SUPPLIES AND MATERIALS,08-18,CITI PCARD-AMAZON.COM,06/28/16,07/28/16,PUBLICATIONS/REFERENCE MAT'L,29.85,2016,AP,Accounts payable,00875846,CITI PCARD-AMAZON.COM
,OFFICE OF THE SPEAKER,2016Q3,SUPPLIES AND MATERIALS,08-18,CITI PCARD-BUCA DI BEPPO-WASHINGT,06/28/16,07/28/16,FOOD & BEVERAGE,209.96,2016,AP,Accounts payable,00875846,CITI PCARD-BUCA DI BEPPO-WASHINGT
,OFFICE OF THE SPEAKER,2016Q3,SUPPLIES AND MATERIALS,08-18,CITI PCARD-CAFE RIO MEXICAN GRILL,06/28/16,07/28/16,FOOD & BEVERAGE,285.67,2016,AP,Accounts payable,00875846,CITI PCARD-CAFE RIO MEXICAN GRILL
,OFFICE OF THE SPEAKER,2016Q3,SUPPLIES AND MATERIALS,08-18,CITI PCARD-CHIPOTLE,06/28/16,07/28/16,FOOD & BEVERAGE,343.75,2016,AP,Accounts payable,00875846,CITI PCARD-CHIPOTLE
,OFFICE OF THE SPEAKER,2016Q3,SUPPLIES AND MATERIALS,08-18,CITI PCARD-PAPA JOHN'S,06/28/16,07/28/16,FOOD & BEVERAGE,997.70,2016,AP,Accounts payable,00875846,CITI PCARD-PAPA JOHN'S
,OFFICE OF THE SPEAKER,2016Q3,SUPPLIES AND MATERIALS,08-18,CITI PCARD-SANPHAN THAI CUISINE,06/28/16,07/28/16,FOOD & BEVERAGE,183.70,2016,AP,Accounts payable,00875846,CITI PCARD-SANPHAN THAI CUISINE
,OFFICE OF THE SPEAKER,2016Q3,SUPPLIES AND MATERIALS,08-18,DESIGN CUISINE,05/25/16,05/25/16,FOOD & BEVERAGE,"4,641.58",2016,AP,Accounts payable,E0432649,DESIGN CUISINE
,OFFICE OF THE SPEAKER,2016Q3,SUPPLIES AND MATERIALS,08-18,DESIGN CUISINE,06/08/16,06/08/16,FOOD & BEVERAGE,"2,160.00",2016,AP,Accounts payable,E0433023,DESIGN CUISINE
,OFFICE OF THE SPEAKER,2016Q3,SUPPLIES AND MATERIALS,08-23,FIRST CHOICE COFFEE SERVICES,08/09/16,08/09/16,FOOD & BEVERAGE,603.65,2016,AP,Accounts payable,E0434457,FIRST CHOICE COFFEE SERVICES
,OFFICE OF THE SPEAKER,2016Q3,SUPPLIES AND MATERIALS,08-24,COCA-COLA BOTTLING COMPANY CONSOLIDATED,08/12/16,08/12/16,FOOD & BEVERAGE,132.00,2016,AP,Accounts payable,E0434456,COCA-COLA BOTTLING COMPANY CONSOLIDATED
,OFFICE OF THE SPEAKER,2016Q3,SUPPLIES AND MATERIALS,08-26,DESIGN CUISINE,05/29/16,05/29/16,FOOD & BEVERAGE,"12,459.81",2016,AP,Accounts payable,E0432647,DESIGN CUISINE
,OFFICE OF THE SPEAKER,2016Q3,SUPPLIES AND MATERIALS,08-29,"BLANKENSHIP, APRIL L",02/24/16,02/24/16,OFFICE SUPPLIES (OUTSIDE),-2.12,2016,AP,Accounts payable,00876177,"BLANKENSHIP, APRIL L"
,OFFICE OF THE SPEAKER,2016Q3,SUPPLIES AND MATERIALS,08-29,BOISE CASCADE COMPANY,07/15/16,07/15/16,OFFICE SUPPLIES (OUTSIDE),-11.58,2016,AP,Accounts payable,00876178,BOISE CASCADE COMPANY
,OFFICE OF THE SPEAKER,2016Q3,SUPPLIES AND MATERIALS,08-30,FIRST CHOICE COFFEE SERVICES,08/26/16,08/26/16,FOOD & BEVERAGE,168.45,2016,AP,Accounts payable,E0436412,FIRST CHOICE COFFEE SERVICES
,OFFICE OF THE SPEAKER,2016Q3,SUPPLIES AND MATERIALS,08-31,DESIGN CUISINE,07/04/16,07/04/16,FOOD & BEVERAGE,"16,800.27",2016,AP,Accounts payable,E0432648,DESIGN CUISINE
,OFFICE OF THE SPEAKER,2016Q3,SUPPLIES AND MATERIALS,09-02,COCA-COLA BOTTLING COMPANY CONSOLIDATED,06/21/16,06/21/16,FOOD & BEVERAGE,144.00,2016,AP,Accounts payable,E0437129,COCA-COLA BOTTLING COMPANY CONSOLIDATED
,OFFICE OF THE SPEAKER,2016Q3,SUPPLIES AND MATERIALS,09-13,FIRST CHOICE COFFEE SERVICES,09/02/16,09/02/16,FOOD & BEVERAGE,902.63,2016,AP,Accounts payable,E0439485,FIRST CHOICE COFFEE SERVICES
,OFFICE OF THE SPEAKER,2016Q3,SUPPLIES AND MATERIALS,09-14,CITIBANK P CARD,01/29/16,02/28/16,SOFTWARE LESS THAN $500,-197.59,2016,AP,Accounts payable,00876912,CITIBANK P CARD
,OFFICE OF THE SPEAKER,2016Q3,SUPPLIES AND MATERIALS,09-15,FIRST CHOICE COFFEE SERVICES,09/09/16,09/09/16,FOOD & BEVERAGE,212.46,2016,AP,Accounts payable,E0441252,FIRST CHOICE COFFEE SERVICES
,OFFICE OF THE SPEAKER,2016Q3,SUPPLIES AND MATERIALS,09-15,FIRST CHOICE COFFEE SERVICES,09/09/16,09/09/16,FOOD & BEVERAGE,231.40,2016,AP,Accounts payable,E0441253,FIRST CHOICE COFFEE SERVICES
,OFFICE OF THE SPEAKER,2016Q3,SUPPLIES AND MATERIALS,09-15,FIRST CHOICE COFFEE SERVICES,09/01/16,09/01/16,FOOD & BEVERAGE,231.40,2016,AP,Accounts payable,E0441254,FIRST CHOICE COFFEE SERVICES
,OFFICE OF THE SPEAKER,2016Q3,SUPPLIES AND MATERIALS,09-19,AMARYLLIS INC,09/07/16,09/07/16,HABITATION EXPENSE,"1,000.00",2016,AP,Accounts payable,E0441255,AMARYLLIS INC
,OFFICE OF THE SPEAKER,2016Q3,SUPPLIES AND MATERIALS,09-21,BOISE CASCADE COMPANY,09/09/16,09/09/16,OFFICE SUPPLIES (OUTSIDE),25.67,2016,AP,Accounts payable,00881009,BOISE CASCADE COMPANY
,OFFICE OF THE SPEAKER,2016Q3,SUPPLIES AND MATERIALS,09-26,"EASBY-SMITH, ANNE S",09/16/16,09/16/16,FOOD & BEVERAGE,20.05,2016,AP,Accounts payable,E0444068,"EASBY-SMITH, ANNE S"
,OFFICE OF THE SPEAKER,2016Q3,SUPPLIES AND MATERIALS,09-26,FIRST CHOICE COFFEE SERVICES,09/15/16,09/15/16,FOOD & BEVERAGE,"1,068.62",2016,AP,Accounts payable,E0445018,FIRST CHOICE COFFEE SERVICES
,OFFICE OF THE SPEAKER,2016Q3,SUPPLIES AND MATERIALS,09-27,COCA-COLA BOTTLING COMPANY CONSOLIDATED,09/19/16,09/19/16,FOOD & BEVERAGE,225.84,2016,AP,Accounts payable,E0445016,COCA-COLA BOTTLING COMPANY CONSOLIDATED
,OFFICE OF THE SPEAKER,2016Q3,SUPPLIES AND MATERIALS,09-28,DESIGN CUISINE,09/07/16,09/07/16,FOOD & BEVERAGE,"11,793.14",2016,AP,Accounts payable,E0444067,DESIGN CUISINE
,OFFICE OF THE SPEAKER,2016Q3,SUPPLIES AND MATERIALS,09-29,"MATTHEWS, TITUS V",09/08/16,09/08/16,PUBLICATIONS/REFERENCE MAT'L,23.00,2016,AP,Accounts payable,E0445477,"MATTHEWS, TITUS V"
,OFFICE OF THE SPEAKER,2016Q3,EQUIPMENT,08-15,CITIBANK P CARD,03/01/16,03/28/16,"COMPUTER SOFTW PURCH LESS THAN $10,000",-148.03,2016,AP,Accounts payable,00871802,CITIBANK P CARD
,OFFICE OF THE SPEAKER,2016Q3,SUPPLIES AND MATERIALS,07-19,"BLAKE, KRISTENE",11/18/15,11/18/15,FOOD & BEVERAGE,58.22,2015,AP,Accounts payable,E0423428,"BLAKE, KRISTENE"
,OFFICE OF THE MAJORITY LEADER,2016Q3,PERSONNEL COMPENSATION,"","BERRY,TIMOTHY J",07/01/16,09/30/16,CHIEF OF STAFF,"43,125.00",2016,"","","","BERRY,TIMOTHY J"
,OFFICE OF THE MAJORITY LEADER,2016Q3,PERSONNEL COMPENSATION,"","BIEN,CHRISTOPHER A",07/01/16,09/30/16,FLOOR ASSISTANT,"10,750.00",2016,"","","","BIEN,CHRISTOPHER A"
,OFFICE OF THE MAJORITY LEADER,2016Q3,PERSONNEL COMPENSATION,"","BUCHANAN,NATALIE L",07/01/16,09/30/16,DIR OF MEMBER SERVICES,"31,500.00",2016,"","","","BUCHANAN,NATALIE L"
,OFFICE OF THE MAJORITY LEADER,2016Q3,PERSONNEL COMPENSATION,"","BURR,DANIELLE M",07/01/16,09/30/16,DIRECTOR OF EXTERNAL AFFAIRS,"37,500.00",2016,"","","","BURR,DANIELLE M"
,OFFICE OF THE MAJORITY LEADER,2016Q3,PERSONNEL COMPENSATION,"","DIXON, KELLY A",07/01/16,09/30/16,DIR OF LEGISLATIVE OPERATIONS,"5,250.00",2016,"","","","DIXON, KELLY A"
,OFFICE OF THE MAJORITY LEADER,2016Q3,PERSONNEL COMPENSATION,"","DRESSLER,JEFFREY A",07/01/16,09/30/16,SENIOR POLICY ADVISOR,"26,250.00",2016,"","","","DRESSLER,JEFFREY A"
,OFFICE OF THE MAJORITY LEADER,2016Q3,PERSONNEL COMPENSATION,"","DUNHAM,WILL",07/01/16,09/30/16,POLICY DIRECTOR,"36,000.00",2016,"","","","DUNHAM,WILL"
,OFFICE OF THE MAJORITY LEADER,2016Q3,PERSONNEL COMPENSATION,"","FLORIO,JOHN A",07/01/16,09/30/16,SHARED EMPLOYEE,"15,000.00",2016,"","","","FLORIO,JOHN A"
,OFFICE OF THE MAJORITY LEADER,2016Q3,PERSONNEL COMPENSATION,"","GERZOF,DEVIN A",07/01/16,09/30/16,STAFF ASSISTANT,"7,500.00",2016,"","","","GERZOF,DEVIN A"
,OFFICE OF THE MAJORITY LEADER,2016Q3,PERSONNEL COMPENSATION,"","GOURDIKIAN,ALEXANDRA G",07/01/16,09/30/16,SCHEDULER,"7,500.00",2016,"","","","GOURDIKIAN,ALEXANDRA G"
,OFFICE OF THE MAJORITY LEADER,2016Q3,PERSONNEL COMPENSATION,"","HILL,PRESTON W",07/01/16,09/30/16,SPECIAL ASSISTANT,"10,000.00",2016,"","","","HILL,PRESTON W"
,OFFICE OF THE MAJORITY LEADER,2016Q3,PERSONNEL COMPENSATION,"","HOWARD,BENJAMIN R",07/01/16,09/30/16,DIRECTOR OF FLOOR OPERATIONS,"27,250.00",2016,"","","","HOWARD,BENJAMIN R"
,OFFICE OF THE MAJORITY LEADER,2016Q3,PERSONNEL COMPENSATION,"","KARR,ELIZABETH B",07/01/16,09/30/16,DEPUTY CHIEF OF STAFF FOR POLI,"42,750.00",2016,"","","","KARR,ELIZABETH B"
,OFFICE OF THE MAJORITY LEADER,2016Q3,PERSONNEL COMPENSATION,"","KELLOGG,MATTHEW B",07/01/16,09/30/16,SR POLICY ADVISOR & COUNSEL,"25,500.00",2016,"","","","KELLOGG,MATTHEW B"
,OFFICE OF THE MAJORITY LEADER,2016Q3,PERSONNEL COMPENSATION,"","LEGANSKI,JOHN G",07/01/16,09/30/16,DEPUTY DIRECTOR OF FLOOR OPERA,"15,250.00",2016,"","","","LEGANSKI,JOHN G"
,OFFICE OF THE MAJORITY LEADER,2016Q3,PERSONNEL COMPENSATION,"","LIRA,MATHEW L",07/01/16,09/30/16,SENIOR ADVISOR,"27,000.00",2016,"","","","LIRA,MATHEW L"
,OFFICE OF THE MAJORITY LEADER,2016Q3,PERSONNEL COMPENSATION,"","LONG,MICHAEL P",07/01/16,09/30/16,COMMUNICATIONS DIRECTOR,"26,250.00",2016,"","","","LONG,MICHAEL P"
,OFFICE OF THE MAJORITY LEADER,2016Q3,PERSONNEL COMPENSATION,"","MAHAN,ROGER A",07/01/16,09/30/16,SENIOR POLICY ADVISOR,"32,250.00",2016,"","","","MAHAN,ROGER A"
,OFFICE OF THE MAJORITY LEADER,2016Q3,PERSONNEL COMPENSATION,"","MEYER,KATHERINE R",07/01/16,09/30/16,SENIOR POLICY ADVISOR,"31,500.00",2016,"","","","MEYER,KATHERINE R"
,OFFICE OF THE MAJORITY LEADER,2016Q3,PERSONNEL COMPENSATION,"","MIN, JAMES B",07/01/16,09/30/16,DEPUTY CHIEF OF STAFF/COUNSEL,"23,250.00",2016,"","","","MIN, JAMES B"
,OFFICE OF THE MAJORITY LEADER,2016Q3,PERSONNEL COMPENSATION,"","PETERSON,SAGE E",07/01/16,09/30/16,SENIOR STAFF ASSISTANT,"9,000.00",2016,"","","","PETERSON,SAGE E"
,OFFICE OF THE MAJORITY LEADER,2016Q3,PERSONNEL COMPENSATION,"","SPARKS, MATTHEW E",07/01/16,09/30/16,PRESS SECRETARY,"13,500.00",2016,"","","","SPARKS, MATTHEW E"
,OFFICE OF THE MAJORITY LEADER,2016Q3,PERSONNEL COMPENSATION,"","STIPICEVIC, KRISTIN",07/01/16,09/30/16,EXECUTIVE ASSISTANT,"12,750.00",2016,"","","","STIPICEVIC, KRISTIN"
,OFFICE OF THE MAJORITY LEADER,2016Q3,PERSONNEL COMPENSATION,"","TORRES,ALEC C",07/01/16,09/30/16,COMM ADVISOR & SPEECHWRITER,"13,500.00",2016,"","","","TORRES,ALEC C"
,OFFICE OF THE MAJORITY LEADER,2016Q3,"RENT, COMMUNICATION, UTILITIES",07-19,CITI PCARD-USPS,05/29/16,06/28/16,POSTAGE / COURIER / BOX RENTAL,335.45,2016,AP,Accounts payable,00868192,CITI PCARD-USPS
,OFFICE OF THE MAJORITY LEADER,2016Q3,"RENT, COMMUNICATION, UTILITIES",08-18,CITI PCARD-USPS,06/28/16,07/28/16,POSTAGE / COURIER / BOX RENTAL,94.00,2016,AP,Accounts payable,00875846,CITI PCARD-USPS
,OFFICE OF THE MAJORITY LEADER,2016Q3,PRINTING AND REPRODUCTION,07-08,ACCURATE WORD LLC,06/30/16,06/30/16,PRINTING & REPRODUCTION,458.00,2016,AP,Accounts payable,E0420544,ACCURATE WORD LLC
,OFFICE OF THE MAJORITY LEADER,2016Q3,PRINTING AND REPRODUCTION,07-28,"",07/01/16,07/31/16,PHOTOGRAPHIC (TRANSFER),38.40,2016,GL,General ledger,PIX0060456,""
,OFFICE OF THE MAJORITY LEADER,2016Q3,OTHER SERVICES,07-28,OUTLAW MEDIA LLC,03/01/16,04/30/16,"WEB DEV HST,EMAIL & RLTD SERV","-2,250.00",2016,AP,Accounts payable,00871060,OUTLAW MEDIA LLC
,OFFICE OF THE MAJORITY LEADER,2016Q3,SUPPLIES AND MATERIALS,07-11,"MIN, JAMES B",06/20/16,06/20/16,FOOD & BEVERAGE,456.34,2016,AP,Accounts payable,E0420522,"MIN, JAMES B"
,OFFICE OF THE MAJORITY LEADER,2016Q3,SUPPLIES AND MATERIALS,07-12,READYREFRESH BY NESTLE,05/27/16,06/26/16,WATER,639.09,2016,AP,Accounts payable,E0420905,READYREFRESH BY NESTLE
,OFFICE OF THE MAJORITY LEADER,2016Q3,SUPPLIES AND MATERIALS,07-19,CITI PCARD-CAPITOL HOST,05/29/16,06/28/16,FOOD & BEVERAGE,"1,306.69",2016,AP,Accounts payable,00868192,CITI PCARD-CAPITOL HOST
,OFFICE OF THE MAJORITY LEADER,2016Q3,SUPPLIES AND MATERIALS,07-19,CITI PCARD-CORNER BAKERY,05/29/16,06/28/16,FOOD & BEVERAGE,349.67,2016,AP,Accounts payable,00868192,CITI PCARD-CORNER BAKERY
,OFFICE OF THE MAJORITY LEADER,2016Q3,SUPPLIES AND MATERIALS,07-19,CITI PCARD-D J WALL-ST-JOURNAL,05/29/16,06/28/16,PUBLICATIONS/REFERENCE MAT'L,61.31,2016,AP,Accounts payable,00868192,CITI PCARD-D J WALL-ST-JOURNAL
,OFFICE OF THE MAJORITY LEADER,2016Q3,SUPPLIES AND MATERIALS,07-19,CITI PCARD-FTP FINANCIAL TIMES,05/29/16,06/28/16,PUBLICATIONS/REFERENCE MAT'L,53.00,2016,AP,Accounts payable,00868192,CITI PCARD-FTP FINANCIAL TIMES
,OFFICE OF THE MAJORITY LEADER,2016Q3,SUPPLIES AND MATERIALS,07-19,CITI PCARD-NEW YORK TIMES DIGITAL,05/29/16,06/28/16,PUBLICATIONS/REFERENCE MAT'L,74.02,2016,AP,Accounts payable,00868192,CITI PCARD-NEW YORK TIMES DIGITAL
,OFFICE OF THE MAJORITY LEADER,2016Q3,SUPPLIES AND MATERIALS,07-19,CITI PCARD-THEINFORMATION.COM,05/29/16,06/28/16,PUBLICATIONS/REFERENCE MAT'L,39.00,2016,AP,Accounts payable,00868192,CITI PCARD-THEINFORMATION.COM
,OFFICE OF THE MAJORITY LEADER,2016Q3,SUPPLIES AND MATERIALS,07-23,DEER PARK,06/30/16,06/30/16,WATER,203.69,2016,AP,Accounts payable,00870713,DEER PARK
,OFFICE OF THE MAJORITY LEADER,2016Q3,SUPPLIES AND MATERIALS,08-03,"MIN, JAMES B",07/15/16,07/15/16,FOOD & BEVERAGE,613.07,2016,AP,Accounts payable,E0428102,"MIN, JAMES B"
,OFFICE OF THE MAJORITY LEADER,2016Q3,SUPPLIES AND MATERIALS,08-16,READYREFRESH BY NESTLE,07/05/16,07/26/16,WATER,501.50,2016,AP,Accounts payable,E0432530,READYREFRESH BY NESTLE
,OFFICE OF THE MAJORITY LEADER,2016Q3,SUPPLIES AND MATERIALS,08-18,CITI PCARD-CORNER BAKERY,06/28/16,07/28/16,FOOD & BEVERAGE,295.00,2016,AP,Accounts payable,00875846,CITI PCARD-CORNER BAKERY
,OFFICE OF THE MAJORITY LEADER,2016Q3,SUPPLIES AND MATERIALS,08-18,CITI PCARD-D J WALL-ST-JOURNAL,06/28/16,07/28/16,PUBLICATIONS/REFERENCE MAT'L,30.66,2016,AP,Accounts payable,00875846,CITI PCARD-D J WALL-ST-JOURNAL
,OFFICE OF THE MAJORITY LEADER,2016Q3,SUPPLIES AND MATERIALS,08-18,CITI PCARD-FIRST CHOICE - JOE RAG,06/28/16,07/28/16,FOOD & BEVERAGE,"1,368.47",2016,AP,Accounts payable,00875846,CITI PCARD-FIRST CHOICE - JOE RAG
,OFFICE OF THE MAJORITY LEADER,2016Q3,SUPPLIES AND MATERIALS,08-18,CITI PCARD-FTP FINANCIAL TIMES,06/28/16,07/28/16,PUBLICATIONS/REFERENCE MAT'L,53.00,2016,AP,Accounts payable,00875846,CITI PCARD-FTP FINANCIAL TIMES
,OFFICE OF THE MAJORITY LEADER,2016Q3,SUPPLIES AND MATERIALS,08-18,CITI PCARD-NEW YORK TIMES DIGITAL,06/28/16,07/28/16,PUBLICATIONS/REFERENCE MAT'L,37.01,2016,AP,Accounts payable,00875846,CITI PCARD-NEW YORK TIMES DIGITAL
,OFFICE OF THE MAJORITY LEADER,2016Q3,SUPPLIES AND MATERIALS,08-18,CITI PCARD-THEINFORMATION.COM,06/28/16,07/28/16,PUBLICATIONS/REFERENCE MAT'L,39.00,2016,AP,Accounts payable,00875846,CITI PCARD-THEINFORMATION.COM
,OFFICE OF THE MAJORITY LEADER,2016Q3,SUPPLIES AND MATERIALS,08-30,DEER PARK,07/31/16,07/31/16,WATER,256.70,2016,AP,Accounts payable,00876129,DEER PARK
,OFFICE OF THE MAJORITY LEADER,2016Q3,SUPPLIES AND MATERIALS,09-15,READYREFRESH BY NESTLE,07/27/16,08/26/16,WATER,217.61,2016,AP,Accounts payable,E0440863,READYREFRESH BY NESTLE
,OFFICE OF THE MAJORITY LEADER,2016Q3,SUPPLIES AND MATERIALS,09-20,CITI PCARD-D J WALL-ST-JOURNAL,07/29/16,08/28/16,PUBLICATIONS/REFERENCE MAT'L,30.66,2016,AP,Accounts payable,00881022,CITI PCARD-D J WALL-ST-JOURNAL
,OFFICE OF THE MAJORITY LEADER,2016Q3,SUPPLIES AND MATERIALS,09-20,CITI PCARD-FIRST CHOICE COFFEE SE,07/29/16,08/28/16,FOOD & BEVERAGE,"1,063.28",2016,AP,Accounts payable,00881022,CITI PCARD-FIRST CHOICE COFFEE SE
,OFFICE OF THE MAJORITY LEADER,2016Q3,SUPPLIES AND MATERIALS,09-20,CITI PCARD-FTP FINANCIAL TIMES,07/29/16,08/28/16,PUBLICATIONS/REFERENCE MAT'L,53.00,2016,AP,Accounts payable,00881022,CITI PCARD-FTP FINANCIAL TIMES
,OFFICE OF THE MAJORITY LEADER,2016Q3,SUPPLIES AND MATERIALS,09-20,CITI PCARD-NEW YORK TIMES DIGITAL,07/29/16,08/28/16,PUBLICATIONS/REFERENCE MAT'L,37.01,2016,AP,Accounts payable,00881022,CITI PCARD-NEW YORK TIMES DIGITAL
,OFFICE OF THE MAJORITY LEADER,2016Q3,SUPPLIES AND MATERIALS,09-20,CITI PCARD-THEINFORMATION.COM,07/29/16,08/28/16,PUBLICATIONS/REFERENCE MAT'L,39.00,2016,AP,Accounts payable,00881022,CITI PCARD-THEINFORMATION.COM
,OFFICE OF THE MAJORITY LEADER,2016Q3,SUPPLIES AND MATERIALS,09-21,READYREFRESH BY NESTLE,11/27/15,12/26/16,WATER,-274.74,2016,AP,Accounts payable,00881100,READYREFRESH BY NESTLE
,OFFICE OF THE MAJORITY LEADER,2016Q3,SUPPLIES AND MATERIALS,09-21,DEER PARK,08/31/16,08/31/16,WATER,167.71,2016,AP,Accounts payable,00881113,DEER PARK
,OFFICE OF THE MAJORITY LEADER,2016Q3,SUPPLIES AND MATERIALS,09-22,"MIN, JAMES B",09/16/16,09/16/16,FOOD & BEVERAGE,229.23,2016,AP,Accounts payable,E0443463,"MIN, JAMES B"
,OFFICE OF THE MAJORITY LEADER,2016Q3,EQUIPMENT,09-22,GULF PARTYLINE CORPORATION,08/01/16,08/31/16,"COMPUTER SOFTW PURCH LESS THAN $10,000","3,500.00",2016,AP,Accounts payable,E0443467,GULF PARTYLINE CORPORATION
,OFFICE OF THE MAJORITY LEADER,2016Q3,SUPPLIES AND MATERIALS,09-21,READYREFRESH BY NESTLE,11/27/15,12/26/16,WATER,274.74,2015,AP,Accounts payable,00881100,READYREFRESH BY NESTLE
,OFFICE OF THE MAJORITY LEADER,2016Q3,SUPPLIES AND MATERIALS,09-22,DEER PARK WATER,12/27/14,01/26/15,WATER,-667.42,2015,AP,Accounts payable,00881136,DEER PARK WATER
,OFFICE OF THE MAJORITY LEADER,2016Q3,SUPPLIES AND MATERIALS,09-22,DEER PARK WATER,12/27/14,01/26/15,WATER,667.42,2014,AP,Accounts payable,00881136,DEER PARK WATER
,OFFICE OF THE MINORITY LEADER,2016Q3,PERSONNEL BENEFITS,07-06,CAPITOL HOST,05/25/16,05/25/16,OFFICIAL EXPENSES FOR LEADERS,"3,114.00",2016,AP,Accounts payable,E0419088,CAPITOL HOST
,OFFICE OF THE MINORITY LEADER,2016Q3,SUPPLIES AND MATERIALS,07-06,CRYSTAL SPRINGS,06/15/16,06/15/16,FOOD & BEVERAGE,192.94,2016,AP,Accounts payable,E0419089,CRYSTAL SPRINGS
,OFFICE OF THE MINORITY LEADER,2016Q3,SUPPLIES AND MATERIALS,07-20,MENUS CATERING,05/18/16,05/18/16,FOOD & BEVERAGE,501.40,2016,AP,Accounts payable,E0424071,MENUS CATERING
,OFFICE OF THE MINORITY LEADER,2016Q3,SUPPLIES AND MATERIALS,08-23,DESIGN CUISINE,05/25/16,05/25/16,FOOD & BEVERAGE,"4,641.58",2016,AP,Accounts payable,E0433757,DESIGN CUISINE
,OFFICE OF THE MINORITY LEADER,2016Q3,PERSONNEL COMPENSATION,"","ADAMS,CARRIE E",07/05/16,09/30/16,DIGITAL DIRECTOR,"23,888.88",2016,"","","","ADAMS,CARRIE E"
,OFFICE OF THE MINORITY LEADER,2016Q3,PERSONNEL COMPENSATION,"","ADRIANCE,EDWIN A",07/01/16,09/30/16,DEPUTY PRESS SECRETARY,"12,624.99",2016,"","","","ADRIANCE,EDWIN A"
,OFFICE OF THE MINORITY LEADER,2016Q3,PERSONNEL COMPENSATION,"","AGUILAR,JORGE A",07/01/16,09/30/16,PRESS SEC/DIR HISPANIC MEDIA,"18,750.00",2016,"","","","AGUILAR,JORGE A"
,OFFICE OF THE MINORITY LEADER,2016Q3,PERSONNEL COMPENSATION,"","BARON,ZACHARY L",07/01/16,09/30/16,SELECT PANEL SENIOR COUNSEL,"9,999.99",2016,"","","","BARON,ZACHARY L"
,OFFICE OF THE MINORITY LEADER,2016Q3,PERSONNEL COMPENSATION,"","BEHRINGER,CAROLINE",07/01/16,09/30/16,DEPUTY COMMUNICATIONS DIRECTOR,"32,499.99",2016,"","","","BEHRINGER,CAROLINE"
,OFFICE OF THE MINORITY LEADER,2016Q3,PERSONNEL COMPENSATION,"","BERRET,EMILY C",07/01/16,09/30/16,SPECIAL ASST TO THE LEADER,"17,499.99",2016,"","","","BERRET,EMILY C"
,OFFICE OF THE MINORITY LEADER,2016Q3,PERSONNEL COMPENSATION,"","BLOOM, MICHAEL T",07/01/16,09/30/16,SENIOR ADVISOR,"26,249.99",2016,"","","","BLOOM, MICHAEL T"
,OFFICE OF THE MINORITY LEADER,2016Q3,PERSONNEL COMPENSATION,"","CAPRON, MARGARET W",07/01/16,09/30/16,SENIOR ADV POLICY & COMM,"33,174.24",2016,"","","","CAPRON, MARGARET W"
,OFFICE OF THE MINORITY LEADER,2016Q3,PERSONNEL COMPENSATION,"","CAYEA,DEVAN W",07/01/16,09/30/16,DEPUTY DIRECTOR OF ADVANCE,"16,250.01",2016,"","","","CAYEA,DEVAN W"
,OFFICE OF THE MINORITY LEADER,2016Q3,PERSONNEL COMPENSATION,"","CHERRY,STEPHANIE",07/01/16,09/30/16,DIRECTOR OF MEDIA AFFAIRS,"17,962.26",2016,"","","","CHERRY,STEPHANIE"
,OFFICE OF THE MINORITY LEADER,2016Q3,PERSONNEL COMPENSATION,"","CONNELLY,HENRY V",06/01/16,09/30/16,DIRECTOR OF SPEECHWRITING,"21,666.67",2016,"","","","CONNELLY,HENRY V"
,OFFICE OF THE MINORITY LEADER,2016Q3,PERSONNEL COMPENSATION,"","DEGRAFF, KENNETH B",07/01/16,09/30/16,SENIOR POLICY ADVISOR,"28,749.99",2016,"","","","DEGRAFF, KENNETH B"
,OFFICE OF THE MINORITY LEADER,2016Q3,PERSONNEL COMPENSATION,"","DEVLIN, PATRICK J",07/01/16,09/30/16,COMMUNICATIONS DIRECTOR,"31,250.01",2016,"","","","DEVLIN, PATRICK J"
,OFFICE OF THE MINORITY LEADER,2016Q3,PERSONNEL COMPENSATION,"","DEWHIRST, DIANE",07/01/16,09/30/16,DEPUTY CHIEF OF STAFF,"43,125.00",2016,"","","","DEWHIRST, DIANE"
,OFFICE OF THE MINORITY LEADER,2016Q3,PERSONNEL COMPENSATION,"","EDMONSON, ROBERT D",07/01/16,09/30/16,CHIEF OF STAFF,"17,499.99",2016,"","","","EDMONSON, ROBERT D"
,OFFICE OF THE MINORITY LEADER,2016Q3,PERSONNEL COMPENSATION,"","ELSHAMI, NADEAM",07/01/16,09/30/16,CHIEF OF STAFF,"43,125.00",2016,"","","","ELSHAMI, NADEAM"
,OFFICE OF THE MINORITY LEADER,2016Q3,PERSONNEL COMPENSATION,"","FISCHER JR, ROBERT V",07/01/16,09/30/16,ASST FLOOR CHIEF,"43,125.00",2016,"","","","FISCHER JR, ROBERT V"
,OFFICE OF THE MINORITY LEADER,2016Q3,PERSONNEL COMPENSATION,"","GREENER, APRIL L",07/01/16,09/30/16,RESEARCH DIRECTOR,"26,250.00",2016,"","","","GREENER, APRIL L"
,OFFICE OF THE MINORITY LEADER,2016Q3,PERSONNEL COMPENSATION,"","GRIFFIN,SAHARRA E",07/01/16,09/30/16,ASST TO THE EXECUTIVE OFFICE,"8,250.00",2016,"","","","GRIFFIN,SAHARRA E"
,OFFICE OF THE MINORITY LEADER,2016Q3,PERSONNEL COMPENSATION,"","GRIFFIN,SAHARRA E",06/06/16,08/31/16,ASST TO THE EXECUTIVE OFFICE (OVERTIME),"3,218.65",2016,"","","","GRIFFIN,SAHARRA E"
,OFFICE OF THE MINORITY LEADER,2016Q3,PERSONNEL COMPENSATION,"","GRIFFIN,TAYLOR T",07/01/16,09/30/16,PRESS ASSISTANT,"8,750.01",2016,"","","","GRIFFIN,TAYLOR T"
,OFFICE OF THE MINORITY LEADER,2016Q3,PERSONNEL COMPENSATION,"","GRIFFIN,TAYLOR T",06/01/16,08/31/16,PRESS ASSISTANT (OVERTIME),"2,606.04",2016,"","","","GRIFFIN,TAYLOR T"
,OFFICE OF THE MINORITY LEADER,2016Q3,PERSONNEL COMPENSATION,"","HAMMILL, ANDREW T",07/01/16,09/30/16,DEPUTY CHIEF OF STAFF,"43,125.00",2016,"","","","HAMMILL, ANDREW T"
,OFFICE OF THE MINORITY LEADER,2016Q3,PERSONNEL COMPENSATION,"","HAYNES JR, WILFRED J",07/01/16,09/30/16,IT DIRECTOR,"24,530.49",2016,"","","","HAYNES JR, WILFRED J"
,OFFICE OF THE MINORITY LEADER,2016Q3,PERSONNEL COMPENSATION,"","HOLMES,NATHANIEL J",07/01/16,09/30/16,DEPUTY DIRECTOR OF SCHEDULING,"14,124.99",2016,"","","","HOLMES,NATHANIEL J"
,OFFICE OF THE MINORITY LEADER,2016Q3,PERSONNEL COMPENSATION,"","KAPLAN,EMMA L",07/01/16,09/30/16,MBR SERV ADVISER/SPECIAL ASST,"15,624.99",2016,"","","","KAPLAN,EMMA L"
,OFFICE OF THE MINORITY LEADER,2016Q3,PERSONNEL COMPENSATION,"","KEATING,ROSE M",07/01/16,09/30/16,ASST FLOOR MANAGER,"31,250.01",2016,"","","","KEATING,ROSE M"
,OFFICE OF THE MINORITY LEADER,2016Q3,PERSONNEL COMPENSATION,"","KEITA,KAMILAH Z",07/01/16,09/30/16,DEPUTY INFOMATION TECH. DIRECT,"22,283.01",2016,"","","","KEITA,KAMILAH Z"
,OFFICE OF THE MINORITY LEADER,2016Q3,PERSONNEL COMPENSATION,"","KUNDANIS, GEORGE",07/01/16,09/30/16,DEPUTY CHIEF OF STAFF,"43,125.00",2016,"","","","KUNDANIS, GEORGE"
,OFFICE OF THE MINORITY LEADER,2016Q3,PERSONNEL COMPENSATION,"","LEE,SERYEUNG",07/01/16,09/30/16,PRESS ASSISTANT,"7,500.00",2016,"","","","LEE,SERYEUNG"
,OFFICE OF THE MINORITY LEADER,2016Q3,PERSONNEL COMPENSATION,"","LEE,SERYEUNG",06/01/16,08/31/16,PRESS ASSISTANT (OVERTIME),"2,093.12",2016,"","","","LEE,SERYEUNG"
,OFFICE OF THE MINORITY LEADER,2016Q3,PERSONNEL COMPENSATION,"","LIZARRAGA, JAIME E",07/01/16,09/30/16,SR ADV & DIR OF MEMBER SVC,"41,155.50",2016,"","","","LIZARRAGA, JAIME E"
,OFFICE OF THE MINORITY LEADER,2016Q3,PERSONNEL COMPENSATION,"","LONG,MICHAEL G",07/01/16,09/30/16,SENIOR ADVISOR,"27,916.67",2016,"","","","LONG,MICHAEL G"
,OFFICE OF THE MINORITY LEADER,2016Q3,PERSONNEL COMPENSATION,"","MANGRUM, PEARL J",07/01/16,09/30/16,FINANCIAL ADMINISTRATOR,"19,875.00",2016,"","","","MANGRUM, PEARL J"
,OFFICE OF THE MINORITY LEADER,2016Q3,PERSONNEL COMPENSATION,"","MASON,TAMIKA K",07/01/16,09/30/16,SR STAFF ASST SYS ADMIN,"12,500.01",2016,"","","","MASON,TAMIKA K"
,OFFICE OF THE MINORITY LEADER,2016Q3,PERSONNEL COMPENSATION,"","MELTZER,RICHARD",07/01/16,09/30/16,POLICY DIRECTOR,"43,125.00",2016,"","","","MELTZER,RICHARD"
,OFFICE OF THE MINORITY LEADER,2016Q3,PERSONNEL COMPENSATION,"","MONGE,KATHERINE S",07/01/16,09/30/16,SENIOR POLICY ADVISOR,"37,500.00",2016,"","","","MONGE,KATHERINE S"
,OFFICE OF THE MINORITY LEADER,2016Q3,PERSONNEL COMPENSATION,"","PALMER,ASHLI S",07/01/16,09/30/16,POLICY DIRECTOR,"32,499.99",2016,"","","","PALMER,ASHLI S"
,OFFICE OF THE MINORITY LEADER,2016Q3,PERSONNEL COMPENSATION,"","PARKER, WYNDEE R",07/01/16,09/30/16,SENIOR POLICY ADVISOR,"43,125.00",2016,"","","","PARKER, WYNDEE R"
,OFFICE OF THE MINORITY LEADER,2016Q3,PERSONNEL COMPENSATION,"","PFEIFFER,AMY M",07/01/16,09/30/16,SENIOR ADVISOR,"24,999.99",2016,"","","","PFEIFFER,AMY M"
,OFFICE OF THE MINORITY LEADER,2016Q3,PERSONNEL COMPENSATION,"","POWELL,LATRICE S",07/01/16,09/30/16,ASSISTANT CLOAKROOM MANAGER,"27,500.01",2016,"","","","POWELL,LATRICE S"
,OFFICE OF THE MINORITY LEADER,2016Q3,PERSONNEL COMPENSATION,"","PRICE, REVA B",07/01/16,09/30/16,OUTREACH DIRECTOR & ADVISOR,"31,924.26",2016,"","","","PRICE, REVA B"
,OFFICE OF THE MINORITY LEADER,2016Q3,PERSONNEL COMPENSATION,"","PRIMUS, WENDELL E",07/01/16,09/30/16,SENIOR POLICY ADVISOR,"43,125.00",2016,"","","","PRIMUS, WENDELL E"
,OFFICE OF THE MINORITY LEADER,2016Q3,PERSONNEL COMPENSATION,"","RICCIO,ANDREA M",07/01/16,09/30/16,DEP DIR DEM POL & COMM CMTE,"23,750.01",2016,"","","","RICCIO,ANDREA M"
,OFFICE OF THE MINORITY LEADER,2016Q3,PERSONNEL COMPENSATION,"","ROBINSON,MALAIKA",07/01/16,09/30/16,DEP DIR OF SPEECHWRITING,"16,250.01",2016,"","","","ROBINSON,MALAIKA"
,OFFICE OF THE MINORITY LEADER,2016Q3,PERSONNEL COMPENSATION,"","ROCHELLE,COURTNEY E",07/01/16,09/30/16,DISTRICT SCHEDULER/EXEC ASSIST,"5,000.01",2016,"","","","ROCHELLE,COURTNEY E"
,OFFICE OF THE MINORITY LEADER,2016Q3,PERSONNEL COMPENSATION,"","SLATER,SAMANTHA A",07/01/16,09/30/16,EXEC DIR DEM POLICY COMM CMTE,"28,749.99",2016,"","","","SLATER,SAMANTHA A"
,OFFICE OF THE MINORITY LEADER,2016Q3,PERSONNEL COMPENSATION,"","SMITH,KELSEY L",07/01/16,09/30/16,DIR. OF SCHEDULING & ADVANCE,"22,500.00",2016,"","","","SMITH,KELSEY L"
,OFFICE OF THE MINORITY LEADER,2016Q3,PERSONNEL COMPENSATION,"","STERN, KEITH L",07/01/16,09/30/16,DIRECTOR OF FLOOR OPERATIONS,"39,999.99",2016,"","","","STERN, KEITH L"
,OFFICE OF THE MINORITY LEADER,2016Q3,PERSONNEL COMPENSATION,"","SURGEON,BINA G",07/01/16,09/30/16,SPECIAL ASST TO THE LEADER,"26,833.34",2016,"","","","SURGEON,BINA G"
,OFFICE OF THE MINORITY LEADER,2016Q3,PERSONNEL COMPENSATION,"","TECKLENBURG, MICHAEL H",07/01/16,09/30/16,COUNSEL,"32,499.99",2016,"","","","TECKLENBURG, MICHAEL H"
,OFFICE OF THE MINORITY LEADER,2016Q3,PERSONNEL COMPENSATION,"","WALTERS,SARAH S",08/15/16,09/30/16,DIGITAL ASSISTANT,"3,833.33",2016,"","","","WALTERS,SARAH S"
,OFFICE OF THE MINORITY LEADER,2016Q3,PERSONNEL COMPENSATION,"","WATKINS, YELBERTON R",07/01/16,09/30/16,CHIEF OF STAFF,"41,250.00",2016,"","","","WATKINS, YELBERTON R"
,OFFICE OF THE MINORITY LEADER,2016Q3,PERSONNEL COMPENSATION,"","WEST,JULIUS L",07/01/16,09/30/16,"ADVISER,MEMBER SERVICES","18,000.00",2016,"","","","WEST,JULIUS L"
,OFFICE OF THE MINORITY LEADER,2016Q3,PERSONNEL COMPENSATION,"","WOLTERS, KATE",07/01/16,09/30/16,DIRECTOR OF PROTOCOL,"35,896.50",2016,"","","","WOLTERS, KATE"
,OFFICE OF THE MINORITY LEADER,2016Q3,TRAVEL,07-06,"AGUILAR, JORGE A",06/19/16,06/21/16,COMMERCIAL TRANSPORTATION,"1,152.96",2016,AP,Accounts payable,E0419098,"AGUILAR, JORGE A"
,OFFICE OF THE MINORITY LEADER,2016Q3,TRAVEL,07-06,"AGUILAR, JORGE A",06/19/16,06/20/16,MEALS,30.32,2016,AP,Accounts payable,E0419098,"AGUILAR, JORGE A"
,OFFICE OF THE MINORITY LEADER,2016Q3,TRAVEL,07-06,"AGUILAR, JORGE A",06/19/16,06/20/16,TAXI/PARKING/TOLLS,83.33,2016,AP,Accounts payable,E0419098,"AGUILAR, JORGE A"
,OFFICE OF THE MINORITY LEADER,2016Q3,TRAVEL,07-06,"SMITH, KELSEY L",06/13/16,06/13/16,TAXI/PARKING/TOLLS,11.90,2016,AP,Accounts payable,E0419114,"SMITH, KELSEY L"
,OFFICE OF THE MINORITY LEADER,2016Q3,TRAVEL,07-06,"HAMMILL, ANDREW T",06/24/16,06/27/16,LODGING,"1,015.43",2016,AP,Accounts payable,E0419164,"HAMMILL, ANDREW T"
,OFFICE OF THE MINORITY LEADER,2016Q3,TRAVEL,07-06,"HAMMILL, ANDREW T",06/24/16,06/26/16,MEALS,96.05,2016,AP,Accounts payable,E0419164,"HAMMILL, ANDREW T"
,OFFICE OF THE MINORITY LEADER,2016Q3,TRAVEL,07-06,"HAMMILL, ANDREW T",06/24/16,06/27/16,TAXI/PARKING/TOLLS,402.75,2016,AP,Accounts payable,E0419164,"HAMMILL, ANDREW T"
,OFFICE OF THE MINORITY LEADER,2016Q3,TRAVEL,07-06,"SMITH, KELSEY L",06/13/16,06/13/16,TAXI/PARKING/TOLLS,11.90,2016,AP,Accounts payable,E0419167,"SMITH, KELSEY L"
,OFFICE OF THE MINORITY LEADER,2016Q3,TRAVEL,07-13,CITIBANK GOV CARD SERVICE,06/19/16,06/19/16,COMMERCIAL TRANSPORTATION,802.73,2016,AP,Accounts payable,E0421375,CITIBANK GOV CARD SERVICE
,OFFICE OF THE MINORITY LEADER,2016Q3,TRAVEL,07-13,CITIBANK GOV CARD SERVICE,06/19/16,06/19/16,MEALS,18.30,2016,AP,Accounts payable,E0421375,CITIBANK GOV CARD SERVICE
,OFFICE OF THE MINORITY LEADER,2016Q3,TRAVEL,07-13,CITIBANK GOV CARD SERVICE,06/20/16,06/20/16,MEALS,13.74,2016,AP,Accounts payable,E0421375,CITIBANK GOV CARD SERVICE
,OFFICE OF THE MINORITY LEADER,2016Q3,TRAVEL,07-13,CITIBANK GOV CARD SERVICE,06/21/16,06/21/16,MEALS,19.51,2016,AP,Accounts payable,E0421375,CITIBANK GOV CARD SERVICE
,OFFICE OF THE MINORITY LEADER,2016Q3,TRAVEL,07-13,CITIBANK GOV CARD SERVICE,06/19/16,06/19/16,TAXI/PARKING/TOLLS,59.63,2016,AP,Accounts payable,E0421375,CITIBANK GOV CARD SERVICE
,OFFICE OF THE MINORITY LEADER,2016Q3,TRAVEL,07-13,CITIBANK GOV CARD SERVICE,06/21/16,06/21/16,TAXI/PARKING/TOLLS,24.12,2016,AP,Accounts payable,E0421375,CITIBANK GOV CARD SERVICE
,OFFICE OF THE MINORITY LEADER,2016Q3,TRAVEL,07-13,CITIBANK GOV CARD SERVICE,06/23/16,06/23/16,TAXI/PARKING/TOLLS,7.74,2016,AP,Accounts payable,E0421375,CITIBANK GOV CARD SERVICE
,OFFICE OF THE MINORITY LEADER,2016Q3,TRAVEL,07-13,CITIBANK GOV CARD SERVICE,06/03/16,06/07/16,COMMERCIAL TRANSPORTATION,122.20,2016,AP,Accounts payable,E0421376,CITIBANK GOV CARD SERVICE
,OFFICE OF THE MINORITY LEADER,2016Q3,TRAVEL,07-13,CITIBANK GOV CARD SERVICE,06/24/16,06/27/16,COMMERCIAL TRANSPORTATION,792.20,2016,AP,Accounts payable,E0421376,CITIBANK GOV CARD SERVICE
,OFFICE OF THE MINORITY LEADER,2016Q3,TRAVEL,07-13,CITIBANK GOV CARD SERVICE,06/05/16,06/05/16,MEALS,5.39,2016,AP,Accounts payable,E0421376,CITIBANK GOV CARD SERVICE
,OFFICE OF THE MINORITY LEADER,2016Q3,TRAVEL,07-13,CITIBANK GOV CARD SERVICE,06/06/16,06/06/16,MEALS,65.35,2016,AP,Accounts payable,E0421376,CITIBANK GOV CARD SERVICE
,OFFICE OF THE MINORITY LEADER,2016Q3,TRAVEL,07-13,CITIBANK GOV CARD SERVICE,06/07/16,06/07/16,MEALS,13.01,2016,AP,Accounts payable,E0421376,CITIBANK GOV CARD SERVICE
,OFFICE OF THE MINORITY LEADER,2016Q3,TRAVEL,07-13,CITIBANK GOV CARD SERVICE,06/03/16,06/03/16,TAXI/PARKING/TOLLS,67.55,2016,AP,Accounts payable,E0421376,CITIBANK GOV CARD SERVICE
,OFFICE OF THE MINORITY LEADER,2016Q3,TRAVEL,07-13,CITIBANK GOV CARD SERVICE,06/22/16,06/22/16,TAXI/PARKING/TOLLS,12.32,2016,AP,Accounts payable,E0421377,CITIBANK GOV CARD SERVICE
,OFFICE OF THE MINORITY LEADER,2016Q3,TRAVEL,07-14,"KAPLAN, EMMA L",06/13/16,06/15/16,TAXI/PARKING/TOLLS,48.01,2016,AP,Accounts payable,E0421373,"KAPLAN, EMMA L"
,OFFICE OF THE MINORITY LEADER,2016Q3,TRAVEL,07-14,"SMITH, KELSEY L",06/06/16,06/06/16,MEALS,66.44,2016,AP,Accounts payable,E0421374,"SMITH, KELSEY L"
,OFFICE OF THE MINORITY LEADER,2016Q3,TRAVEL,07-14,"SMITH, KELSEY L",06/07/16,06/07/16,TAXI/PARKING/TOLLS,16.01,2016,AP,Accounts payable,E0421374,"SMITH, KELSEY L"
,OFFICE OF THE MINORITY LEADER,2016Q3,TRAVEL,07-19,"SMITH, KELSEY L",06/13/16,06/13/16,TAXI/PARKING/TOLLS,-11.90,2016,AR,Accounts receivable,AC-12135,"SMITH, KELSEY L"
,OFFICE OF THE MINORITY LEADER,2016Q3,TRAVEL,07-20,CITIBANK GOV CARD SERVICE,06/20/16,06/20/16,COMMERCIAL TRANSPORTATION,456.20,2016,AP,Accounts payable,E0424026,CITIBANK GOV CARD SERVICE
,OFFICE OF THE MINORITY LEADER,2016Q3,TRAVEL,07-20,CITIBANK GOV CARD SERVICE,06/20/16,06/20/16,MEALS,27.98,2016,AP,Accounts payable,E0424026,CITIBANK GOV CARD SERVICE
,OFFICE OF THE MINORITY LEADER,2016Q3,TRAVEL,07-20,"GRIFFIN, TAYLOR T",06/23/16,06/23/16,TAXI/PARKING/TOLLS,21.41,2016,AP,Accounts payable,E0424030,"GRIFFIN, TAYLOR T"
,OFFICE OF THE MINORITY LEADER,2016Q3,TRAVEL,07-20,"KAPLAN, EMMA L",06/23/16,06/23/16,TAXI/PARKING/TOLLS,20.40,2016,AP,Accounts payable,E0424073,"KAPLAN, EMMA L"
,OFFICE OF THE MINORITY LEADER,2016Q3,TRAVEL,08-08,"DEGRAFF, KENNETH B",06/22/16,07/06/16,TAXI/PARKING/TOLLS,18.96,2016,AP,Accounts payable,E0429377,"DEGRAFF, KENNETH B"
,OFFICE OF THE MINORITY LEADER,2016Q3,TRAVEL,08-19,CITIBANK GOV CARD SERVICE,06/28/16,06/30/16,COMMERCIAL TRANSPORTATION,635.20,2016,AP,Accounts payable,E0433911,CITIBANK GOV CARD SERVICE
,OFFICE OF THE MINORITY LEADER,2016Q3,TRAVEL,08-19,CITIBANK GOV CARD SERVICE,07/15/16,07/16/16,COMMERCIAL TRANSPORTATION,486.20,2016,AP,Accounts payable,E0433911,CITIBANK GOV CARD SERVICE
,OFFICE OF THE MINORITY LEADER,2016Q3,TRAVEL,08-19,CITIBANK GOV CARD SERVICE,06/30/16,06/30/16,MEALS,10.89,2016,AP,Accounts payable,E0433911,CITIBANK GOV CARD SERVICE
,OFFICE OF THE MINORITY LEADER,2016Q3,TRAVEL,08-19,CITIBANK GOV CARD SERVICE,07/15/16,07/15/16,MEALS,88.39,2016,AP,Accounts payable,E0433911,CITIBANK GOV CARD SERVICE
,OFFICE OF THE MINORITY LEADER,2016Q3,TRAVEL,08-19,CITIBANK GOV CARD SERVICE,06/28/16,06/28/16,TAXI/PARKING/TOLLS,45.80,2016,AP,Accounts payable,E0433911,CITIBANK GOV CARD SERVICE
,OFFICE OF THE MINORITY LEADER,2016Q3,TRAVEL,08-19,CITIBANK GOV CARD SERVICE,07/15/16,07/15/16,TAXI/PARKING/TOLLS,20.00,2016,AP,Accounts payable,E0433911,CITIBANK GOV CARD SERVICE
,OFFICE OF THE MINORITY LEADER,2016Q3,TRAVEL,08-19,CITIBANK GOV CARD SERVICE,07/17/16,07/17/16,TAXI/PARKING/TOLLS,21.39,2016,AP,Accounts payable,E0433911,CITIBANK GOV CARD SERVICE
,OFFICE OF THE MINORITY LEADER,2016Q3,TRAVEL,08-19,CITIBANK GOV CARD SERVICE,07/15/16,07/15/16,COMMERCIAL TRANSPORTATION,213.60,2016,AP,Accounts payable,E0433912,CITIBANK GOV CARD SERVICE
,OFFICE OF THE MINORITY LEADER,2016Q3,TRAVEL,08-19,CITIBANK GOV CARD SERVICE,07/16/16,07/17/16,COMMERCIAL TRANSPORTATION,168.60,2016,AP,Accounts payable,E0433912,CITIBANK GOV CARD SERVICE
,OFFICE OF THE MINORITY LEADER,2016Q3,TRAVEL,08-19,CITIBANK GOV CARD SERVICE,07/15/16,07/16/16,LODGING,178.08,2016,AP,Accounts payable,E0433912,CITIBANK GOV CARD SERVICE
,OFFICE OF THE MINORITY LEADER,2016Q3,TRAVEL,08-19,CITIBANK GOV CARD SERVICE,07/16/16,07/16/16,MEALS,9.60,2016,AP,Accounts payable,E0433912,CITIBANK GOV CARD SERVICE
,OFFICE OF THE MINORITY LEADER,2016Q3,TRAVEL,08-19,CITIBANK GOV CARD SERVICE,07/15/16,07/15/16,TAXI/PARKING/TOLLS,18.00,2016,AP,Accounts payable,E0433912,CITIBANK GOV CARD SERVICE
,OFFICE OF THE MINORITY LEADER,2016Q3,TRAVEL,08-19,CITIBANK GOV CARD SERVICE,07/17/16,07/17/16,TAXI/PARKING/TOLLS,77.92,2016,AP,Accounts payable,E0433912,CITIBANK GOV CARD SERVICE
,OFFICE OF THE MINORITY LEADER,2016Q3,TRAVEL,08-19,CITIBANK GOV CARD SERVICE,07/12/16,07/12/16,COMMERCIAL TRANSPORTATION,504.98,2016,AP,Accounts payable,E0433913,CITIBANK GOV CARD SERVICE
,OFFICE OF THE MINORITY LEADER,2016Q3,TRAVEL,08-22,"AGUILAR, JORGE A",06/29/16,07/16/16,MEALS,22.49,2016,AP,Accounts payable,E0433758,"AGUILAR, JORGE A"
,OFFICE OF THE MINORITY LEADER,2016Q3,TRAVEL,08-22,"AGUILAR, JORGE A",06/30/16,07/16/16,TAXI/PARKING/TOLLS,127.47,2016,AP,Accounts payable,E0433758,"AGUILAR, JORGE A"
,OFFICE OF THE MINORITY LEADER,2016Q3,TRAVEL,08-22,"CAYEA, DEVAN W",08/12/16,08/12/16,MEALS,104.74,2016,AP,Accounts payable,E0433765,"CAYEA, DEVAN W"
,OFFICE OF THE MINORITY LEADER,2016Q3,TRAVEL,08-29,"SURGEON,BINA G",07/30/16,08/05/16,TAXI/PARKING/TOLLS,31.25,2016,AP,Accounts payable,E0435539,"SURGEON,BINA G"
,OFFICE OF THE MINORITY LEADER,2016Q3,TRAVEL,08-30,"MONGE, KATHERINE S",08/24/16,08/24/16,TAXI/PARKING/TOLLS,15.00,2016,AP,Accounts payable,E0436514,"MONGE, KATHERINE S"
,OFFICE OF THE MINORITY LEADER,2016Q3,TRAVEL,09-19,"ROCHELLE,COURTNEY",08/17/16,08/17/16,TAXI/PARKING/TOLLS,37.50,2016,AP,Accounts payable,E0441695,"ROCHELLE,COURTNEY"
,OFFICE OF THE MINORITY LEADER,2016Q3,TRAVEL,09-19,CITIBANK GOV CARD SERVICE,08/17/16,08/17/16,COMMERCIAL TRANSPORTATION,280.00,2016,AP,Accounts payable,E0441696,CITIBANK GOV CARD SERVICE
,OFFICE OF THE MINORITY LEADER,2016Q3,TRAVEL,09-19,CITIBANK GOV CARD SERVICE,08/18/16,08/18/16,COMMERCIAL TRANSPORTATION,420.00,2016,AP,Accounts payable,E0441696,CITIBANK GOV CARD SERVICE
,OFFICE OF THE MINORITY LEADER,2016Q3,TRAVEL,09-19,CITIBANK GOV CARD SERVICE,08/17/16,08/18/16,LODGING,367.49,2016,AP,Accounts payable,E0441696,CITIBANK GOV CARD SERVICE
,OFFICE OF THE MINORITY LEADER,2016Q3,TRAVEL,09-19,CITIBANK GOV CARD SERVICE,08/17/16,08/17/16,MEALS,47.31,2016,AP,Accounts payable,E0441696,CITIBANK GOV CARD SERVICE
,OFFICE OF THE MINORITY LEADER,2016Q3,TRAVEL,09-19,CITIBANK GOV CARD SERVICE,08/18/16,08/18/16,TAXI/PARKING/TOLLS,21.95,2016,AP,Accounts payable,E0441696,CITIBANK GOV CARD SERVICE
,OFFICE OF THE MINORITY LEADER,2016Q3,TRAVEL,09-19,CITIBANK GOV CARD SERVICE,08/10/16,08/10/16,COMMERCIAL TRANSPORTATION,233.10,2016,AP,Accounts payable,E0441697,CITIBANK GOV CARD SERVICE
,OFFICE OF THE MINORITY LEADER,2016Q3,TRAVEL,09-19,CITIBANK GOV CARD SERVICE,08/12/16,08/12/16,COMMERCIAL TRANSPORTATION,233.10,2016,AP,Accounts payable,E0441697,CITIBANK GOV CARD SERVICE
,OFFICE OF THE MINORITY LEADER,2016Q3,TRAVEL,09-19,CITIBANK GOV CARD SERVICE,08/11/16,08/12/16,LODGING,110.00,2016,AP,Accounts payable,E0441697,CITIBANK GOV CARD SERVICE
,OFFICE OF THE MINORITY LEADER,2016Q3,TRAVEL,09-19,CITIBANK GOV CARD SERVICE,08/10/16,08/10/16,MEALS,5.30,2016,AP,Accounts payable,E0441697,CITIBANK GOV CARD SERVICE
,OFFICE OF THE MINORITY LEADER,2016Q3,TRAVEL,09-19,CITIBANK GOV CARD SERVICE,08/11/16,08/11/16,MEALS,11.31,2016,AP,Accounts payable,E0441697,CITIBANK GOV CARD SERVICE
,OFFICE OF THE MINORITY LEADER,2016Q3,TRAVEL,09-19,CITIBANK GOV CARD SERVICE,08/12/16,08/12/16,MEALS,18.36,2016,AP,Accounts payable,E0441697,CITIBANK GOV CARD SERVICE
,OFFICE OF THE MINORITY LEADER,2016Q3,TRAVEL,09-19,CITIBANK GOV CARD SERVICE,08/10/16,08/12/16,CAR RENTAL,166.59,2016,AP,Accounts payable,E0441697,CITIBANK GOV CARD SERVICE
,OFFICE OF THE MINORITY LEADER,2016Q3,TRAVEL,09-19,CITIBANK GOV CARD SERVICE,08/11/16,08/11/16,GASOLINE,20.04,2016,AP,Accounts payable,E0441697,CITIBANK GOV CARD SERVICE
,OFFICE OF THE MINORITY LEADER,2016Q3,TRAVEL,09-19,CITIBANK GOV CARD SERVICE,08/12/16,08/12/16,GASOLINE,22.12,2016,AP,Accounts payable,E0441697,CITIBANK GOV CARD SERVICE
,OFFICE OF THE MINORITY LEADER,2016Q3,TRAVEL,09-19,CITIBANK GOV CARD SERVICE,08/11/16,08/11/16,TAXI/PARKING/TOLLS,1.00,2016,AP,Accounts payable,E0441697,CITIBANK GOV CARD SERVICE
,OFFICE OF THE MINORITY LEADER,2016Q3,TRAVEL,09-19,CITIBANK GOV CARD SERVICE,08/11/16,08/11/16,COMMERCIAL TRANSPORTATION,191.10,2016,AP,Accounts payable,E0441698,CITIBANK GOV CARD SERVICE
,OFFICE OF THE MINORITY LEADER,2016Q3,TRAVEL,09-19,CITIBANK GOV CARD SERVICE,08/12/16,08/12/16,COMMERCIAL TRANSPORTATION,434.20,2016,AP,Accounts payable,E0441698,CITIBANK GOV CARD SERVICE
,OFFICE OF THE MINORITY LEADER,2016Q3,TRAVEL,09-19,CITIBANK GOV CARD SERVICE,08/12/16,08/12/16,MEALS,18.76,2016,AP,Accounts payable,E0441698,CITIBANK GOV CARD SERVICE
,OFFICE OF THE MINORITY LEADER,2016Q3,TRAVEL,09-19,CITIBANK GOV CARD SERVICE,08/17/16,08/17/16,COMMERCIAL TRANSPORTATION,280.00,2016,AP,Accounts payable,E0441699,CITIBANK GOV CARD SERVICE
,OFFICE OF THE MINORITY LEADER,2016Q3,TRAVEL,09-19,CITIBANK GOV CARD SERVICE,08/18/16,08/18/16,COMMERCIAL TRANSPORTATION,280.00,2016,AP,Accounts payable,E0441699,CITIBANK GOV CARD SERVICE
,OFFICE OF THE MINORITY LEADER,2016Q3,TRAVEL,09-19,CITIBANK GOV CARD SERVICE,08/17/16,08/18/16,LODGING,403.53,2016,AP,Accounts payable,E0441699,CITIBANK GOV CARD SERVICE
,OFFICE OF THE MINORITY LEADER,2016Q3,TRAVEL,09-20,"MONGE, KATHERINE S",09/04/16,09/04/16,TAXI/PARKING/TOLLS,70.00,2016,AP,Accounts payable,E0442020,"MONGE, KATHERINE S"
,OFFICE OF THE MINORITY LEADER,2016Q3,TRAVEL,09-21,"KAPLAN, EMMA L",07/15/16,07/15/16,TAXI/PARKING/TOLLS,7.64,2016,AP,Accounts payable,E0443039,"KAPLAN, EMMA L"
,OFFICE OF THE MINORITY LEADER,2016Q3,TRAVEL,09-21,"KAPLAN, EMMA L",09/07/16,09/07/16,TAXI/PARKING/TOLLS,9.71,2016,AP,Accounts payable,E0443039,"KAPLAN, EMMA L"
,OFFICE OF THE MINORITY LEADER,2016Q3,TRAVEL,09-21,"KAPLAN, EMMA L",09/08/16,09/08/16,TAXI/PARKING/TOLLS,11.71,2016,AP,Accounts payable,E0443039,"KAPLAN, EMMA L"
,OFFICE OF THE MINORITY LEADER,2016Q3,TRAVEL,09-27,CITIBANK GOV CARD SERVICE,08/11/16,08/12/16,COMMERCIAL TRANSPORTATION,232.20,2016,AP,Accounts payable,E0444447,CITIBANK GOV CARD SERVICE
,OFFICE OF THE MINORITY LEADER,2016Q3,TRAVEL,09-27,CITIBANK GOV CARD SERVICE,08/11/16,08/11/16,MEALS,15.12,2016,AP,Accounts payable,E0444447,CITIBANK GOV CARD SERVICE
,OFFICE OF THE MINORITY LEADER,2016Q3,TRAVEL,09-27,CITIBANK GOV CARD SERVICE,08/12/16,08/12/16,MEALS,42.42,2016,AP,Accounts payable,E0444447,CITIBANK GOV CARD SERVICE
,OFFICE OF THE MINORITY LEADER,2016Q3,TRAVEL,09-27,CITIBANK GOV CARD SERVICE,08/11/16,08/11/16,TAXI/PARKING/TOLLS,52.35,2016,AP,Accounts payable,E0444447,CITIBANK GOV CARD SERVICE
,OFFICE OF THE MINORITY LEADER,2016Q3,TRAVEL,09-28,"BEHRINGER, CAROLINE",09/15/16,09/15/16,TAXI/PARKING/TOLLS,17.16,2016,AP,Accounts payable,E0445375,"BEHRINGER, CAROLINE"
,OFFICE OF THE MINORITY LEADER,2016Q3,TRAVEL,09-28,"BEHRINGER, CAROLINE",09/16/16,09/16/16,TAXI/PARKING/TOLLS,27.94,2016,AP,Accounts payable,E0445375,"BEHRINGER, CAROLINE"
,OFFICE OF THE MINORITY LEADER,2016Q3,TRAVEL,09-28,"AGUILAR, JORGE A",08/11/16,08/11/16,MEALS,8.02,2016,AP,Accounts payable,E0445387,"AGUILAR, JORGE A"
,OFFICE OF THE MINORITY LEADER,2016Q3,TRAVEL,09-28,"AGUILAR, JORGE A",08/11/16,08/11/16,TAXI/PARKING/TOLLS,16.38,2016,AP,Accounts payable,E0445387,"AGUILAR, JORGE A"
,OFFICE OF THE MINORITY LEADER,2016Q3,TRAVEL,09-28,"AGUILAR, JORGE A",08/12/16,08/12/16,TAXI/PARKING/TOLLS,35.80,2016,AP,Accounts payable,E0445387,"AGUILAR, JORGE A"
,OFFICE OF THE MINORITY LEADER,2016Q3,TRAVEL,09-28,"AGUILAR, JORGE A",08/13/16,08/13/16,TAXI/PARKING/TOLLS,38.34,2016,AP,Accounts payable,E0445387,"AGUILAR, JORGE A"
,OFFICE OF THE MINORITY LEADER,2016Q3,"RENT, COMMUNICATION, UTILITIES",07-06,"HAMMILL, ANDREW T",06/24/16,06/27/16,TELECOMSRV/EQ/TOLL CHARGE,31.98,2016,AP,Accounts payable,E0419164,"HAMMILL, ANDREW T"
,OFFICE OF THE MINORITY LEADER,2016Q3,"RENT, COMMUNICATION, UTILITIES",07-19,CITI PCARD-TIV TIVO SERVICE,05/29/16,06/28/16,RECORDING (OUTSIDE),48.42,2016,AP,Accounts payable,00868192,CITI PCARD-TIV TIVO SERVICE
,OFFICE OF THE MINORITY LEADER,2016Q3,"RENT, COMMUNICATION, UTILITIES",07-29,"",07/01/16,07/31/16,HIR GRAPHICS (TRANSFER),157.00,2016,GL,General ledger,GRP0060504,""
,OFFICE OF THE MINORITY LEADER,2016Q3,"RENT, COMMUNICATION, UTILITIES",08-18,CITI PCARD-TIV TIVO SERVICE,06/28/16,07/28/16,RECORDING (OUTSIDE),48.42,2016,AP,Accounts payable,00875846,CITI PCARD-TIV TIVO SERVICE
,OFFICE OF THE MINORITY LEADER,2016Q3,"RENT, COMMUNICATION, UTILITIES",08-30,FEDEX,08/05/16,08/05/16,POSTAGE / COURIER / BOX RENTAL,5.11,2016,AP,Accounts payable,E0436513,FEDEX
,OFFICE OF THE MINORITY LEADER,2016Q3,"RENT, COMMUNICATION, UTILITIES",09-19,FEDEX,08/12/16,08/16/16,POSTAGE / COURIER / BOX RENTAL,85.43,2016,AP,Accounts payable,E0441766,FEDEX
,OFFICE OF THE MINORITY LEADER,2016Q3,"RENT, COMMUNICATION, UTILITIES",09-20,CITI PCARD-TIV TIVO SERVICE,07/29/16,08/28/16,RECORDING (OUTSIDE),48.42,2016,AP,Accounts payable,00881022,CITI PCARD-TIV TIVO SERVICE
,OFFICE OF THE MINORITY LEADER,2016Q3,PRINTING AND REPRODUCTION,07-28,"",07/01/16,07/31/16,PHOTOGRAPHIC (TRANSFER),165.40,2016,GL,General ledger,PIX0060456,""
,OFFICE OF THE MINORITY LEADER,2016Q3,PRINTING AND REPRODUCTION,08-18,CITI PCARD-FACEBK,06/28/16,07/28/16,ADVERTISEMENTS,485.12,2016,AP,Accounts payable,00875846,CITI PCARD-FACEBK
,OFFICE OF THE MINORITY LEADER,2016Q3,PRINTING AND REPRODUCTION,08-18,CITI PCARD-FACEBOOK,06/28/16,07/28/16,ADVERTISEMENTS,"6,514.88",2016,AP,Accounts payable,00875846,CITI PCARD-FACEBOOK
,OFFICE OF THE MINORITY LEADER,2016Q3,PRINTING AND REPRODUCTION,08-26,"",08/01/16,08/31/16,PHOTOGRAPHIC (TRANSFER),32.00,2016,GL,General ledger,PIX0061250,""
,OFFICE OF THE MINORITY LEADER,2016Q3,PRINTING AND REPRODUCTION,08-29,"SURGEON,BINA G",08/11/16,08/11/16,PRINTING & REPRODUCTION,18.27,2016,AP,Accounts payable,E0435539,"SURGEON,BINA G"
,OFFICE OF THE MINORITY LEADER,2016Q3,PRINTING AND REPRODUCTION,09-26,"",09/01/16,09/30/16,PHOTOGRAPHIC (TRANSFER),188.50,2016,GL,General ledger,PIX0062004,""
,OFFICE OF THE MINORITY LEADER,2016Q3,OTHER SERVICES,07-06,BERNARD RAIMO,06/01/16,06/30/16,CONSULTANT CONTRACT SERVICE,"7,628.00",2016,AP,Accounts payable,E0419093,BERNARD RAIMO
,OFFICE OF THE MINORITY LEADER,2016Q3,OTHER SERVICES,07-06,NEAL R GROSS & COMPANY INC,06/22/16,06/22/16,STENOGRAPHIC REPORTING,"1,500.00",2016,AP,Accounts payable,E0419100,NEAL R GROSS & COMPANY INC
,OFFICE OF THE MINORITY LEADER,2016Q3,OTHER SERVICES,07-26,BERNARD RAIMO,07/01/16,07/31/16,CONSULTANT CONTRACT SERVICE,"7,628.00",2016,AP,Accounts payable,E0426263,BERNARD RAIMO
,OFFICE OF THE MINORITY LEADER,2016Q3,OTHER SERVICES,09-09,BERNARD RAIMO,08/01/16,08/31/16,CONSULTANT CONTRACT SERVICE,"7,628.00",2016,AP,Accounts payable,E0438892,BERNARD RAIMO
,OFFICE OF THE MINORITY LEADER,2016Q3,SUPPLIES AND MATERIALS,07-06,"AGUILAR, JORGE A",06/09/16,06/09/16,PUBLICATIONS/REFERENCE MAT'L,28.79,2016,AP,Accounts payable,E0419098,"AGUILAR, JORGE A"
,OFFICE OF THE MINORITY LEADER,2016Q3,SUPPLIES AND MATERIALS,07-06,"WOLTERS, KATE",06/20/16,06/20/16,FOOD & BEVERAGE,425.47,2016,AP,Accounts payable,E0419113,"WOLTERS, KATE"
,OFFICE OF THE MINORITY LEADER,2016Q3,SUPPLIES AND MATERIALS,07-13,CONNECTION,06/02/16,06/02/16,OFFICE SUPPLIES (OUTSIDE),779.46,2016,AP,Accounts payable,E0421364,CONNECTION
,OFFICE OF THE MINORITY LEADER,2016Q3,SUPPLIES AND MATERIALS,07-13,CONNECTION,05/31/16,05/31/16,OFFICE SUPPLIES (OUTSIDE),"1,329.43",2016,AP,Accounts payable,E0421365,CONNECTION
,OFFICE OF THE MINORITY LEADER,2016Q3,SUPPLIES AND MATERIALS,07-13,CONNECTION,05/25/16,05/25/16,OFFICE SUPPLIES (OUTSIDE),285.03,2016,AP,Accounts payable,E0421366,CONNECTION
,OFFICE OF THE MINORITY LEADER,2016Q3,SUPPLIES AND MATERIALS,07-13,CAPITOL HOST,06/22/16,06/22/16,FOOD & BEVERAGE,36.63,2016,AP,Accounts payable,E0421367,CAPITOL HOST
,OFFICE OF THE MINORITY LEADER,2016Q3,SUPPLIES AND MATERIALS,07-13,CAPITOL HOST,06/22/16,06/22/16,FOOD & BEVERAGE,36.63,2016,AP,Accounts payable,E0421368,CAPITOL HOST
,OFFICE OF THE MINORITY LEADER,2016Q3,SUPPLIES AND MATERIALS,07-13,CAPITOL HOST,06/23/16,06/23/16,FOOD & BEVERAGE,36.63,2016,AP,Accounts payable,E0421370,CAPITOL HOST
,OFFICE OF THE MINORITY LEADER,2016Q3,SUPPLIES AND MATERIALS,07-14,"SMITH, KELSEY L",06/05/16,06/05/16,PUBLICATIONS/REFERENCE MAT'L,7.75,2016,AP,Accounts payable,E0421374,"SMITH, KELSEY L"
,OFFICE OF THE MINORITY LEADER,2016Q3,SUPPLIES AND MATERIALS,07-19,CITI PCARD-CAP MARKET CAF,05/29/16,06/28/16,FOOD & BEVERAGE,14.00,2016,AP,Accounts payable,00868192,CITI PCARD-CAP MARKET CAF
,OFFICE OF THE MINORITY LEADER,2016Q3,SUPPLIES AND MATERIALS,07-19,CITI PCARD-COSTCO.COM ONLINE,05/29/16,06/28/16,FOOD & BEVERAGE,343.41,2016,AP,Accounts payable,00868192,CITI PCARD-COSTCO.COM ONLINE
,OFFICE OF THE MINORITY LEADER,2016Q3,SUPPLIES AND MATERIALS,07-19,CITI PCARD-FIREHOOK,05/29/16,06/28/16,FOOD & BEVERAGE,108.73,2016,AP,Accounts payable,00868192,CITI PCARD-FIREHOOK
,OFFICE OF THE MINORITY LEADER,2016Q3,SUPPLIES AND MATERIALS,07-19,CITI PCARD-HARRIS TEETER,05/29/16,06/28/16,FOOD & BEVERAGE,636.80,2016,AP,Accounts payable,00868192,CITI PCARD-HARRIS TEETER
,OFFICE OF THE MINORITY LEADER,2016Q3,SUPPLIES AND MATERIALS,07-19,CITI PCARD-SAFEWAY STORE,05/29/16,06/28/16,FOOD & BEVERAGE,97.72,2016,AP,Accounts payable,00868192,CITI PCARD-SAFEWAY STORE
,OFFICE OF THE MINORITY LEADER,2016Q3,SUPPLIES AND MATERIALS,07-19,CITI PCARD-USHR LONGWORTH FOOD CT,05/29/16,06/28/16,FOOD & BEVERAGE,62.90,2016,AP,Accounts payable,00868192,CITI PCARD-USHR LONGWORTH FOOD CT
,OFFICE OF THE MINORITY LEADER,2016Q3,SUPPLIES AND MATERIALS,07-19,"CITI PCARD-WE, THE PIZZA",05/29/16,06/28/16,FOOD & BEVERAGE,128.36,2016,AP,Accounts payable,00868192,"CITI PCARD-WE, THE PIZZA"
,OFFICE OF THE MINORITY LEADER,2016Q3,SUPPLIES AND MATERIALS,07-20,TOULIES EN FLEUR,06/07/16,06/21/16,HABITATION EXPENSE,750.00,2016,AP,Accounts payable,E0424029,TOULIES EN FLEUR
,OFFICE OF THE MINORITY LEADER,2016Q3,SUPPLIES AND MATERIALS,07-20,TOULIES EN FLEUR,07/05/16,07/11/16,HABITATION EXPENSE,500.00,2016,AP,Accounts payable,E0424074,TOULIES EN FLEUR
,OFFICE OF THE MINORITY LEADER,2016Q3,SUPPLIES AND MATERIALS,07-23,CAPITOL HOST,07/08/16,07/08/16,FOOD & BEVERAGE,36.63,2016,AP,Accounts payable,E0424867,CAPITOL HOST
,OFFICE OF THE MINORITY LEADER,2016Q3,SUPPLIES AND MATERIALS,07-23,CRYSTAL SPRINGS,07/01/16,07/31/16,WATER,119.85,2016,AP,Accounts payable,E0424869,CRYSTAL SPRINGS
,OFFICE OF THE MINORITY LEADER,2016Q3,SUPPLIES AND MATERIALS,07-28,CRYSTAL SPRINGS,04/27/16,04/27/16,FOOD & BEVERAGE,-235.36,2016,AP,Accounts payable,00871056,CRYSTAL SPRINGS
,OFFICE OF THE MINORITY LEADER,2016Q3,SUPPLIES AND MATERIALS,07-28,CRYSTAL SPRINGS,05/01/16,05/31/16,FOOD & BEVERAGE,235.36,2016,AP,Accounts payable,00871056,CRYSTAL SPRINGS
,OFFICE OF THE MINORITY LEADER,2016Q3,SUPPLIES AND MATERIALS,07-28,MENUS CATERING,06/14/16,06/14/16,FOOD & BEVERAGE,"1,860.00",2016,AP,Accounts payable,E0426901,MENUS CATERING
,OFFICE OF THE MINORITY LEADER,2016Q3,SUPPLIES AND MATERIALS,08-01,OCCASIONS CATERERS INC,06/14/16,06/14/16,FOOD & BEVERAGE,"7,020.00",2016,AP,Accounts payable,E0426900,OCCASIONS CATERERS INC
,OFFICE OF THE MINORITY LEADER,2016Q3,SUPPLIES AND MATERIALS,08-08,CAPITOL HOST,07/13/16,07/13/16,FOOD & BEVERAGE,36.63,2016,AP,Accounts payable,E0429386,CAPITOL HOST
,OFFICE OF THE MINORITY LEADER,2016Q3,SUPPLIES AND MATERIALS,08-18,CITI PCARD-CAP MARKET CAF,06/28/16,07/28/16,FOOD & BEVERAGE,45.50,2016,AP,Accounts payable,00875846,CITI PCARD-CAP MARKET CAF
,OFFICE OF THE MINORITY LEADER,2016Q3,SUPPLIES AND MATERIALS,08-18,CITI PCARD-CARMINE'S,06/28/16,07/28/16,FOOD & BEVERAGE,202.65,2016,AP,Accounts payable,00875846,CITI PCARD-CARMINE'S
,OFFICE OF THE MINORITY LEADER,2016Q3,SUPPLIES AND MATERIALS,08-18,CITI PCARD-CVS/PHARMACY,06/28/16,07/28/16,FOOD & BEVERAGE,22.55,2016,AP,Accounts payable,00875846,CITI PCARD-CVS/PHARMACY
,OFFICE OF THE MINORITY LEADER,2016Q3,SUPPLIES AND MATERIALS,08-18,CITI PCARD-FIREHOOK,06/28/16,07/28/16,FOOD & BEVERAGE,44.39,2016,AP,Accounts payable,00875846,CITI PCARD-FIREHOOK
,OFFICE OF THE MINORITY LEADER,2016Q3,SUPPLIES AND MATERIALS,08-18,CITI PCARD-GOOD STUFF EATERY,06/28/16,07/28/16,FOOD & BEVERAGE,145.31,2016,AP,Accounts payable,00875846,CITI PCARD-GOOD STUFF EATERY
,OFFICE OF THE MINORITY LEADER,2016Q3,SUPPLIES AND MATERIALS,08-18,CITI PCARD-ROTI MEDITERRANEAN,06/28/16,07/28/16,FOOD & BEVERAGE,234.50,2016,AP,Accounts payable,00875846,CITI PCARD-ROTI MEDITERRANEAN
,OFFICE OF THE MINORITY LEADER,2016Q3,SUPPLIES AND MATERIALS,08-18,CITI PCARD-USHR LONGWORTH FOOD CT,06/28/16,07/28/16,FOOD & BEVERAGE,18.30,2016,AP,Accounts payable,00875846,CITI PCARD-USHR LONGWORTH FOOD CT
,OFFICE OF THE MINORITY LEADER,2016Q3,SUPPLIES AND MATERIALS,08-18,"CITI PCARD-WE, THE PIZZA",06/28/16,07/28/16,FOOD & BEVERAGE,413.24,2016,AP,Accounts payable,00875846,"CITI PCARD-WE, THE PIZZA"
,OFFICE OF THE MINORITY LEADER,2016Q3,SUPPLIES AND MATERIALS,08-18,CITI PCARD-WHOLEFDS GWU,06/28/16,07/28/16,FOOD & BEVERAGE,29.73,2016,AP,Accounts payable,00875846,CITI PCARD-WHOLEFDS GWU
,OFFICE OF THE MINORITY LEADER,2016Q3,SUPPLIES AND MATERIALS,08-22,"WOLTERS, KATE",07/29/16,07/29/16,FOOD & BEVERAGE,231.30,2016,AP,Accounts payable,E0433753,"WOLTERS, KATE"
,OFFICE OF THE MINORITY LEADER,2016Q3,SUPPLIES AND MATERIALS,08-22,"AGUILAR, JORGE A",06/30/16,06/30/16,PUBLICATIONS/REFERENCE MAT'L,8.32,2016,AP,Accounts payable,E0433758,"AGUILAR, JORGE A"
,OFFICE OF THE MINORITY LEADER,2016Q3,SUPPLIES AND MATERIALS,08-22,"WEST,JULIUS L",05/20/16,05/20/16,FOOD & BEVERAGE,61.27,2016,AP,Accounts payable,E0433761,"WEST,JULIUS L"
,OFFICE OF THE MINORITY LEADER,2016Q3,SUPPLIES AND MATERIALS,08-22,"CAYEA, DEVAN W",08/11/16,08/11/16,HABITATION EXPENSE,69.55,2016,AP,Accounts payable,E0433765,"CAYEA, DEVAN W"
,OFFICE OF THE MINORITY LEADER,2016Q3,SUPPLIES AND MATERIALS,09-19,TOULIES EN FLEUR,09/14/16,09/14/16,HABITATION EXPENSE,445.00,2016,AP,Accounts payable,E0441690,TOULIES EN FLEUR
,OFFICE OF THE MINORITY LEADER,2016Q3,SUPPLIES AND MATERIALS,09-20,CITI PCARD-HARRIS TEETER,07/29/16,08/28/16,FOOD & BEVERAGE,28.07,2016,AP,Accounts payable,00881022,CITI PCARD-HARRIS TEETER
,OFFICE OF THE MINORITY LEADER,2016Q3,SUPPLIES AND MATERIALS,09-20,BLOOMBERG LP,09/01/16,08/31/17,PUBLICATIONS/REFERENCE MAT'L,"5,940.00",2016,AP,Accounts payable,E0441692,BLOOMBERG LP
,OFFICE OF THE MINORITY LEADER,2016Q3,SUPPLIES AND MATERIALS,09-28,"BEHRINGER, CAROLINE",09/16/16,09/16/16,PUBLICATIONS/REFERENCE MAT'L,5.50,2016,AP,Accounts payable,E0445375,"BEHRINGER, CAROLINE"
,OFFICE OF THE MINORITY LEADER,2016Q3,SUPPLIES AND MATERIALS,09-29,SOUTHWEST DISTRIBUTION INC,10/01/16,12/31/16,PUBLICATIONS/REFERENCE MAT'L,"3,775.20",2016,AP,Accounts payable,E0445605,SOUTHWEST DISTRIBUTION INC
,OFFICE OF THE MINORITY LEADER,2016Q3,SUPPLIES AND MATERIALS,09-29,CAPITOL HOST,09/12/16,09/12/16,FOOD & BEVERAGE,36.63,2016,AP,Accounts payable,E0445606,CAPITOL HOST
,OFFICE OF THE MINORITY LEADER,2016Q3,SUPPLIES AND MATERIALS,09-29,CAPITOL HOST,09/08/16,09/08/16,FOOD & BEVERAGE,36.63,2016,AP,Accounts payable,E0445607,CAPITOL HOST
,OFFICE OF THE MINORITY LEADER,2016Q3,SUPPLIES AND MATERIALS,09-29,CAPITOL HOST,09/07/16,09/07/16,FOOD & BEVERAGE,36.63,2016,AP,Accounts payable,E0445608,CAPITOL HOST
,OFFICE OF THE MINORITY LEADER,2016Q3,SUPPLIES AND MATERIALS,09-29,CAPITOL HOST,09/13/16,09/13/16,FOOD & BEVERAGE,36.63,2016,AP,Accounts payable,E0445702,CAPITOL HOST
,OFFICE OF THE MAJORITY WHIP,2016Q3,PERSONNEL COMPENSATION,"","ACORNLEY, MARK A",07/01/16,09/30/16,FINANCIAL ADMINISTRATOR,"3,750.00",2016,"","","","ACORNLEY, MARK A"
,OFFICE OF THE MAJORITY WHIP,2016Q3,PERSONNEL COMPENSATION,"","BECKER,MEGAN E",07/01/16,09/30/16,SCHEDULE COORDINATOR,"11,250.00",2016,"","","","BECKER,MEGAN E"
,OFFICE OF THE MAJORITY WHIP,2016Q3,PERSONNEL COMPENSATION,"","BOND,CHRISTOPHER J",07/01/16,09/30/16,COMMUNICATIONS DIRECTOR,"32,250.01",2016,"","","","BOND,CHRISTOPHER J"
,OFFICE OF THE MAJORITY WHIP,2016Q3,PERSONNEL COMPENSATION,"","BRAVO, MATTHEW",07/01/16,09/30/16,DEPUTY DIRECTOR OF FLOOR OPERA,"30,000.00",2016,"","","","BRAVO, MATTHEW"
,OFFICE OF THE MAJORITY WHIP,2016Q3,PERSONNEL COMPENSATION,"","CAVAZOS,ANDREW J",07/01/16,09/30/16,ASST TO THE CHIEF OF STAFF,"14,750.01",2016,"","","","CAVAZOS,ANDREW J"
,OFFICE OF THE MAJORITY WHIP,2016Q3,PERSONNEL COMPENSATION,"","DEASE,ALEXANDRA E",07/01/16,09/30/16,STAFF ASSISTANT,"8,000.01",2016,"","","","DEASE,ALEXANDRA E"
,OFFICE OF THE MAJORITY WHIP,2016Q3,PERSONNEL COMPENSATION,"","GOSNELL,ELLEN C",07/12/16,09/30/16,STAFF ASSISTANT,"7,720.26",2016,"","","","GOSNELL,ELLEN C"
,OFFICE OF THE MAJORITY WHIP,2016Q3,PERSONNEL COMPENSATION,"","HAMILTON,PARKER",07/01/16,09/30/16,COS TO THE CHIEF DEP WHIP,"30,000.00",2016,"","","","HAMILTON,PARKER"
,OFFICE OF THE MAJORITY WHIP,2016Q3,PERSONNEL COMPENSATION,"","HODGSON,CHRISTOPHER M",07/01/16,09/30/16,DEPUTY FLOOR DIRECTOR,"21,125.01",2016,"","","","HODGSON,CHRISTOPHER M"
,OFFICE OF THE MAJORITY WHIP,2016Q3,PERSONNEL COMPENSATION,"","HORTON, BRETT H",07/01/16,09/30/16,CHIEF OF STAFF,"42,825.00",2016,"","","","HORTON, BRETT H"
,OFFICE OF THE MAJORITY WHIP,2016Q3,PERSONNEL COMPENSATION,"","HUDAK,KELLEY K",07/01/16,09/30/16,BUSINESS COALITIONS COORD,"20,999.99",2016,"","","","HUDAK,KELLEY K"
,OFFICE OF THE MAJORITY WHIP,2016Q3,PERSONNEL COMPENSATION,"","HUGHES,WILLIAM J",07/01/16,09/30/16,POLICY DIRECTOR,"42,674.01",2016,"","","","HUGHES,WILLIAM J"
,OFFICE OF THE MAJORITY WHIP,2016Q3,PERSONNEL COMPENSATION,"","JEWELL,MATTHEW L",07/01/16,09/30/16,STAFF ASSISTANT,"11,999.99",2016,"","","","JEWELL,MATTHEW L"
,OFFICE OF THE MAJORITY WHIP,2016Q3,PERSONNEL COMPENSATION,"","NAPIER,BENJAMIN W",07/01/16,09/30/16,FLOOR ASSISTANT,"17,000.00",2016,"","","","NAPIER,BENJAMIN W"
,OFFICE OF THE MAJORITY WHIP,2016Q3,PERSONNEL COMPENSATION,"","PLANNING,DAVID M",07/01/16,09/30/16,SPECIAL ASST TO CHIEF DEP WHIP,"7,500.00",2016,"","","","PLANNING,DAVID M"
,OFFICE OF THE MAJORITY WHIP,2016Q3,PERSONNEL COMPENSATION,"","REISER,MARTIN G",07/01/16,09/30/16,LEGISLATIVE COUNSEL,"33,750.00",2016,"","","","REISER,MARTIN G"
,OFFICE OF THE MAJORITY WHIP,2016Q3,PERSONNEL COMPENSATION,"","REISING,JOHN B",07/01/16,09/30/16,DIRECTOR OF OPERATIONS,"22,374.99",2016,"","","","REISING,JOHN B"
,OFFICE OF THE MAJORITY WHIP,2016Q3,PERSONNEL COMPENSATION,"","SADLOSKY,DANIEL J",07/01/16,09/30/16,POLICY ASSISTANT,"23,000.00",2016,"","","","SADLOSKY,DANIEL J"
,OFFICE OF THE MAJORITY WHIP,2016Q3,PERSONNEL COMPENSATION,"","TATUM,THOMAS J",07/01/16,09/30/16,DEPUTY COMMUNICATIONS DIRECTOR,"15,000.00",2016,"","","","TATUM,THOMAS J"
,OFFICE OF THE MAJORITY WHIP,2016Q3,PERSONNEL COMPENSATION,"","TRUEMAN,LAURA",07/01/16,09/30/16,SR. POL ADV & CONSER COAL CORD,"30,000.00",2016,"","","","TRUEMAN,LAURA"
,OFFICE OF THE MAJORITY WHIP,2016Q3,PERSONNEL COMPENSATION,"","ZULKOSKY,ERIC T",07/01/16,09/30/16,DIR OF MEMBER SVS & POLICY ADV,"7,500.00",2016,"","","","ZULKOSKY,ERIC T"
,OFFICE OF THE MAJORITY WHIP,2016Q3,TRAVEL,07-14,CITIBANK GOV CARD SERVICE,06/20/16,06/20/16,COMMERCIAL TRANSPORTATION,643.20,2016,AP,Accounts payable,E0422126,CITIBANK GOV CARD SERVICE
,OFFICE OF THE MAJORITY WHIP,2016Q3,TRAVEL,07-14,CITIBANK GOV CARD SERVICE,06/28/16,06/28/16,COMMERCIAL TRANSPORTATION,406.00,2016,AP,Accounts payable,E0422126,CITIBANK GOV CARD SERVICE
,OFFICE OF THE MAJORITY WHIP,2016Q3,TRAVEL,07-18,"TRUEMAN, LAURA",04/20/16,06/22/16,TAXI/PARKING/TOLLS,140.65,2016,AP,Accounts payable,E0422138,"TRUEMAN, LAURA"
,OFFICE OF THE MAJORITY WHIP,2016Q3,TRAVEL,08-24,CITIBANK GOV CARD SERVICE,06/30/16,07/05/16,LODGING,634.53,2016,AP,Accounts payable,E0435144,CITIBANK GOV CARD SERVICE
,OFFICE OF THE MAJORITY WHIP,2016Q3,TRAVEL,09-13,"HORTON, BRETT H",06/29/16,07/05/16,MEALS,146.38,2016,AP,Accounts payable,E0439835,"HORTON, BRETT H"
,OFFICE OF THE MAJORITY WHIP,2016Q3,TRAVEL,09-13,"HORTON, BRETT H",06/29/16,07/05/16,CAR RENTAL,273.06,2016,AP,Accounts payable,E0439835,"HORTON, BRETT H"
,OFFICE OF THE MAJORITY WHIP,2016Q3,TRAVEL,09-13,"HORTON, BRETT H",07/01/16,07/05/16,GASOLINE,33.81,2016,AP,Accounts payable,E0439835,"HORTON, BRETT H"
,OFFICE OF THE MAJORITY WHIP,2016Q3,TRAVEL,09-13,"HORTON, BRETT H",06/29/16,07/05/16,TAXI/PARKING/TOLLS,155.94,2016,AP,Accounts payable,E0439835,"HORTON, BRETT H"
,OFFICE OF THE MAJORITY WHIP,2016Q3,TRAVEL,09-14,"GOSNELL, ELLEN C",07/12/16,07/19/16,PRIVATE AUTO MILEAGE,90.18,2016,AP,Accounts payable,E0439822,"GOSNELL, ELLEN C"
,OFFICE OF THE MAJORITY WHIP,2016Q3,TRAVEL,09-14,"GOSNELL, ELLEN C",08/02/16,08/25/16,PRIVATE AUTO MILEAGE,12.96,2016,AP,Accounts payable,E0439822,"GOSNELL, ELLEN C"
,OFFICE OF THE MAJORITY WHIP,2016Q3,TRAVEL,09-27,CITIBANK GOV CARD SERVICE,08/10/16,08/10/16,COMMERCIAL TRANSPORTATION,162.09,2016,AP,Accounts payable,E0445046,CITIBANK GOV CARD SERVICE
,OFFICE OF THE MAJORITY WHIP,2016Q3,TRAVEL,09-27,CITIBANK GOV CARD SERVICE,08/09/16,08/11/16,LODGING,288.44,2016,AP,Accounts payable,E0445046,CITIBANK GOV CARD SERVICE
,OFFICE OF THE MAJORITY WHIP,2016Q3,TRAVEL,09-27,CITIBANK GOV CARD SERVICE,08/09/16,08/11/16,TAXI/PARKING/TOLLS,49.00,2016,AP,Accounts payable,E0445046,CITIBANK GOV CARD SERVICE
,OFFICE OF THE MAJORITY WHIP,2016Q3,"RENT, COMMUNICATION, UTILITIES",09-13,"HORTON, BRETT H",06/30/16,06/30/16,TELECOMSRV/EQ/TOLL CHARGE,14.95,2016,AP,Accounts payable,E0439835,"HORTON, BRETT H"
,OFFICE OF THE MAJORITY WHIP,2016Q3,SUPPLIES AND MATERIALS,07-18,ENGAGE LLC,07/01/16,01/02/17,PUBLICATIONS/REFERENCE MAT'L,"1,521.00",2016,AP,Accounts payable,E0422170,ENGAGE LLC
,OFFICE OF THE MAJORITY WHIP,2016Q3,SUPPLIES AND MATERIALS,07-19,CITI PCARD-AMAZON.COM AMZN.COM/BI,05/29/16,06/28/16,FOOD & BEVERAGE,38.83,2016,AP,Accounts payable,00868192,CITI PCARD-AMAZON.COM AMZN.COM/BI
,OFFICE OF THE MAJORITY WHIP,2016Q3,SUPPLIES AND MATERIALS,07-19,CITI PCARD-DEPOSITPHOTOS INC,05/29/16,06/28/16,PUBLICATIONS/REFERENCE MAT'L,99.00,2016,AP,Accounts payable,00868192,CITI PCARD-DEPOSITPHOTOS INC
,OFFICE OF THE MAJORITY WHIP,2016Q3,SUPPLIES AND MATERIALS,07-19,CITI PCARD-FS WALLS,05/29/16,06/28/16,PUBLICATIONS/REFERENCE MAT'L,100.00,2016,AP,Accounts payable,00868192,CITI PCARD-FS WALLS
,OFFICE OF THE MAJORITY WHIP,2016Q3,SUPPLIES AND MATERIALS,07-19,CITI PCARD-GAINAPP.COM,05/29/16,06/28/16,PUBLICATIONS/REFERENCE MAT'L,97.91,2016,AP,Accounts payable,00868192,CITI PCARD-GAINAPP.COM
,OFFICE OF THE MAJORITY WHIP,2016Q3,SUPPLIES AND MATERIALS,07-19,CITI PCARD-POND,05/29/16,06/28/16,SOFTWARE LESS THAN $500,66.00,2016,AP,Accounts payable,00868192,CITI PCARD-POND
,OFFICE OF THE MAJORITY WHIP,2016Q3,SUPPLIES AND MATERIALS,08-18,CITI PCARD-PREMIUMBEAT.COM,06/28/16,07/28/16,SOFTWARE LESS THAN $500,147.00,2016,AP,Accounts payable,00875846,CITI PCARD-PREMIUMBEAT.COM
,OFFICE OF THE MAJORITY WHIP,2016Q3,SUPPLIES AND MATERIALS,09-13,ICONSTITUENT LLC,09/01/16,09/30/16,PUBLICATIONS/REFERENCE MAT'L,500.00,2016,AP,Accounts payable,E0439825,ICONSTITUENT LLC
,OFFICE OF THE MAJORITY WHIP,2016Q3,SUPPLIES AND MATERIALS,09-13,QUENCH,07/26/16,09/30/16,WATER,205.50,2016,AP,Accounts payable,E0439841,QUENCH
,OFFICE OF THE MINORITY WHIP,2016Q3,PERSONNEL COMPENSATION,"","ABOUCHAR, KEITH S",07/01/16,09/30/16,SENIOR POLICY ADVISOR,"35,000.01",2016,"","","","ABOUCHAR, KEITH S"
,OFFICE OF THE MINORITY WHIP,2016Q3,PERSONNEL COMPENSATION,"","AVILES,DANIELLE R",07/01/16,09/30/16,DEPUTY FLOOR DIRECTOR,"18,750.00",2016,"","","","AVILES,DANIELLE R"
,OFFICE OF THE MINORITY WHIP,2016Q3,PERSONNEL COMPENSATION,"","COLLINS, MICHAEL E",07/01/16,09/30/16,CHIEF DEPUTY WHIP,"10,625.01",2016,"","","","COLLINS, MICHAEL E"
,OFFICE OF THE MINORITY WHIP,2016Q3,PERSONNEL COMPENSATION,"","CORTINA,JOSEPH B",07/01/16,09/30/16,SPECIAL ASSISTANT,"7,250.01",2016,"","","","CORTINA,JOSEPH B"
,OFFICE OF THE MINORITY WHIP,2016Q3,PERSONNEL COMPENSATION,"","CORTINA,JOSEPH B",06/01/16,07/31/16,SPECIAL ASSISTANT (OVERTIME),"1,610.32",2016,"","","","CORTINA,JOSEPH B"
,OFFICE OF THE MINORITY WHIP,2016Q3,PERSONNEL COMPENSATION,"","COVEY-BRANDT, ALEXIS",07/01/16,09/30/16,CHIEF OF STAFF,"43,125.00",2016,"","","","COVEY-BRANDT, ALEXIS"
,OFFICE OF THE MINORITY WHIP,2016Q3,PERSONNEL COMPENSATION,"","DAVIS,ANNALIESE E",07/01/16,09/30/16,PRESS AND RESEARCH ASSISTANT,"12,609.99",2016,"","","","DAVIS,ANNALIESE E"
,OFFICE OF THE MINORITY WHIP,2016Q3,PERSONNEL COMPENSATION,"","DWYER, STEPHEN",07/01/16,09/30/16,DIGITAL DIR & POLICY ADV,"17,250.00",2016,"","","","DWYER, STEPHEN"
,OFFICE OF THE MINORITY WHIP,2016Q3,PERSONNEL COMPENSATION,"","FRY,COURTNEY",07/01/16,09/30/16,DEP OUTREACH DIR & MEM SER ADV,"28,749.99",2016,"","","","FRY,COURTNEY"
,OFFICE OF THE MINORITY WHIP,2016Q3,PERSONNEL COMPENSATION,"","GOFF,SHUWANZA R",07/01/16,09/30/16,FLOOR DIRECTOR,"28,749.99",2016,"","","","GOFF,SHUWANZA R"
,OFFICE OF THE MINORITY WHIP,2016Q3,PERSONNEL COMPENSATION,"","GRANT,KATHRYN L",07/01/16,09/30/16,COMM DIR AND SR ADVISOR,"33,750.00",2016,"","","","GRANT,KATHRYN L"
,OFFICE OF THE MINORITY WHIP,2016Q3,PERSONNEL COMPENSATION,"","LEUSCHEN, JAMES P",07/01/16,09/30/16,SENIOR POLICY ADVISOR,"35,000.01",2016,"","","","LEUSCHEN, JAMES P"
,OFFICE OF THE MINORITY WHIP,2016Q3,PERSONNEL COMPENSATION,"","MACDONALD,CHARLENE",07/01/16,09/30/16,SENIOR POLICY ADVISOR,"30,000.00",2016,"","","","MACDONALD,CHARLENE"
,OFFICE OF THE MINORITY WHIP,2016Q3,PERSONNEL COMPENSATION,"","MAHR,THOMAS",07/01/16,09/30/16,POLICY DIRECTOR,"39,999.99",2016,"","","","MAHR,THOMAS"
,OFFICE OF THE MINORITY WHIP,2016Q3,PERSONNEL COMPENSATION,"","MITTLER,MICHELLE",07/01/16,09/30/16,DIR OF SCHEDLNG & SPEC EVENTS,"20,000.01",2016,"","","","MITTLER,MICHELLE"
,OFFICE OF THE MINORITY WHIP,2016Q3,PERSONNEL COMPENSATION,"","NELSON,CAITLIN M",07/01/16,09/30/16,STAFF ASSISTANT,"6,249.99",2016,"","","","NELSON,CAITLIN M"
,OFFICE OF THE MINORITY WHIP,2016Q3,PERSONNEL COMPENSATION,"","NELSON,CAITLIN M",06/01/16,08/31/16,STAFF ASSISTANT (OVERTIME),"2,181.46",2016,"","","","NELSON,CAITLIN M"
,OFFICE OF THE MINORITY WHIP,2016Q3,PERSONNEL COMPENSATION,"","OPARIL,MARIA A",07/01/16,09/30/16,STAFF ASSISTANT,"6,249.99",2016,"","","","OPARIL,MARIA A"
,OFFICE OF THE MINORITY WHIP,2016Q3,PERSONNEL COMPENSATION,"","OPARIL,MARIA A",06/01/16,08/31/16,STAFF ASSISTANT (OVERTIME),"2,271.62",2016,"","","","OPARIL,MARIA A"
,OFFICE OF THE MINORITY WHIP,2016Q3,PERSONNEL COMPENSATION,"","REPKO,MARY F",07/01/16,09/30/16,SENIOR POLICY ADVISOR,"35,000.01",2016,"","","","REPKO,MARY F"
,OFFICE OF THE MINORITY WHIP,2016Q3,PERSONNEL COMPENSATION,"","ROMICK, BRIAN",07/01/16,09/30/16,DEPUTY CHIEF OF STAFF,"42,500.01",2016,"","","","ROMICK, BRIAN"
,OFFICE OF THE MINORITY WHIP,2016Q3,PERSONNEL COMPENSATION,"","ROWE,DEBORAH M",07/01/16,09/30/16,EXECUTIVE ASSISTANT/OFC MGR,"12,609.99",2016,"","","","ROWE,DEBORAH M"
,OFFICE OF THE MINORITY WHIP,2016Q3,PERSONNEL COMPENSATION,"","SAEZ,MARIEL S",07/01/16,09/30/16,PRESS SECRETARY,"19,749.99",2016,"","","","SAEZ,MARIEL S"
,OFFICE OF THE MINORITY WHIP,2016Q3,PERSONNEL COMPENSATION,"","SALAZAR, RAYMOND J",07/01/16,09/30/16,FLOOR ASSISTANT,"13,749.99",2016,"","","","SALAZAR, RAYMOND J"
,OFFICE OF THE MINORITY WHIP,2016Q3,PERSONNEL COMPENSATION,"","SILVERBERG,DANIEL I",07/01/16,09/30/16,SENIOR POLICY ADVISOR,"17,750.01",2016,"","","","SILVERBERG,DANIEL I"
,OFFICE OF THE MINORITY WHIP,2016Q3,PERSONNEL COMPENSATION,"","URRABAZO,CLAUDIA",07/01/16,09/30/16,DEP. DIR OF MBR SER & OUTR ADV,"23,000.01",2016,"","","","URRABAZO,CLAUDIA"
,OFFICE OF THE MINORITY WHIP,2016Q3,PERSONNEL COMPENSATION,"","WEISSMANN, ADAM",07/01/16,09/30/16,SPEECHWRITER,"18,750.00",2016,"","","","WEISSMANN, ADAM"
,OFFICE OF THE MINORITY WHIP,2016Q3,TRAVEL,09-20,"NELSON, CAITLIN M",06/09/16,06/09/16,TAXI/PARKING/TOLLS,9.14,2016,AP,Accounts payable,E0442625,"NELSON, CAITLIN M"
,OFFICE OF THE MINORITY WHIP,2016Q3,TRAVEL,09-20,"AVILES,DANIELLE R",06/23/16,06/23/16,TAXI/PARKING/TOLLS,9.00,2016,AP,Accounts payable,E0442635,"AVILES,DANIELLE R"
,OFFICE OF THE MINORITY WHIP,2016Q3,TRAVEL,09-20,"AVILES,DANIELLE R",06/23/16,06/23/16,TAXI/PARKING/TOLLS,12.00,2016,AP,Accounts payable,E0442638,"AVILES,DANIELLE R"
,OFFICE OF THE MINORITY WHIP,2016Q3,TRAVEL,09-20,"AVILES,DANIELLE R",06/21/16,06/21/16,TAXI/PARKING/TOLLS,13.00,2016,AP,Accounts payable,E0442640,"AVILES,DANIELLE R"
,OFFICE OF THE MINORITY WHIP,2016Q3,TRAVEL,09-20,"MITTLER,MICHELLE",06/23/16,06/23/16,TAXI/PARKING/TOLLS,10.88,2016,AP,Accounts payable,E0442645,"MITTLER,MICHELLE"
,OFFICE OF THE MINORITY WHIP,2016Q3,TRAVEL,09-20,"AVILES,DANIELLE R",06/14/16,06/14/16,TAXI/PARKING/TOLLS,8.29,2016,AP,Accounts payable,E0442661,"AVILES,DANIELLE R"
,OFFICE OF THE MINORITY WHIP,2016Q3,TRAVEL,09-21,"MITTLER,MICHELLE",09/08/16,09/08/16,TAXI/PARKING/TOLLS,20.24,2016,AP,Accounts payable,E0442654,"MITTLER,MICHELLE"
,OFFICE OF THE MINORITY WHIP,2016Q3,TRAVEL,09-21,"NELSON, CAITLIN M",06/23/16,06/23/16,TAXI/PARKING/TOLLS,15.78,2016,AP,Accounts payable,E0442657,"NELSON, CAITLIN M"
,OFFICE OF THE MINORITY WHIP,2016Q3,PRINTING AND REPRODUCTION,09-20,CITI PCARD-CANVA FOR WORK MONTHLY,07/29/16,08/28/16,PRINTING & REPRODUCTION,12.95,2016,AP,Accounts payable,00881022,CITI PCARD-CANVA FOR WORK MONTHLY
,DEMOCRATIC CAUCUS,2016Q3,PERSONNEL COMPENSATION,"","ALVI,HINA R",07/01/16,09/30/16,SHARED EMPLOYEE,"7,500.00",2016,"","","","ALVI,HINA R"
,DEMOCRATIC CAUCUS,2016Q3,PERSONNEL COMPENSATION,"","ARMENDARIZ JR,ANTONIO",09/13/16,09/30/16,PRESS SECRETARY,"2,250.00",2016,"","","","ARMENDARIZ JR,ANTONIO"
,DEMOCRATIC CAUCUS,2016Q3,PERSONNEL COMPENSATION,"","BACKEMEYER,COURTNEY G",07/01/16,09/30/16,COMMUNICTNS DIR TO VICE CHRMN,"8,000.01",2016,"","","","BACKEMEYER,COURTNEY G"
,DEMOCRATIC CAUCUS,2016Q3,PERSONNEL COMPENSATION,"","CARRILLO,MANUEL J",07/01/16,09/30/16,OPERATIONS AND EVENTS COOR,"14,250.00",2016,"","","","CARRILLO,MANUEL J"
,DEMOCRATIC CAUCUS,2016Q3,PERSONNEL COMPENSATION,"","CASEY, KEVIN",07/01/16,09/30/16,POLICY DIRECTOR / VICE CHAIR,"21,750.00",2016,"","","","CASEY, KEVIN"
,DEMOCRATIC CAUCUS,2016Q3,PERSONNEL COMPENSATION,"","DELANEY, ERIC L",07/01/16,09/30/16,SR. ADVISOR FOR MBR SERV,"13,500.00",2016,"","","","DELANEY, ERIC L"
,DEMOCRATIC CAUCUS,2016Q3,PERSONNEL COMPENSATION,"","GOLDFARB,SARAH L",07/01/16,09/30/16,COMMUNICATIONS DIRECTOR,"15,833.33",2016,"","","","GOLDFARB,SARAH L"
,DEMOCRATIC CAUCUS,2016Q3,PERSONNEL COMPENSATION,"","HORTA,CHRISTOFER",07/01/16,09/30/16,STAFF ASSISTANT,"6,999.99",2016,"","","","HORTA,CHRISTOFER"
,DEMOCRATIC CAUCUS,2016Q3,PERSONNEL COMPENSATION,"","HORTA,CHRISTOFER",06/15/16,08/30/16,STAFF ASSISTANT (OVERTIME),"1,087.75",2016,"","","","HORTA,CHRISTOFER"
,DEMOCRATIC CAUCUS,2016Q3,PERSONNEL COMPENSATION,"","KEATING, KATHERINE E",07/01/16,09/30/16,SHARED EMPLOYEE,"18,999.99",2016,"","","","KEATING, KATHERINE E"
,DEMOCRATIC CAUCUS,2016Q3,PERSONNEL COMPENSATION,"","LOPEZ-SANDOVAL, ELIZABETH",07/01/16,08/19/16,DEPUTY PRESS SECRETARY,"5,036.11",2016,"","","","LOPEZ-SANDOVAL, ELIZABETH"
,DEMOCRATIC CAUCUS,2016Q3,PERSONNEL COMPENSATION,"","LOPEZ-SANDOVAL, ELIZABETH",08/01/16,08/19/16,DEPUTY PRESS SECRETARY (OTHER COMPENSATION),719.44,2016,"","","","LOPEZ-SANDOVAL, ELIZABETH"
,DEMOCRATIC CAUCUS,2016Q3,PERSONNEL COMPENSATION,"","MARTINEZ,ANTHONY M",07/01/16,09/30/16,DIGITAL STRATEGIST,"12,249.99",2016,"","","","MARTINEZ,ANTHONY M"
,DEMOCRATIC CAUCUS,2016Q3,PERSONNEL COMPENSATION,"","MARTINEZ,GRISELLA M",07/01/16,09/30/16,POLICY DIRECTOR,"20,250.00",2016,"","","","MARTINEZ,GRISELLA M"
,DEMOCRATIC CAUCUS,2016Q3,PERSONNEL COMPENSATION,"","MCCLUSKIE,SEAN E",07/01/16,09/30/16,CHIEF OF STAFF,"31,591.67",2016,"","","","MCCLUSKIE,SEAN E"
,DEMOCRATIC CAUCUS,2016Q3,PERSONNEL COMPENSATION,"","NADA,BASMAH Y",09/13/16,09/30/16,PRESS ASSISTANT,"1,650.00",2016,"","","","NADA,BASMAH Y"
,DEMOCRATIC CAUCUS,2016Q3,PERSONNEL COMPENSATION,"","NORIEGA,EMILY J",07/01/16,09/30/16,ADV FOR MEMBER SERVICES,"9,249.99",2016,"","","","NORIEGA,EMILY J"
,DEMOCRATIC CAUCUS,2016Q3,PERSONNEL COMPENSATION,"","NSIAH,JOSEPH K",07/01/16,09/30/16,POLICY ADVISOR,"11,750.01",2016,"","","","NSIAH,JOSEPH K"
,DEMOCRATIC CAUCUS,2016Q3,PERSONNEL COMPENSATION,"","PEREZ-SANCHEZ,NOEL",07/01/16,09/30/16,ADVISOR FOR MBR. SERVICES,"11,250.00",2016,"","","","PEREZ-SANCHEZ,NOEL"
,DEMOCRATIC CAUCUS,2016Q3,PERSONNEL COMPENSATION,"","RODRIGUEZ-CIAMPOLI,FABIOLA",07/01/16,09/30/16,EXECUTIVE DIRECTOR,"36,249.99",2016,"","","","RODRIGUEZ-CIAMPOLI,FABIOLA"
,DEMOCRATIC CAUCUS,2016Q3,PERSONNEL COMPENSATION,"","SACHSE,ANDREW M",07/01/16,09/30/16,STAFF ASSISTANT,"8,750.01",2016,"","","","SACHSE,ANDREW M"
,DEMOCRATIC CAUCUS,2016Q3,PERSONNEL COMPENSATION,"","SALAZAR,MIGUEL R",06/20/16,09/30/16,PRESS SECRETARY,"13,747.21",2016,"","","","SALAZAR,MIGUEL R"
,DEMOCRATIC CAUCUS,2016Q3,PERSONNEL COMPENSATION,"","SHARMA,MOH R",07/01/16,09/30/16,SENIOR POLICY ADVISOR,"14,499.99",2016,"","","","SHARMA,MOH R"
,DEMOCRATIC CAUCUS,2016Q3,PERSONNEL COMPENSATION,"","SHEFFEY,TRE'SHONDA S",07/01/16,09/30/16,STAFF ASSISTANT,"6,999.99",2016,"","","","SHEFFEY,TRE'SHONDA S"
,DEMOCRATIC CAUCUS,2016Q3,PERSONNEL COMPENSATION,"","SHEFFEY,TRE'SHONDA S",06/01/16,08/30/16,STAFF ASSISTANT (OVERTIME),785.88,2016,"","","","SHEFFEY,TRE'SHONDA S"
,DEMOCRATIC CAUCUS,2016Q3,PERSONNEL COMPENSATION,"","WOODRUM,JEREMY S",07/01/16,09/30/16,"LEGISLATIVE DIR., VICE CHAIR","10,749.99",2016,"","","","WOODRUM,JEREMY S"
,DEMOCRATIC CAUCUS,2016Q3,TRAVEL,07-20,"MARTINEZ, ANTHONY M",07/15/16,07/16/16,COMMERCIAL TRANSPORTATION,534.20,2016,AP,Accounts payable,E0424565,"MARTINEZ, ANTHONY M"
,DEMOCRATIC CAUCUS,2016Q3,TRAVEL,07-20,"MARTINEZ, ANTHONY M",07/16/16,07/16/16,COMMERCIAL TRANSPORTATION,2.50,2016,AP,Accounts payable,E0424565,"MARTINEZ, ANTHONY M"
,DEMOCRATIC CAUCUS,2016Q3,TRAVEL,07-20,"MARTINEZ, ANTHONY M",07/15/16,07/16/16,LODGING,144.58,2016,AP,Accounts payable,E0424565,"MARTINEZ, ANTHONY M"
,DEMOCRATIC CAUCUS,2016Q3,TRAVEL,07-20,"MARTINEZ, ANTHONY M",07/15/15,07/15/16,MEALS,11.00,2016,AP,Accounts payable,E0424565,"MARTINEZ, ANTHONY M"
,DEMOCRATIC CAUCUS,2016Q3,TRAVEL,07-20,"MARTINEZ, ANTHONY M",07/15/16,07/15/16,MEALS,18.34,2016,AP,Accounts payable,E0424565,"MARTINEZ, ANTHONY M"
,DEMOCRATIC CAUCUS,2016Q3,TRAVEL,07-20,"MARTINEZ, ANTHONY M",07/16/16,07/16/16,MEALS,17.79,2016,AP,Accounts payable,E0424565,"MARTINEZ, ANTHONY M"
,DEMOCRATIC CAUCUS,2016Q3,TRAVEL,07-20,"MARTINEZ, ANTHONY M",07/15/16,07/15/16,TAXI/PARKING/TOLLS,46.00,2016,AP,Accounts payable,E0424565,"MARTINEZ, ANTHONY M"
,DEMOCRATIC CAUCUS,2016Q3,TRAVEL,09-14,"SALAZAR, MIGUEL R",08/05/16,08/05/16,TAXI/PARKING/TOLLS,23.09,2016,AP,Accounts payable,E0439516,"SALAZAR, MIGUEL R"
,DEMOCRATIC CAUCUS,2016Q3,TRAVEL,09-21,"MARTINEZ, ANTHONY M",07/15/15,07/15/16,MEALS,-11.00,2016,AP,Accounts payable,00881115,"MARTINEZ, ANTHONY M"
,DEMOCRATIC CAUCUS,2016Q3,TRAVEL,09-21,"MARTINEZ, ANTHONY M",07/15/16,07/15/16,MEALS,11.00,2016,AP,Accounts payable,00881115,"MARTINEZ, ANTHONY M"
,DEMOCRATIC CAUCUS,2016Q3,"RENT, COMMUNICATION, UTILITIES",07-19,CITI PCARD-AMAZON MKTPLACE PMTS,05/29/16,06/28/16,POSTAGE / COURIER / BOX RENTAL,7.93,2016,AP,Accounts payable,00868192,CITI PCARD-AMAZON MKTPLACE PMTS
,DEMOCRATIC CAUCUS,2016Q3,"RENT, COMMUNICATION, UTILITIES",07-19,CITI PCARD-UPS,05/29/16,06/28/16,POSTAGE / COURIER / BOX RENTAL,167.88,2016,AP,Accounts payable,00868192,CITI PCARD-UPS
,DEMOCRATIC CAUCUS,2016Q3,"RENT, COMMUNICATION, UTILITIES",08-18,CITI PCARD-AMAZON MKTPLACE PMTS,06/28/16,07/28/16,POSTAGE / COURIER / BOX RENTAL,9.13,2016,AP,Accounts payable,00875846,CITI PCARD-AMAZON MKTPLACE PMTS
,DEMOCRATIC CAUCUS,2016Q3,OTHER SERVICES,07-19,CITI PCARD-CLASSICLEANERS-LONGWOR,05/29/16,06/28/16,LAUNDRY SERVICES,254.97,2016,AP,Accounts payable,00868192,CITI PCARD-CLASSICLEANERS-LONGWOR
,DEMOCRATIC CAUCUS,2016Q3,OTHER SERVICES,08-18,CITI PCARD-NETROOTS NATION,06/28/16,07/28/16,TRAINING,360.74,2016,AP,Accounts payable,00875846,CITI PCARD-NETROOTS NATION
,DEMOCRATIC CAUCUS,2016Q3,SUPPLIES AND MATERIALS,07-19,CITI PCARD-BETHESDA BAGELS OF DUP,05/29/16,06/28/16,FOOD & BEVERAGE,"4,681.27",2016,AP,Accounts payable,00868192,CITI PCARD-BETHESDA BAGELS OF DUP
,DEMOCRATIC CAUCUS,2016Q3,SUPPLIES AND MATERIALS,07-19,CITI PCARD-CREAMERY DD,05/29/16,06/28/16,FOOD & BEVERAGE,9.00,2016,AP,Accounts payable,00868192,CITI PCARD-CREAMERY DD
,DEMOCRATIC CAUCUS,2016Q3,SUPPLIES AND MATERIALS,07-19,CITI PCARD-HARRIS TEETER,05/29/16,06/28/16,FOOD & BEVERAGE,"1,585.98",2016,AP,Accounts payable,00868192,CITI PCARD-HARRIS TEETER
,DEMOCRATIC CAUCUS,2016Q3,SUPPLIES AND MATERIALS,07-19,CITI PCARD-MAILCHIMP,05/29/16,06/28/16,PUBLICATIONS/REFERENCE MAT'L,50.00,2016,AP,Accounts payable,00868192,CITI PCARD-MAILCHIMP
,DEMOCRATIC CAUCUS,2016Q3,SUPPLIES AND MATERIALS,07-19,CITI PCARD-SAINT GERMAIN CATERING,05/29/16,06/28/16,FOOD & BEVERAGE,"4,354.67",2016,AP,Accounts payable,00868192,CITI PCARD-SAINT GERMAIN CATERING
,DEMOCRATIC CAUCUS,2016Q3,SUPPLIES AND MATERIALS,07-19,CITI PCARD-WHOLEFDS,05/29/16,06/28/16,FOOD & BEVERAGE,13.98,2016,AP,Accounts payable,00868192,CITI PCARD-WHOLEFDS
,DEMOCRATIC CAUCUS,2016Q3,SUPPLIES AND MATERIALS,07-23,DEER PARK,06/30/16,06/30/16,WATER,29.99,2016,AP,Accounts payable,00870713,DEER PARK
,DEMOCRATIC CAUCUS,2016Q3,SUPPLIES AND MATERIALS,08-18,CITI PCARD-AMAZON MKTPLACE PMTS,06/28/16,07/28/16,FOOD & BEVERAGE,42.28,2016,AP,Accounts payable,00875846,CITI PCARD-AMAZON MKTPLACE PMTS
,DEMOCRATIC CAUCUS,2016Q3,SUPPLIES AND MATERIALS,08-18,CITI PCARD-AMAZON MKTPLACE PMTS,06/28/16,07/28/16,PUBLICATIONS/REFERENCE MAT'L,11.51,2016,AP,Accounts payable,00875846,CITI PCARD-AMAZON MKTPLACE PMTS
,DEMOCRATIC CAUCUS,2016Q3,SUPPLIES AND MATERIALS,08-18,CITI PCARD-BETHESDA BAGELS OF DUP,06/28/16,07/28/16,FOOD & BEVERAGE,"2,440.97",2016,AP,Accounts payable,00875846,CITI PCARD-BETHESDA BAGELS OF DUP
,DEMOCRATIC CAUCUS,2016Q3,SUPPLIES AND MATERIALS,08-18,CITI PCARD-HARRIS TEETER,06/28/16,07/28/16,FOOD & BEVERAGE,608.89,2016,AP,Accounts payable,00875846,CITI PCARD-HARRIS TEETER
,DEMOCRATIC CAUCUS,2016Q3,SUPPLIES AND MATERIALS,08-18,CITI PCARD-MAILCHIMP,06/28/16,07/28/16,PUBLICATIONS/REFERENCE MAT'L,50.00,2016,AP,Accounts payable,00875846,CITI PCARD-MAILCHIMP
,DEMOCRATIC CAUCUS,2016Q3,SUPPLIES AND MATERIALS,08-18,CITI PCARD-PAYPAL RUMALUTIONS,06/28/16,07/28/16,FOOD & BEVERAGE,46.25,2016,AP,Accounts payable,00875846,CITI PCARD-PAYPAL RUMALUTIONS
,DEMOCRATIC CAUCUS,2016Q3,SUPPLIES AND MATERIALS,08-18,CITI PCARD-SAINT GERMAIN CATERING,06/28/16,07/28/16,FOOD & BEVERAGE,"1,630.09",2016,AP,Accounts payable,00875846,CITI PCARD-SAINT GERMAIN CATERING
,DEMOCRATIC CAUCUS,2016Q3,SUPPLIES AND MATERIALS,08-30,DEER PARK,07/31/16,07/31/16,WATER,94.74,2016,AP,Accounts payable,00876129,DEER PARK
,DEMOCRATIC CAUCUS,2016Q3,SUPPLIES AND MATERIALS,09-19,"RODRIGUEZ-CIAMPOLI,FABIOLA",09/07/16,09/07/16,FOOD & BEVERAGE,392.03,2016,AP,Accounts payable,E0441672,"RODRIGUEZ-CIAMPOLI,FABIOLA"
,DEMOCRATIC CAUCUS,2016Q3,SUPPLIES AND MATERIALS,09-20,CITI PCARD-AMAZON MKTPLACE PMTS,07/29/16,08/28/16,FOOD & BEVERAGE,81.72,2016,AP,Accounts payable,00881022,CITI PCARD-AMAZON MKTPLACE PMTS
,DEMOCRATIC CAUCUS,2016Q3,SUPPLIES AND MATERIALS,09-20,CITI PCARD-MAILCHIMP,07/29/16,08/28/16,PUBLICATIONS/REFERENCE MAT'L,50.00,2016,AP,Accounts payable,00881022,CITI PCARD-MAILCHIMP
,DEMOCRATIC CAUCUS,2016Q3,SUPPLIES AND MATERIALS,09-21,DEER PARK,08/31/16,08/31/16,WATER,29.99,2016,AP,Accounts payable,00881113,DEER PARK
,REPUBLICAN CONFERENCE,2016Q3,PERSONNEL COMPENSATION,"","BUCHELI,DANIEL C",07/01/16,09/30/16,SPECIALTY MEDIA PRESS SECRETAR,"13,749.99",2016,"","","","BUCHELI,DANIEL C"
,REPUBLICAN CONFERENCE,2016Q3,PERSONNEL COMPENSATION,"","CONSLER,NICHOLAS R",07/01/16,08/15/16,FELLOW,"1,500.00",2016,"","","","CONSLER,NICHOLAS R"
,REPUBLICAN CONFERENCE,2016Q3,PERSONNEL COMPENSATION,"","CROCKER,NICHOLAS L",07/01/16,09/30/16,MEMBER SERVICES COORDINATOR,"12,500.01",2016,"","","","CROCKER,NICHOLAS L"
,REPUBLICAN CONFERENCE,2016Q3,PERSONNEL COMPENSATION,"","DAINES,ANNE C",07/01/16,09/30/16,COMMUNICATIONS ASSISTANT,"10,041.66",2016,"","","","DAINES,ANNE C"
,REPUBLICAN CONFERENCE,2016Q3,PERSONNEL COMPENSATION,"","DEUTSCH,JEREMY",07/01/16,09/30/16,CHIEF OF STAFF,"30,041.67",2016,"","","","DEUTSCH,JEREMY"
,REPUBLICAN CONFERENCE,2016Q3,PERSONNEL COMPENSATION,"","DUPPLER,MARTHA C",07/01/16,09/30/16,COALITIONS DIRECTOR,"23,750.01",2016,"","","","DUPPLER,MARTHA C"
,REPUBLICAN CONFERENCE,2016Q3,PERSONNEL COMPENSATION,"","FUHS,MOLLY B",08/01/16,09/30/16,PRESS SECRETARY,"2,500.00",2016,"","","","FUHS,MOLLY B"
,REPUBLICAN CONFERENCE,2016Q3,PERSONNEL COMPENSATION,"","HALL, MIKAYLA M",07/01/16,09/30/16,SPEECH WRITER,"12,999.99",2016,"","","","HALL, MIKAYLA M"
,REPUBLICAN CONFERENCE,2016Q3,PERSONNEL COMPENSATION,"","HAUCK,KARA",07/01/16,09/30/16,COMMUNICATIONS DIRECTOR,"23,750.01",2016,"","","","HAUCK,KARA"
,REPUBLICAN CONFERENCE,2016Q3,PERSONNEL COMPENSATION,"","HODSON,NATHAN M",07/01/16,09/30/16,DEPUTY CHIEF OF STAFF,"38,200.91",2016,"","","","HODSON,NATHAN M"
,REPUBLICAN CONFERENCE,2016Q3,PERSONNEL COMPENSATION,"","KING,EMILY P",06/22/16,09/30/16,DEPUTY SCHEDULER,"10,305.57",2016,"","","","KING,EMILY P"
,REPUBLICAN CONFERENCE,2016Q3,PERSONNEL COMPENSATION,"","MARK,REBECCA",07/01/16,09/30/16,SR. ADVISOR TECH POLICY/WOMEN,"19,250.01",2016,"","","","MARK,REBECCA"
,REPUBLICAN CONFERENCE,2016Q3,PERSONNEL COMPENSATION,"","MCMULLIN,DAVID E",07/01/16,08/07/16,POLICY DIRECTOR,"13,463.89",2016,"","","","MCMULLIN,DAVID E"
,REPUBLICAN CONFERENCE,2016Q3,PERSONNEL COMPENSATION,"","NEIGHBORS,MATTHEW P",07/01/16,07/31/16,STAFF ASSISTANT,"2,500.00",2016,"","","","NEIGHBORS,MATTHEW P"
,REPUBLICAN CONFERENCE,2016Q3,PERSONNEL COMPENSATION,"","PEREZ,MEGAN C",07/01/16,09/30/16,POLICY ADVISOR,"9,977.78",2016,"","","","PEREZ,MEGAN C"
,REPUBLICAN CONFERENCE,2016Q3,PERSONNEL COMPENSATION,"","POWELL,JARED K",08/01/16,09/30/16,STAFF ASSISTANT,"6,416.66",2016,"","","","POWELL,JARED K"
,REPUBLICAN CONFERENCE,2016Q3,PERSONNEL COMPENSATION,"","ROGERS,SARAH E",07/01/16,09/30/16,DIRECTOR OF MEMBER SERVICES,"27,999.99",2016,"","","","ROGERS,SARAH E"
,REPUBLICAN CONFERENCE,2016Q3,PERSONNEL COMPENSATION,"","ROOS,AMBER E",07/01/16,09/30/16,FINANCE ASSISTANT,"2,325.00",2016,"","","","ROOS,AMBER E"
,REPUBLICAN CONFERENCE,2016Q3,PERSONNEL COMPENSATION,"","ROSS, JOHN E",07/01/16,09/30/16,FINANCE DIRECTOR,"2,649.99",2016,"","","","ROSS, JOHN E"
,REPUBLICAN CONFERENCE,2016Q3,PERSONNEL COMPENSATION,"","SMENTEK,DAVID",07/01/16,09/30/16,POLICY COORDINATOR,"11,250.00",2016,"","","","SMENTEK,DAVID"
,REPUBLICAN CONFERENCE,2016Q3,PERSONNEL COMPENSATION,"","STEVENS,PAMELA R",08/01/16,09/30/16,DIRECTOR OF MEDIA AFFAIRS,"17,150.00",2016,"","","","STEVENS,PAMELA R"
,REPUBLICAN CONFERENCE,2016Q3,PERSONNEL COMPENSATION,"","SUNDAY,JESSICA M",07/01/16,07/31/16,SCHEDULER,"2,863.33",2016,"","","","SUNDAY,JESSICA M"
,REPUBLICAN CONFERENCE,2016Q3,PERSONNEL COMPENSATION,"","SUNDAY,JESSICA M",08/01/16,09/30/16,DIR OF OPERATIONS & CULTURE,"7,893.33",2016,"","","","SUNDAY,JESSICA M"
,REPUBLICAN CONFERENCE,2016Q3,PERSONNEL COMPENSATION,"","THORNE,DRAY A",07/01/16,09/30/16,SYSTEMS ADMINISTRATOR,"4,500.00",2016,"","","","THORNE,DRAY A"
,REPUBLICAN CONFERENCE,2016Q3,TRAVEL,08-16,"MARK,REBECCA",07/08/16,07/08/16,PRIVATE AUTO MILEAGE,9.29,2016,AP,Accounts payable,E0432590,"MARK,REBECCA"
,REPUBLICAN CONFERENCE,2016Q3,TRAVEL,08-16,"MARK,REBECCA",06/02/16,06/02/16,TAXI/PARKING/TOLLS,12.00,2016,AP,Accounts payable,E0432590,"MARK,REBECCA"
,REPUBLICAN CONFERENCE,2016Q3,TRAVEL,08-16,"MARK,REBECCA",07/08/16,07/08/16,TAXI/PARKING/TOLLS,12.00,2016,AP,Accounts payable,E0432590,"MARK,REBECCA"
,REPUBLICAN CONFERENCE,2016Q3,TRAVEL,08-22,"HAUCK, KARA",08/08/16,08/12/16,COMMERCIAL TRANSPORTATION,549.20,2016,AP,Accounts payable,E0433113,"HAUCK, KARA"
,REPUBLICAN CONFERENCE,2016Q3,TRAVEL,08-29,"BUCHELI,DANIEL C",08/09/16,08/21/16,COMMERCIAL TRANSPORTATION,379.25,2016,AP,Accounts payable,E0435527,"BUCHELI,DANIEL C"
,REPUBLICAN CONFERENCE,2016Q3,TRAVEL,08-29,"BUCHELI,DANIEL C",08/12/16,08/12/16,COMMERCIAL TRANSPORTATION,25.00,2016,AP,Accounts payable,E0435527,"BUCHELI,DANIEL C"
,REPUBLICAN CONFERENCE,2016Q3,TRAVEL,08-29,"BUCHELI,DANIEL C",08/10/16,08/12/16,LODGING,240.95,2016,AP,Accounts payable,E0435527,"BUCHELI,DANIEL C"
,REPUBLICAN CONFERENCE,2016Q3,TRAVEL,08-29,"BUCHELI,DANIEL C",08/10/16,08/16/16,MEALS,140.76,2016,AP,Accounts payable,E0435527,"BUCHELI,DANIEL C"
,REPUBLICAN CONFERENCE,2016Q3,TRAVEL,08-29,"BUCHELI,DANIEL C",08/09/16,08/12/16,CAR RENTAL,149.91,2016,AP,Accounts payable,E0435527,"BUCHELI,DANIEL C"
,REPUBLICAN CONFERENCE,2016Q3,TRAVEL,08-29,"BUCHELI,DANIEL C",08/12/16,08/12/16,GASOLINE,10.57,2016,AP,Accounts payable,E0435527,"BUCHELI,DANIEL C"
,REPUBLICAN CONFERENCE,2016Q3,TRAVEL,08-29,"BUCHELI,DANIEL C",08/16/16,08/17/16,PRIVATE AUTO MILEAGE,137.70,2016,AP,Accounts payable,E0435527,"BUCHELI,DANIEL C"
,REPUBLICAN CONFERENCE,2016Q3,TRAVEL,08-30,"DEUTSCH,JEREMY",08/25/16,08/25/16,COMMERCIAL TRANSPORTATION,283.00,2016,AP,Accounts payable,E0436313,"DEUTSCH,JEREMY"
,REPUBLICAN CONFERENCE,2016Q3,TRAVEL,09-16,SEAN R PARNELL,08/29/16,08/31/16,CONSULT TRAVEL / RELATED EXP,"1,429.14",2016,AP,Accounts payable,E0440416,SEAN R PARNELL
,REPUBLICAN CONFERENCE,2016Q3,TRAVEL,09-27,"DUPPLER, MARTHA C",05/06/16,05/06/16,PRIVATE AUTO MILEAGE,264.28,2016,AP,Accounts payable,E0444990,"DUPPLER, MARTHA C"
,REPUBLICAN CONFERENCE,2016Q3,TRAVEL,09-27,"DUPPLER, MARTHA C",01/13/16,09/21/16,TAXI/PARKING/TOLLS,83.57,2016,AP,Accounts payable,E0444990,"DUPPLER, MARTHA C"
,REPUBLICAN CONFERENCE,2016Q3,"RENT, COMMUNICATION, UTILITIES",07-19,"CITI PCARD-DC PARTY RENTALS, LLC",05/29/16,06/28/16,EQUIP RENTAL (EFF 1/3/03),"1,353.00",2016,AP,Accounts payable,00868192,"CITI PCARD-DC PARTY RENTALS, LLC"
,REPUBLICAN CONFERENCE,2016Q3,"RENT, COMMUNICATION, UTILITIES",08-09,TYTAN CREATES LLC,08/03/16,08/03/16,RECORDING (OUTSIDE),"2,000.00",2016,AP,Accounts payable,E0429949,TYTAN CREATES LLC
,REPUBLICAN CONFERENCE,2016Q3,"RENT, COMMUNICATION, UTILITIES",08-22,FEDEX,07/22/16,07/25/16,POSTAGE / COURIER / BOX RENTAL,19.48,2016,AP,Accounts payable,E0433655,FEDEX
,REPUBLICAN CONFERENCE,2016Q3,"RENT, COMMUNICATION, UTILITIES",08-29,FEDEX,07/25/16,07/28/16,POSTAGE / COURIER / BOX RENTAL,28.06,2016,AP,Accounts payable,E0435526,FEDEX
,REPUBLICAN CONFERENCE,2016Q3,"RENT, COMMUNICATION, UTILITIES",08-31,JEREMY TRAUB,08/19/16,08/19/16,RECORDING (OUTSIDE),"1,100.00",2016,AP,Accounts payable,E0435525,JEREMY TRAUB
,REPUBLICAN CONFERENCE,2016Q3,"RENT, COMMUNICATION, UTILITIES",09-08,AIRWIND CREATIVE,08/31/16,08/31/16,RECORDING (OUTSIDE),450.00,2016,AP,Accounts payable,E0438384,AIRWIND CREATIVE
,REPUBLICAN CONFERENCE,2016Q3,"RENT, COMMUNICATION, UTILITIES",09-15,FEDEX,08/15/16,08/15/16,POSTAGE / COURIER / BOX RENTAL,47.10,2016,AP,Accounts payable,E0440234,FEDEX
,REPUBLICAN CONFERENCE,2016Q3,PRINTING AND REPRODUCTION,07-19,CITI PCARD-FACEBOOK,05/29/16,06/28/16,ADVERTISEMENTS,326.04,2016,AP,Accounts payable,00868192,CITI PCARD-FACEBOOK
,REPUBLICAN CONFERENCE,2016Q3,PRINTING AND REPRODUCTION,07-19,CITI PCARD-GETTY IMAGES,05/29/16,06/28/16,PRINTING & REPRODUCTION,199.00,2016,AP,Accounts payable,00868192,CITI PCARD-GETTY IMAGES
,REPUBLICAN CONFERENCE,2016Q3,PRINTING AND REPRODUCTION,07-19,CITI PCARD-WWW.ISTOCK.COM,05/29/16,06/28/16,PRINTING & REPRODUCTION,170.00,2016,AP,Accounts payable,00868192,CITI PCARD-WWW.ISTOCK.COM
,REPUBLICAN CONFERENCE,2016Q3,PRINTING AND REPRODUCTION,08-18,"CITI PCARD-AGILE PRINTING CO, INC",06/28/16,07/28/16,PRINTING & REPRODUCTION,295.85,2016,AP,Accounts payable,00875846,"CITI PCARD-AGILE PRINTING CO, INC"
,REPUBLICAN CONFERENCE,2016Q3,PRINTING AND REPRODUCTION,08-18,CITI PCARD-COLORGRAPHIC PRINTING,06/28/16,07/28/16,PRINTING & REPRODUCTION,"1,486.05",2016,AP,Accounts payable,00875846,CITI PCARD-COLORGRAPHIC PRINTING
,REPUBLICAN CONFERENCE,2016Q3,PRINTING AND REPRODUCTION,08-18,CITI PCARD-FACEBOOK,06/28/16,07/28/16,ADVERTISEMENTS,63.36,2016,AP,Accounts payable,00875846,CITI PCARD-FACEBOOK
,REPUBLICAN CONFERENCE,2016Q3,PRINTING AND REPRODUCTION,08-18,CITI PCARD-GETTY IMAGES,06/28/16,07/28/16,PRINTING & REPRODUCTION,99.00,2016,AP,Accounts payable,00875846,CITI PCARD-GETTY IMAGES
,REPUBLICAN CONFERENCE,2016Q3,PRINTING AND REPRODUCTION,09-06,COLORGRAPHIC PRINTING INC,08/23/16,08/23/16,PRINTING & REPRODUCTION,"5,039.18",2016,AP,Accounts payable,E0437269,COLORGRAPHIC PRINTING INC
,REPUBLICAN CONFERENCE,2016Q3,PRINTING AND REPRODUCTION,09-16,AGILE PRINTING COMPANY INC,07/11/16,07/11/16,PRINTING & REPRODUCTION,"3,994.48",2016,AP,Accounts payable,00877059,AGILE PRINTING COMPANY INC
,REPUBLICAN CONFERENCE,2016Q3,PRINTING AND REPRODUCTION,09-16,SHARP ELECTRONICS CORPORATION,04/01/16,07/19/16,PRINTING & REPRODUCTION,"1,177.56",2016,AP,Accounts payable,00878566,SHARP ELECTRONICS CORPORATION
,REPUBLICAN CONFERENCE,2016Q3,PRINTING AND REPRODUCTION,09-20,CITI PCARD-COLORGRAPHIC PRINTING,07/29/16,08/28/16,PRINTING & REPRODUCTION,"4,046.08",2016,AP,Accounts payable,00881022,CITI PCARD-COLORGRAPHIC PRINTING
,REPUBLICAN CONFERENCE,2016Q3,PRINTING AND REPRODUCTION,09-20,CITI PCARD-FACEBK,07/29/16,08/28/16,ADVERTISEMENTS,326.85,2016,AP,Accounts payable,00881022,CITI PCARD-FACEBK
,REPUBLICAN CONFERENCE,2016Q3,PRINTING AND REPRODUCTION,09-20,CITI PCARD-GETTY IMAGES,07/29/16,08/28/16,PRINTING & REPRODUCTION,99.00,2016,AP,Accounts payable,00881022,CITI PCARD-GETTY IMAGES
,REPUBLICAN CONFERENCE,2016Q3,OTHER SERVICES,07-11,SEAN R PARNELL,06/01/16,06/30/16,CONSULTANT CONTRACT SERVICE,"4,500.00",2016,AP,Accounts payable,E0420455,SEAN R PARNELL
,REPUBLICAN CONFERENCE,2016Q3,OTHER SERVICES,08-09,SEAN R PARNELL,07/01/16,07/31/16,CONSULTANT CONTRACT SERVICE,"4,500.00",2016,AP,Accounts payable,E0429950,SEAN R PARNELL
,REPUBLICAN CONFERENCE,2016Q3,OTHER SERVICES,09-16,SEAN R PARNELL,08/15/16,09/30/16,CONSULTANT CONTRACT SERVICE,"8,000.00",2016,AP,Accounts payable,E0440416,SEAN R PARNELL
,REPUBLICAN CONFERENCE,2016Q3,SUPPLIES AND MATERIALS,07-05,ARAMARK REFRESHMENT SERVICES,07/01/16,07/31/16,FOOD & BEVERAGE,108.00,2016,AP,Accounts payable,E0418465,ARAMARK REFRESHMENT SERVICES
,REPUBLICAN CONFERENCE,2016Q3,SUPPLIES AND MATERIALS,07-15,HAGUE QUALITY WATER OF MD INC,07/01/16,07/31/16,WATER,63.00,2016,AP,Accounts payable,E0421723,HAGUE QUALITY WATER OF MD INC
,REPUBLICAN CONFERENCE,2016Q3,SUPPLIES AND MATERIALS,07-19,CITI PCARD-ADOBE CREATIVE CLOUD,05/29/16,06/28/16,SOFTWARE LESS THAN $500,370.07,2016,AP,Accounts payable,00868192,CITI PCARD-ADOBE CREATIVE CLOUD
,REPUBLICAN CONFERENCE,2016Q3,SUPPLIES AND MATERIALS,07-19,CITI PCARD-BOB EVANS REST,05/29/16,06/28/16,FOOD & BEVERAGE,"1,067.00",2016,AP,Accounts payable,00868192,CITI PCARD-BOB EVANS REST
,REPUBLICAN CONFERENCE,2016Q3,SUPPLIES AND MATERIALS,07-19,CITI PCARD-CHICK-FIL-A,05/29/16,06/28/16,FOOD & BEVERAGE,"5,453.65",2016,AP,Accounts payable,00868192,CITI PCARD-CHICK-FIL-A
,REPUBLICAN CONFERENCE,2016Q3,SUPPLIES AND MATERIALS,07-19,CITI PCARD-CORNER BAKERY,05/29/16,06/28/16,FOOD & BEVERAGE,"1,361.40",2016,AP,Accounts payable,00868192,CITI PCARD-CORNER BAKERY
,REPUBLICAN CONFERENCE,2016Q3,SUPPLIES AND MATERIALS,07-19,CITI PCARD-EZCATERBAJA FRESH MEX,05/29/16,06/28/16,FOOD & BEVERAGE,269.79,2016,AP,Accounts payable,00868192,CITI PCARD-EZCATERBAJA FRESH MEX
,REPUBLICAN CONFERENCE,2016Q3,SUPPLIES AND MATERIALS,07-19,CITI PCARD-MANGIALARDO & SONS,05/29/16,06/28/16,FOOD & BEVERAGE,228.80,2016,AP,Accounts payable,00868192,CITI PCARD-MANGIALARDO & SONS
,REPUBLICAN CONFERENCE,2016Q3,SUPPLIES AND MATERIALS,07-19,CITI PCARD-NEW YORK TIMES DIGITAL,05/29/16,06/28/16,PUBLICATIONS/REFERENCE MAT'L,15.00,2016,AP,Accounts payable,00868192,CITI PCARD-NEW YORK TIMES DIGITAL
,REPUBLICAN CONFERENCE,2016Q3,SUPPLIES AND MATERIALS,07-19,CITI PCARD-PANERA BREAD,05/29/16,06/28/16,FOOD & BEVERAGE,147.17,2016,AP,Accounts payable,00868192,CITI PCARD-PANERA BREAD
,REPUBLICAN CONFERENCE,2016Q3,SUPPLIES AND MATERIALS,07-19,CITI PCARD-QDOBA MEXICAN GRIL,05/29/16,06/28/16,FOOD & BEVERAGE,"2,418.41",2016,AP,Accounts payable,00868192,CITI PCARD-QDOBA MEXICAN GRIL
,REPUBLICAN CONFERENCE,2016Q3,SUPPLIES AND MATERIALS,07-19,CITI PCARD-SQ ZORBA'S CAFE,05/29/16,06/28/16,FOOD & BEVERAGE,507.50,2016,AP,Accounts payable,00868192,CITI PCARD-SQ ZORBA'S CAFE
,REPUBLICAN CONFERENCE,2016Q3,SUPPLIES AND MATERIALS,07-19,"CITI PCARD-WE, THE PIZZA",05/29/16,06/28/16,FOOD & BEVERAGE,241.00,2016,AP,Accounts payable,00868192,"CITI PCARD-WE, THE PIZZA"
,REPUBLICAN CONFERENCE,2016Q3,SUPPLIES AND MATERIALS,07-23,DEER PARK,06/30/16,06/30/16,WATER,679.20,2016,AP,Accounts payable,00870713,DEER PARK
,REPUBLICAN CONFERENCE,2016Q3,SUPPLIES AND MATERIALS,07-27,ARAMARK REFRESHMENT SERVICES,07/22/16,07/22/16,FOOD & BEVERAGE,"1,877.75",2016,AP,Accounts payable,E0426647,ARAMARK REFRESHMENT SERVICES
,REPUBLICAN CONFERENCE,2016Q3,SUPPLIES AND MATERIALS,07-27,ARAMARK REFRESHMENT SERVICES,08/01/16,08/31/16,FOOD & BEVERAGE,108.00,2016,AP,Accounts payable,E0426648,ARAMARK REFRESHMENT SERVICES
,REPUBLICAN CONFERENCE,2016Q3,SUPPLIES AND MATERIALS,08-08,HAGUE QUALITY WATER OF MD INC,08/06/16,09/05/16,WATER,63.00,2016,AP,Accounts payable,E0429951,HAGUE QUALITY WATER OF MD INC
,REPUBLICAN CONFERENCE,2016Q3,SUPPLIES AND MATERIALS,08-18,CITI PCARD-ADOBE CREATIVE CLOUD,06/28/16,07/28/16,SOFTWARE LESS THAN $500,370.07,2016,AP,Accounts payable,00875846,CITI PCARD-ADOBE CREATIVE CLOUD
,REPUBLICAN CONFERENCE,2016Q3,SUPPLIES AND MATERIALS,08-18,CITI PCARD-CHICK-FIL-A,06/28/16,07/28/16,FOOD & BEVERAGE,"1,631.55",2016,AP,Accounts payable,00875846,CITI PCARD-CHICK-FIL-A
,REPUBLICAN CONFERENCE,2016Q3,SUPPLIES AND MATERIALS,08-18,CITI PCARD-HARRIS TEETER,06/28/16,07/28/16,FOOD & BEVERAGE,149.60,2016,AP,Accounts payable,00875846,CITI PCARD-HARRIS TEETER
,REPUBLICAN CONFERENCE,2016Q3,SUPPLIES AND MATERIALS,08-18,CITI PCARD-NEW YORK TIMES DIGITAL,06/28/16,07/28/16,PUBLICATIONS/REFERENCE MAT'L,15.00,2016,AP,Accounts payable,00875846,CITI PCARD-NEW YORK TIMES DIGITAL
,REPUBLICAN CONFERENCE,2016Q3,SUPPLIES AND MATERIALS,08-18,CITI PCARD-QDOBA MEXICAN GRIL,06/28/16,07/28/16,FOOD & BEVERAGE,299.80,2016,AP,Accounts payable,00875846,CITI PCARD-QDOBA MEXICAN GRIL
,REPUBLICAN CONFERENCE,2016Q3,SUPPLIES AND MATERIALS,08-18,CITI PCARD-SQ ZORBA'S CAFE,06/28/16,07/28/16,FOOD & BEVERAGE,386.50,2016,AP,Accounts payable,00875846,CITI PCARD-SQ ZORBA'S CAFE
,REPUBLICAN CONFERENCE,2016Q3,SUPPLIES AND MATERIALS,08-19,ARAMARK REFRESHMENT SERVICES,06/01/16,06/30/16,FOOD & BEVERAGE,108.00,2016,AP,Accounts payable,E0433114,ARAMARK REFRESHMENT SERVICES
,REPUBLICAN CONFERENCE,2016Q3,SUPPLIES AND MATERIALS,08-30,DEER PARK,07/31/16,07/31/16,WATER,563.88,2016,AP,Accounts payable,00876129,DEER PARK
,REPUBLICAN CONFERENCE,2016Q3,SUPPLIES AND MATERIALS,09-02,"HODSON, NATHAN",08/31/16,08/31/16,FOOD & BEVERAGE,"1,148.13",2016,AP,Accounts payable,E0437270,"HODSON, NATHAN"
,REPUBLICAN CONFERENCE,2016Q3,SUPPLIES AND MATERIALS,09-06,ARAMARK REFRESHMENT SERVICES,08/11/16,08/11/16,WATER,60.00,2016,AP,Accounts payable,E0437794,ARAMARK REFRESHMENT SERVICES
,REPUBLICAN CONFERENCE,2016Q3,SUPPLIES AND MATERIALS,09-07,HAGUE QUALITY WATER OF MD INC,09/06/16,10/05/16,WATER,63.00,2016,AP,Accounts payable,E0438894,HAGUE QUALITY WATER OF MD INC
,REPUBLICAN CONFERENCE,2016Q3,SUPPLIES AND MATERIALS,09-14,ARAMARK REFRESHMENT SERVICES,09/01/16,09/30/16,FOOD & BEVERAGE,108.00,2016,AP,Accounts payable,E0440235,ARAMARK REFRESHMENT SERVICES
,REPUBLICAN CONFERENCE,2016Q3,SUPPLIES AND MATERIALS,09-20,CITI PCARD-ADOBE CREATIVE CLOUD,07/29/16,08/28/16,SOFTWARE LESS THAN $500,370.07,2016,AP,Accounts payable,00881022,CITI PCARD-ADOBE CREATIVE CLOUD
,REPUBLICAN CONFERENCE,2016Q3,SUPPLIES AND MATERIALS,09-20,CITI PCARD-NEW YORK TIMES DIGITAL,07/29/16,08/28/16,PUBLICATIONS/REFERENCE MAT'L,15.00,2016,AP,Accounts payable,00881022,CITI PCARD-NEW YORK TIMES DIGITAL
,REPUBLICAN CONFERENCE,2016Q3,SUPPLIES AND MATERIALS,09-21,DEER PARK,08/31/16,08/31/16,WATER,364.55,2016,AP,Accounts payable,00881113,DEER PARK
,REPUBLICAN CONFERENCE,2016Q3,SUPPLIES AND MATERIALS,09-21,ARAMARK REFRESHMENT SERVICES,08/19/16,08/19/16,FOOD & BEVERAGE,"1,977.44",2016,AP,Accounts payable,E0443166,ARAMARK REFRESHMENT SERVICES
,REPUBLICAN CONFERENCE,2016Q3,SUPPLIES AND MATERIALS,09-29,POLITICO LLC,09/21/16,09/20/17,PUBLICATIONS/REFERENCE MAT'L,"8,840.00",2016,AP,Accounts payable,E0444992,POLITICO LLC
,REPUBLICAN CONFERENCE,2016Q3,OTHER SERVICES,09-08,THE CONGRESSIONAL INSTITUTE INC,12/10/15,12/11/15,TRAINING,"1,500.00",2015,AP,Accounts payable,E0438893,THE CONGRESSIONAL INSTITUTE INC
,CHIEF ADMIN OFCR OF THE HOUSE,2016Q3,EQUIPMENT,07-11,DELL MARKETING LP,06/10/16,06/10/16,"COMPUTER SOFTW PURCH LESS THAN $10,000","8,640.00",FISCAL YEAR 2016,AP,Accounts payable,00866270,DELL MARKETING LP
,CHIEF ADMIN OFCR OF THE HOUSE,2016Q3,EQUIPMENT,07-11,DELL MARKETING LP,06/10/16,06/10/16,"COMPUTER SOFTW PURCH LESS THAN $10,000 QTY - 3400","521,084.00",FISCAL YEAR 2016,AP,Accounts payable,00866270,DELL MARKETING LP
,CHIEF ADMIN OFCR OF THE HOUSE,2016Q3,PERSONNEL COMPENSATION,"","ABBOTT, JESSICA A",07/01/16,09/30/16,FINANCIAL ANALYST,"33,189.51",FISCAL YEAR 2016,"","","","ABBOTT, JESSICA A"
,CHIEF ADMIN OFCR OF THE HOUSE,2016Q3,PERSONNEL COMPENSATION,"","ABEL, TIMOTHY",07/01/16,09/30/16,SR TECHNICAL SUPPORT REP (A),"24,724.26",FISCAL YEAR 2016,"","","","ABEL, TIMOTHY"
,CHIEF ADMIN OFCR OF THE HOUSE,2016Q3,PERSONNEL COMPENSATION,"","ACUESTA,JULY J",07/01/16,09/30/16,SENIOR SYSTEMS ENGINEER,"28,397.01",FISCAL YEAR 2016,"","","","ACUESTA,JULY J"
,CHIEF ADMIN OFCR OF THE HOUSE,2016Q3,PERSONNEL COMPENSATION,"","ADDISON, TRACY",07/01/16,09/30/16,LOGISTICS & DIST SPEC (A),"11,972.25",FISCAL YEAR 2016,"","","","ADDISON, TRACY"
,CHIEF ADMIN OFCR OF THE HOUSE,2016Q3,PERSONNEL COMPENSATION,"","ADELAKUN, DEEN A",07/01/16,09/30/16,SR TECH SOLUTIONS ENGINEER,"23,340.00",FISCAL YEAR 2016,"","","","ADELAKUN, DEEN A"
,CHIEF ADMIN OFCR OF THE HOUSE,2016Q3,PERSONNEL COMPENSATION,"","ADENIJI,ADERONKE F",07/01/16,09/30/16,TEAM LEAD ASSURANCE &RISK MGMT,"33,762.75",FISCAL YEAR 2016,"","","","ADENIJI,ADERONKE F"
,CHIEF ADMIN OFCR OF THE HOUSE,2016Q3,PERSONNEL COMPENSATION,"","AGEE, MATTHEW P",07/01/16,09/30/16,RESOURCE MANAGER,"32,043.51",FISCAL YEAR 2016,"","","","AGEE, MATTHEW P"
,CHIEF ADMIN OFCR OF THE HOUSE,2016Q3,PERSONNEL COMPENSATION,"","AGNEW, ROSE M",07/01/16,09/30/16,SR PAYROLL & BENS GENERALIST,"21,498.24",FISCAL YEAR 2016,"","","","AGNEW, ROSE M"
,CHIEF ADMIN OFCR OF THE HOUSE,2016Q3,PERSONNEL COMPENSATION,"","AGNEW, ROSE M",06/01/16,06/30/16,SR PAYROLL & BENS GENERALIST (OVERTIME),124.03,FISCAL YEAR 2016,"","","","AGNEW, ROSE M"
,CHIEF ADMIN OFCR OF THE HOUSE,2016Q3,PERSONNEL COMPENSATION,"","AHMED,MUNEER",07/25/16,09/30/16,APPLICATION SYSTEMS ADMINISTRA,"23,077.27",FISCAL YEAR 2016,"","","","AHMED,MUNEER"
,CHIEF ADMIN OFCR OF THE HOUSE,2016Q3,PERSONNEL COMPENSATION,"","AHUJA, KALPANA A",07/01/16,09/30/16,DIRECTOR WEB SYSTEMS,"34,489.26",FISCAL YEAR 2016,"","","","AHUJA, KALPANA A"
,CHIEF ADMIN OFCR OF THE HOUSE,2016Q3,PERSONNEL COMPENSATION,"","ALBERS,BARBARA V",07/01/16,09/06/16,MANAGER WEB SERVICES,"23,077.27",FISCAL YEAR 2016,"","","","ALBERS,BARBARA V"
,CHIEF ADMIN OFCR OF THE HOUSE,2016Q3,PERSONNEL COMPENSATION,"","ALBERS,BARBARA V",09/01/16,09/06/16,MANAGER WEB SERVICES (OTHER COMPENSATION),"2,731.68",FISCAL YEAR 2016,"","","","ALBERS,BARBARA V"
,CHIEF ADMIN OFCR OF THE HOUSE,2016Q3,PERSONNEL COMPENSATION,"","ALEXANDER, GORDON",07/01/16,09/30/16,TECH SOLUTIONS ENGINEER,"18,757.74",FISCAL YEAR 2016,"","","","ALEXANDER, GORDON"
,CHIEF ADMIN OFCR OF THE HOUSE,2016Q3,PERSONNEL COMPENSATION,"","ALLEN,PATRICK R",06/27/16,09/30/16,DIRECTOR BUSINESS CONTINUITY,"38,008.37",FISCAL YEAR 2016,"","","","ALLEN,PATRICK R"
,CHIEF ADMIN OFCR OF THE HOUSE,2016Q3,PERSONNEL COMPENSATION,"","ALLISON, KEVIN M",07/01/16,09/30/16,LOGISTICS & DIST SPEC (A),"13,976.01",FISCAL YEAR 2016,"","","","ALLISON, KEVIN M"
,CHIEF ADMIN OFCR OF THE HOUSE,2016Q3,PERSONNEL COMPENSATION,"","ALSTON,MARK A",07/01/16,09/30/16,TECH SOLUTIONS ENGINEER,"18,356.49",FISCAL YEAR 2016,"","","","ALSTON,MARK A"
,CHIEF ADMIN OFCR OF THE HOUSE,2016Q3,PERSONNEL COMPENSATION,"","ALVEY, LISA M",07/01/16,09/30/16,FINANCIAL COUNSELOR,"21,400.50",FISCAL YEAR 2016,"","","","ALVEY, LISA M"
,CHIEF ADMIN OFCR OF THE HOUSE,2016Q3,PERSONNEL COMPENSATION,"","ALVEY, LISA M",08/01/16,08/31/16,FINANCIAL COUNSELOR (OVERTIME),123.46,FISCAL YEAR 2016,"","","","ALVEY, LISA M"
,CHIEF ADMIN OFCR OF THE HOUSE,2016Q3,PERSONNEL COMPENSATION,"","ANDERSEN, FREDERIC E",07/01/16,09/30/16,ASSISTANT DIRECTOR,"23,494.42",FISCAL YEAR 2016,"","","","ANDERSEN, FREDERIC E"
,CHIEF ADMIN OFCR OF THE HOUSE,2016Q3,PERSONNEL COMPENSATION,"","ANDERSON, DONTRELL",07/01/16,09/30/16,FINANCIAL COUNSELOR,"17,148.99",FISCAL YEAR 2016,"","","","ANDERSON, DONTRELL"
,CHIEF ADMIN OFCR OF THE HOUSE,2016Q3,PERSONNEL COMPENSATION,"","ANDREWS,THOMAS",07/01/16,09/30/16,VOICE & VIDEO BRANCH MGR (A),"35,756.25",FISCAL YEAR 2016,"","","","ANDREWS,THOMAS"
,CHIEF ADMIN OFCR OF THE HOUSE,2016Q3,PERSONNEL COMPENSATION,"","ANDREWS-MOBLEY, RACHELLE G",07/01/16,09/30/16,PRINCIPAL TECHNICAL TRAINER,"27,870.75",FISCAL YEAR 2016,"","","","ANDREWS-MOBLEY, RACHELLE G"
,CHIEF ADMIN OFCR OF THE HOUSE,2016Q3,PERSONNEL COMPENSATION,"","APPIAH,JOYCE S",07/01/16,09/30/16,SENIOR BENEFITS SPECIALIST,"26,847.51",FISCAL YEAR 2016,"","","","APPIAH,JOYCE S"
,CHIEF ADMIN OFCR OF THE HOUSE,2016Q3,PERSONNEL COMPENSATION,"","ARMSTRONG,JANCIERA C",07/01/16,09/30/16,BUDGET ANALYST,"28,235.01",FISCAL YEAR 2016,"","","","ARMSTRONG,JANCIERA C"
,CHIEF ADMIN OFCR OF THE HOUSE,2016Q3,PERSONNEL COMPENSATION,"","ARTHUR, CAMILLA S",07/01/16,09/30/16,ASSISTANT CAO,"42,102.75",FISCAL YEAR 2016,"","","","ARTHUR, CAMILLA S"
,CHIEF ADMIN OFCR OF THE HOUSE,2016Q3,PERSONNEL COMPENSATION,"","ASATA,HEATHER O",07/01/16,09/30/16,ADMINISTRATIVE SPECIALIST,"14,526.33",FISCAL YEAR 2016,"","","","ASATA,HEATHER O"
,CHIEF ADMIN OFCR OF THE HOUSE,2016Q3,PERSONNEL COMPENSATION,"","ATCHISON, DARRYL A",07/01/16,09/30/16,DEPUTY CHIEF ENGINEER,"32,615.25",FISCAL YEAR 2016,"","","","ATCHISON, DARRYL A"
,CHIEF ADMIN OFCR OF THE HOUSE,2016Q3,PERSONNEL COMPENSATION,"","AWAN, OMAR",07/01/16,07/31/16,SR BUSINESS PROCESS APPL SPEC,"12,342.42",FISCAL YEAR 2016,"","","","AWAN, OMAR"
,CHIEF ADMIN OFCR OF THE HOUSE,2016Q3,PERSONNEL COMPENSATION,"","AWAN, OMAR",08/01/16,09/30/16,PERF & CUST SVC STRAT ANALYST,"24,684.84",FISCAL YEAR 2016,"","","","AWAN, OMAR"
,CHIEF ADMIN OFCR OF THE HOUSE,2016Q3,PERSONNEL COMPENSATION,"","BAHAM,TODD",07/01/16,09/30/16,BROADCAST PRODUCTION TECHNICIA,"20,184.99",FISCAL YEAR 2016,"","","","BAHAM,TODD"
,CHIEF ADMIN OFCR OF THE HOUSE,2016Q3,PERSONNEL COMPENSATION,"","BAHAM,TODD",06/01/16,08/31/16,BROADCAST PRODUCTION TECHNICIA (OVERTIME),"1,251.85",FISCAL YEAR 2016,"","","","BAHAM,TODD"
,CHIEF ADMIN OFCR OF THE HOUSE,2016Q3,PERSONNEL COMPENSATION,"","BAILEY, DAVID E",07/01/16,09/30/16,SR TECHNICAL SUPPORT REP (A),"25,644.24",FISCAL YEAR 2016,"","","","BAILEY, DAVID E"
,CHIEF ADMIN OFCR OF THE HOUSE,2016Q3,PERSONNEL COMPENSATION,"","BAKER, DARRELL F",07/01/16,09/30/16,SR NETWORK COMM SPEC,"27,347.25",FISCAL YEAR 2016,"","","","BAKER, DARRELL F"
,CHIEF ADMIN OFCR OF THE HOUSE,2016Q3,PERSONNEL COMPENSATION,"","BANFIELD,KELLI C",07/01/16,09/30/16,BROADCAST ENGINEER/PROD SPEC,"22,421.25",FISCAL YEAR 2016,"","","","BANFIELD,KELLI C"
,CHIEF ADMIN OFCR OF THE HOUSE,2016Q3,PERSONNEL COMPENSATION,"","BANKS,BIANCA N",07/01/16,08/31/16,RETAIL INVENTORY SPECIALIST,"11,967.50",FISCAL YEAR 2016,"","","","BANKS,BIANCA N"
,CHIEF ADMIN OFCR OF THE HOUSE,2016Q3,PERSONNEL COMPENSATION,"","BANKS,BIANCA N",09/01/16,09/30/16,MANAGER,"6,857.58",FISCAL YEAR 2016,"","","","BANKS,BIANCA N"
,CHIEF ADMIN OFCR OF THE HOUSE,2016Q3,PERSONNEL COMPENSATION,"","BARBEE, GLENN",07/01/16,09/30/16,NETWORK TECHNICIAN,"23,340.00",FISCAL YEAR 2016,"","","","BARBEE, GLENN"
,CHIEF ADMIN OFCR OF THE HOUSE,2016Q3,PERSONNEL COMPENSATION,"","BARBEE,DONELL G",07/01/16,09/30/16,RETAIL INVENTORY SPECIALIST,"10,754.76",FISCAL YEAR 2016,"","","","BARBEE,DONELL G"
,CHIEF ADMIN OFCR OF THE HOUSE,2016Q3,PERSONNEL COMPENSATION,"","BARBOUR, JUNE M",07/01/16,09/30/16,BROADCAST PRODUCTION TECHNICIA,"20,184.99",FISCAL YEAR 2016,"","","","BARBOUR, JUNE M"
,CHIEF ADMIN OFCR OF THE HOUSE,2016Q3,PERSONNEL COMPENSATION,"","BARBOUR, JUNE M",06/01/16,06/30/16,BROADCAST PRODUCTION TECHNICIA (OVERTIME),97.04,FISCAL YEAR 2016,"","","","BARBOUR, JUNE M"
,CHIEF ADMIN OFCR OF THE HOUSE,2016Q3,PERSONNEL COMPENSATION,"","BARCINIAK, DANA L",07/01/16,09/30/16,SENIOR PHOTOGRAPHER,"22,618.74",FISCAL YEAR 2016,"","","","BARCINIAK, DANA L"
,CHIEF ADMIN OFCR OF THE HOUSE,2016Q3,PERSONNEL COMPENSATION,"","BAREFOOT,JEFFREY",07/01/16,09/30/16,BROADCAST ENGINEER/PROD SPEC,"20,726.83",FISCAL YEAR 2016,"","","","BAREFOOT,JEFFREY"
,CHIEF ADMIN OFCR OF THE HOUSE,2016Q3,PERSONNEL COMPENSATION,"","BAREFOOT,JEFFREY",06/01/16,06/30/16,BROADCAST ENGINEER/PROD SPEC. (OVERTIME),29.67,FISCAL YEAR 2016,"","","","BAREFOOT,JEFFREY"
,CHIEF ADMIN OFCR OF THE HOUSE,2016Q3,PERSONNEL COMPENSATION,"","BARNABAE, MONICA M",07/01/16,09/30/16,DIRECTOR-HOUSE CHILD CARE CNTR,"28,397.01",FISCAL YEAR 2016,"","","","BARNABAE, MONICA M"
,CHIEF ADMIN OFCR OF THE HOUSE,2016Q3,PERSONNEL COMPENSATION,"","BARR,PAUL",07/01/16,09/30/16,"SUPERVISOR,LOGISTICS & DIST (A","15,940.74",FISCAL YEAR 2016,"","","","BARR,PAUL"
,CHIEF ADMIN OFCR OF THE HOUSE,2016Q3,PERSONNEL COMPENSATION,"","BARRETT, ROBERT R",07/01/16,09/30/16,"DIRECTOR, ENTERPRISE APPLICATI","38,692.26",FISCAL YEAR 2016,"","","","BARRETT, ROBERT R"
,CHIEF ADMIN OFCR OF THE HOUSE,2016Q3,PERSONNEL COMPENSATION,"","BARTON,TISHA R",07/01/16,07/31/16,EXECUTIVE ASSISTANT,"6,188.58",FISCAL YEAR 2016,"","","","BARTON,TISHA R"
,CHIEF ADMIN OFCR OF THE HOUSE,2016Q3,PERSONNEL COMPENSATION,"","BARTON,TISHA R",08/01/16,09/30/16,SPECIAL ASSISTANT,"14,023.34",FISCAL YEAR 2016,"","","","BARTON,TISHA R"
,CHIEF ADMIN OFCR OF THE HOUSE,2016Q3,PERSONNEL COMPENSATION,"","BASILIO, TYRONE A",07/01/16,09/30/16,TECHNICAL SUPPORT REP,"20,591.01",FISCAL YEAR 2016,"","","","BASILIO, TYRONE A"
,CHIEF ADMIN OFCR OF THE HOUSE,2016Q3,PERSONNEL COMPENSATION,"","BATES, DEBORAH A",07/01/16,09/30/16,PRODUCTION/ENGINEER SPEC (TEMP,"7,750.91",FISCAL YEAR 2016,"","","","BATES, DEBORAH A"
,CHIEF ADMIN OFCR OF THE HOUSE,2016Q3,PERSONNEL COMPENSATION,"","BATH,GEORGE J",07/01/16,09/30/16,SENIOR ADVISOR,"42,102.75",FISCAL YEAR 2016,"","","","BATH,GEORGE J"
,CHIEF ADMIN OFCR OF THE HOUSE,2016Q3,PERSONNEL COMPENSATION,"","BEARDSLEE ,LEAH",07/01/16,09/30/16,DIGITAL MEDIA COORDINATOR,"13,943.49",FISCAL YEAR 2016,"","","","BEARDSLEE ,LEAH"
,CHIEF ADMIN OFCR OF THE HOUSE,2016Q3,PERSONNEL COMPENSATION,"","BEAUBIAN, TRACI R",07/01/16,09/30/16,CHIEF FINANCIAL OFFICER,"42,102.75",FISCAL YEAR 2016,"","","","BEAUBIAN, TRACI R"
,CHIEF ADMIN OFCR OF THE HOUSE,2016Q3,PERSONNEL COMPENSATION,"","BEIDEL, BERNARD E",07/01/16,09/30/16,"DIR, OFFICE OF EMPLOYEE ASSIST","42,102.75",FISCAL YEAR 2016,"","","","BEIDEL, BERNARD E"
,CHIEF ADMIN OFCR OF THE HOUSE,2016Q3,PERSONNEL COMPENSATION,"","BELL,FRANK E",07/01/16,09/30/16,SENIOR TECHNICAL ADVISOR,"35,126.01",FISCAL YEAR 2016,"","","","BELL,FRANK E"
,CHIEF ADMIN OFCR OF THE HOUSE,2016Q3,PERSONNEL COMPENSATION,"","BELL,TOCA R",07/01/16,09/30/16,ADMINISTRATIVE SPECIALIST,"10,625.01",FISCAL YEAR 2016,"","","","BELL,TOCA R"
,CHIEF ADMIN OFCR OF THE HOUSE,2016Q3,PERSONNEL COMPENSATION,"","BENN, PHILLIP F",07/01/16,09/30/16,ELECTRONICS TECHNICIAN (A),"23,803.26",FISCAL YEAR 2016,"","","","BENN, PHILLIP F"
,CHIEF ADMIN OFCR OF THE HOUSE,2016Q3,PERSONNEL COMPENSATION,"","BENN, PHILLIP F",06/01/16,07/31/16,ELECTRONICS TECHNICIAN (A) (OVERTIME),457.75,FISCAL YEAR 2016,"","","","BENN, PHILLIP F"
,CHIEF ADMIN OFCR OF THE HOUSE,2016Q3,PERSONNEL COMPENSATION,"","BENT,BENETO",07/01/16,09/30/16,JOURNEYMAN TEXTILE SPEC,"12,888.99",FISCAL YEAR 2016,"","","","BENT,BENETO"
,CHIEF ADMIN OFCR OF THE HOUSE,2016Q3,PERSONNEL COMPENSATION,"","BERGER, DONALD W",07/01/16,09/30/16,TECHNICAL DIRECTOR (A),"24,069.75",FISCAL YEAR 2016,"","","","BERGER, DONALD W"
,CHIEF ADMIN OFCR OF THE HOUSE,2016Q3,PERSONNEL COMPENSATION,"","BERGER, DONALD W",06/01/16,07/31/16,TECHNICAL DIRECTOR (A) (OVERTIME),254.58,FISCAL YEAR 2016,"","","","BERGER, DONALD W"
,CHIEF ADMIN OFCR OF THE HOUSE,2016Q3,PERSONNEL COMPENSATION,"","BERRY,JOSEPH B",07/01/16,09/30/16,SYSTEMS ENGINEER,"24,069.75",FISCAL YEAR 2016,"","","","BERRY,JOSEPH B"
,CHIEF ADMIN OFCR OF THE HOUSE,2016Q3,PERSONNEL COMPENSATION,"","BEST, CHARLENE",07/01/16,09/30/16,MANAGER (HOUSE ASSET SERVICES),"24,995.76",FISCAL YEAR 2016,"","","","BEST, CHARLENE"
,CHIEF ADMIN OFCR OF THE HOUSE,2016Q3,PERSONNEL COMPENSATION,"","BETHEA,LASHON L",07/01/16,09/30/16,TECHNICAL TRAINER,"26,383.74",FISCAL YEAR 2016,"","","","BETHEA,LASHON L"
,CHIEF ADMIN OFCR OF THE HOUSE,2016Q3,PERSONNEL COMPENSATION,"","BILLARD, MICHAEL A",07/01/16,09/30/16,COMMUNICATIONS SPEC,"25,920.99",FISCAL YEAR 2016,"","","","BILLARD, MICHAEL A"
,CHIEF ADMIN OFCR OF THE HOUSE,2016Q3,PERSONNEL COMPENSATION,"","BILLUPS, BRIAN E",07/01/16,09/30/16,NETWORK TECHNICIAN (A),"20,591.01",FISCAL YEAR 2016,"","","","BILLUPS, BRIAN E"
,CHIEF ADMIN OFCR OF THE HOUSE,2016Q3,PERSONNEL COMPENSATION,"","BINSTED,ANNE M",09/01/16,09/30/16,CHIEF OF STAFF,"14,034.25",FISCAL YEAR 2016,"","","","BINSTED,ANNE M"
,CHIEF ADMIN OFCR OF THE HOUSE,2016Q3,PERSONNEL COMPENSATION,"","BLAKLEY,JEFFREY S",07/01/16,09/30/16,DIRECTOR PHOTOGRAPHY,"26,292.51",FISCAL YEAR 2016,"","","","BLAKLEY,JEFFREY S"
,CHIEF ADMIN OFCR OF THE HOUSE,2016Q3,PERSONNEL COMPENSATION,"","BLAKNEY, HAROLD",07/01/16,09/30/16,SENIOR SYSTEMS ENGINEER,"38,929.74",FISCAL YEAR 2016,"","","","BLAKNEY, HAROLD"
,CHIEF ADMIN OFCR OF THE HOUSE,2016Q3,PERSONNEL COMPENSATION,"","BOGAN, DAVID S",07/01/16,09/30/16,"SUPERVISOR, RETAIL INVENTORY","20,591.01",FISCAL YEAR 2016,"","","","BOGAN, DAVID S"
,CHIEF ADMIN OFCR OF THE HOUSE,2016Q3,PERSONNEL COMPENSATION,"","BOGER, KELLY M",07/01/16,09/13/16,ASSET/INVENTORY COUNSELOR,"16,701.60",FISCAL YEAR 2016,"","","","BOGER, KELLY M"
,CHIEF ADMIN OFCR OF THE HOUSE,2016Q3,PERSONNEL COMPENSATION,"","BOGER, KELLY M",09/14/16,09/30/16,"SUPERVISOR, ASSET/INVENTORY","4,321.87",FISCAL YEAR 2016,"","","","BOGER, KELLY M"
,CHIEF ADMIN OFCR OF THE HOUSE,2016Q3,PERSONNEL COMPENSATION,"","BOGER, KELLY M",06/01/16,06/30/16,ASSET/INVENTORY COUNSELOR (OVERTIME),811.75,FISCAL YEAR 2016,"","","","BOGER, KELLY M"
,CHIEF ADMIN OFCR OF THE HOUSE,2016Q3,PERSONNEL COMPENSATION,"","BOLDIG, CHRISTOPHER R",06/01/16,09/30/16,ASSOCIATE ADMIN. COUNSEL,"30,555.42",FISCAL YEAR 2016,"","","","BOLDIG, CHRISTOPHER R"
,CHIEF ADMIN OFCR OF THE HOUSE,2016Q3,PERSONNEL COMPENSATION,"","BOOKER, CARLOS",07/01/16,09/30/16,SALES SPECIALIST,"10,957.26",FISCAL YEAR 2016,"","","","BOOKER, CARLOS"
,CHIEF ADMIN OFCR OF THE HOUSE,2016Q3,PERSONNEL COMPENSATION,"","BOONE, RUSSELL",07/01/16,09/30/16,TECHNICAL SUPPORT REP,"22,618.74",FISCAL YEAR 2016,"","","","BOONE, RUSSELL"
,CHIEF ADMIN OFCR OF THE HOUSE,2016Q3,PERSONNEL COMPENSATION,"","BOWERS,KAREN L",07/01/16,09/30/16,MANAGER,"23,142.75",FISCAL YEAR 2016,"","","","BOWERS,KAREN L"
,CHIEF ADMIN OFCR OF THE HOUSE,2016Q3,PERSONNEL COMPENSATION,"","BOWLDING, SONIA R",07/01/16,09/30/16,REC/WAREHOUSE SPEC (A),"11,668.50",FISCAL YEAR 2016,"","","","BOWLDING, SONIA R"
,CHIEF ADMIN OFCR OF THE HOUSE,2016Q3,PERSONNEL COMPENSATION,"","BOWLING-STOKES,CHAUNETTE L",07/01/16,09/30/16,MANAGEMENT ANALYST,"24,841.84",FISCAL YEAR 2016,"","","","BOWLING-STOKES,CHAUNETTE L"
,CHIEF ADMIN OFCR OF THE HOUSE,2016Q3,PERSONNEL COMPENSATION,"","BOWMAN,SHELIA",07/01/16,09/30/16,FINANCIAL COUNSELOR,"17,550.51",FISCAL YEAR 2016,"","","","BOWMAN,SHELIA"
,CHIEF ADMIN OFCR OF THE HOUSE,2016Q3,PERSONNEL COMPENSATION,"","BOWMAN,SHELIA",06/01/16,06/30/16,FINANCIAL COUNSELOR (OVERTIME),151.88,FISCAL YEAR 2016,"","","","BOWMAN,SHELIA"
,CHIEF ADMIN OFCR OF THE HOUSE,2016Q3,PERSONNEL COMPENSATION,"","BOYD, KRISTIE N",06/01/16,08/31/16,PHOTOGRAPHER/LAB TECH (TEMP),"13,105.40",FISCAL YEAR 2016,"","","","BOYD, KRISTIE N"
,CHIEF ADMIN OFCR OF THE HOUSE,2016Q3,PERSONNEL COMPENSATION,"","BOYD, PETRINA",07/01/16,09/30/16,SALES SPECIALIST,"12,145.74",FISCAL YEAR 2016,"","","","BOYD, PETRINA"
,CHIEF ADMIN OFCR OF THE HOUSE,2016Q3,PERSONNEL COMPENSATION,"","BOYLE, KEVIN J",07/01/16,09/30/16,SR BUSINESS PROCESS APPL SPEC,"40,200.00",FISCAL YEAR 2016,"","","","BOYLE, KEVIN J"
,CHIEF ADMIN OFCR OF THE HOUSE,2016Q3,PERSONNEL COMPENSATION,"","BRACKENS, ROBERT",07/01/16,09/30/16,BROADCAST PRODUCTION TECHNICIA,"22,421.25",FISCAL YEAR 2016,"","","","BRACKENS, ROBERT"
,CHIEF ADMIN OFCR OF THE HOUSE,2016Q3,PERSONNEL COMPENSATION,"","BRACKENS, ROBERT",06/01/16,07/31/16,BROADCAST PRODUCTION TECHNICIA (OVERTIME),"1,465.99",FISCAL YEAR 2016,"","","","BRACKENS, ROBERT"
,CHIEF ADMIN OFCR OF THE HOUSE,2016Q3,PERSONNEL COMPENSATION,"","BRADLEY,NATHANIEL R",07/01/16,09/30/16,"DIRECTOR, TECHNOLOGY SUPPORT","33,219.24",FISCAL YEAR 2016,"","","","BRADLEY,NATHANIEL R"
,CHIEF ADMIN OFCR OF THE HOUSE,2016Q3,PERSONNEL COMPENSATION,"","BRADY,JOHN R",07/01/16,09/30/16,JOURNEYMAN TEXTILE SPEC,"12,539.49",FISCAL YEAR 2016,"","","","BRADY,JOHN R"
,CHIEF ADMIN OFCR OF THE HOUSE,2016Q3,PERSONNEL COMPENSATION,"","BRADY,JOHN R",07/01/16,08/31/16,JOURNEYMAN TEXTILE SPEC (OVERTIME),753.57,FISCAL YEAR 2016,"","","","BRADY,JOHN R"
,CHIEF ADMIN OFCR OF THE HOUSE,2016Q3,PERSONNEL COMPENSATION,"","BRAXTON, BRANDON A",07/01/16,09/30/16,LOGISTICS & DIST SPEC (A),"11,668.50",FISCAL YEAR 2016,"","","","BRAXTON, BRANDON A"
,CHIEF ADMIN OFCR OF THE HOUSE,2016Q3,PERSONNEL COMPENSATION,"","BREWSTER III,JAMES E",07/01/16,09/30/16,LOGISTICS & DIST SPEC (A),"9,666.42",FISCAL YEAR 2016,"","","","BREWSTER III,JAMES E"
,CHIEF ADMIN OFCR OF THE HOUSE,2016Q3,PERSONNEL COMPENSATION,"","BREWSTER,CHRISTOPHER A",07/01/16,09/30/16,ADMINISTRATIVE COUNSEL,"42,102.75",FISCAL YEAR 2016,"","","","BREWSTER,CHRISTOPHER A"
,CHIEF ADMIN OFCR OF THE HOUSE,2016Q3,PERSONNEL COMPENSATION,"","BRIDGEFORTH, TOINETTA A",07/01/16,08/31/16,CONTRACTS SPECIALIST,"15,560.00",FISCAL YEAR 2016,"","","","BRIDGEFORTH, TOINETTA A"
,CHIEF ADMIN OFCR OF THE HOUSE,2016Q3,PERSONNEL COMPENSATION,"","BRIDGEFORTH, TOINETTA A",09/01/16,09/30/16,SENIOR CONTRACTS SPECIALIST,"8,764.17",FISCAL YEAR 2016,"","","","BRIDGEFORTH, TOINETTA A"
,CHIEF ADMIN OFCR OF THE HOUSE,2016Q3,PERSONNEL COMPENSATION,"","BRISCOE, KEVIN",07/01/16,09/30/16,LOGISTICS & DIST SPEC (A),"11,668.50",FISCAL YEAR 2016,"","","","BRISCOE, KEVIN"
,CHIEF ADMIN OFCR OF THE HOUSE,2016Q3,PERSONNEL COMPENSATION,"","BROBBEY-MENSAH, KWAME",07/01/16,09/30/16,SR INFO SYST. SECURITY ANALYST,"29,976.24",FISCAL YEAR 2016,"","","","BROBBEY-MENSAH, KWAME"
,CHIEF ADMIN OFCR OF THE HOUSE,2016Q3,PERSONNEL COMPENSATION,"","BROWN SR, DEMETRICE T",07/01/16,09/30/16,SUPERVISOR,"27,870.75",FISCAL YEAR 2016,"","","","BROWN SR, DEMETRICE T"
,CHIEF ADMIN OFCR OF THE HOUSE,2016Q3,PERSONNEL COMPENSATION,"","BROWN, KEITH S",07/01/16,09/30/16,JOURNEYMAN FURNITURE SPEC,"14,629.26",FISCAL YEAR 2016,"","","","BROWN, KEITH S"
,CHIEF ADMIN OFCR OF THE HOUSE,2016Q3,PERSONNEL COMPENSATION,"","BROWN, PAMELA L",07/01/16,09/30/16,CUSTOMER SOLUTIONS REP,"19,161.24",FISCAL YEAR 2016,"","","","BROWN, PAMELA L"
,CHIEF ADMIN OFCR OF THE HOUSE,2016Q3,PERSONNEL COMPENSATION,"","BROWN,DAVID D",07/01/16,09/30/16,FINANCIAL COUNSELOR,"17,148.99",FISCAL YEAR 2016,"","","","BROWN,DAVID D"
,CHIEF ADMIN OFCR OF THE HOUSE,2016Q3,PERSONNEL COMPENSATION,"","BROWN,DAVID D",07/01/16,07/31/16,FINANCIAL COUNSELOR (OVERTIME),197.87,FISCAL YEAR 2016,"","","","BROWN,DAVID D"
,CHIEF ADMIN OFCR OF THE HOUSE,2016Q3,PERSONNEL COMPENSATION,"","BROWN,JASON",07/01/16,09/30/16,BROADCAST PRODUCTION TECHNICIA,"19,779.24",FISCAL YEAR 2016,"","","","BROWN,JASON"
,CHIEF ADMIN OFCR OF THE HOUSE,2016Q3,PERSONNEL COMPENSATION,"","BROWN,JASON",06/01/16,08/31/16,BROADCAST PRODUCTION TECHNICIA (OVERTIME),"1,198.16",FISCAL YEAR 2016,"","","","BROWN,JASON"
,CHIEF ADMIN OFCR OF THE HOUSE,2016Q3,PERSONNEL COMPENSATION,"","BROWN,KIMBERLY K",07/01/16,09/30/16,BUSINESS PROC APPLIC SPEC,"20,572.74",FISCAL YEAR 2016,"","","","BROWN,KIMBERLY K"
,CHIEF ADMIN OFCR OF THE HOUSE,2016Q3,PERSONNEL COMPENSATION,"","BROWN,LAWRENCE",07/01/16,09/30/16,BROADCAST ENGINEER/PROD SPEC,"22,880.49",FISCAL YEAR 2016,"","","","BROWN,LAWRENCE"
,CHIEF ADMIN OFCR OF THE HOUSE,2016Q3,PERSONNEL COMPENSATION,"","BROWN,LAWRENCE",06/01/16,06/30/16,BROADCAST ENGINEER/PROD SPEC. (OVERTIME),99.00,FISCAL YEAR 2016,"","","","BROWN,LAWRENCE"
,CHIEF ADMIN OFCR OF THE HOUSE,2016Q3,PERSONNEL COMPENSATION,"","BRUMMELL,JENELLE L",07/01/16,09/30/16,PARALEGAL,"19,104.92",FISCAL YEAR 2016,"","","","BRUMMELL,JENELLE L"
,CHIEF ADMIN OFCR OF THE HOUSE,2016Q3,PERSONNEL COMPENSATION,"","BUCKLER, RICKY L",07/01/16,09/30/16,PURCHASING AGENT,"19,779.24",FISCAL YEAR 2016,"","","","BUCKLER, RICKY L"
,CHIEF ADMIN OFCR OF THE HOUSE,2016Q3,PERSONNEL COMPENSATION,"","BUCKLER, TROY D",07/01/16,09/30/16,PURCHASING AGENT,"17,082.75",FISCAL YEAR 2016,"","","","BUCKLER, TROY D"
,CHIEF ADMIN OFCR OF THE HOUSE,2016Q3,PERSONNEL COMPENSATION,"","BUFORD, MARCIA L",07/01/16,09/30/16,COMPUTER FAC OP SUPERVISOR,"27,307.74",FISCAL YEAR 2016,"","","","BUFORD, MARCIA L"
,CHIEF ADMIN OFCR OF THE HOUSE,2016Q3,PERSONNEL COMPENSATION,"","BURCH, KENNETH J",07/01/16,09/30/16,BUSINESS PROC APPLIC SPEC,"31,027.74",FISCAL YEAR 2016,"","","","BURCH, KENNETH J"
,CHIEF ADMIN OFCR OF THE HOUSE,2016Q3,PERSONNEL COMPENSATION,"","BURNHAM,ELIZABETH",07/01/16,09/30/16,MEMBERS' SERVICES COUNSELOR,"24,534.00",FISCAL YEAR 2016,"","","","BURNHAM,ELIZABETH"
,CHIEF ADMIN OFCR OF THE HOUSE,2016Q3,PERSONNEL COMPENSATION,"","BUTLER, CLARENCE G",07/01/16,09/30/16,JOURNEYMAN FURNITURE SPEC,"16,033.26",FISCAL YEAR 2016,"","","","BUTLER, CLARENCE G"
,CHIEF ADMIN OFCR OF THE HOUSE,2016Q3,PERSONNEL COMPENSATION,"","BUTLER, JAMES F",07/01/16,09/30/16,"MANAGER, PAYROLL & BENEFITS","28,924.26",FISCAL YEAR 2016,"","","","BUTLER, JAMES F"
,CHIEF ADMIN OFCR OF THE HOUSE,2016Q3,PERSONNEL COMPENSATION,"","CALLAWAY, ROBERT M",07/01/16,09/30/16,SR BROADCAST ENG./PROD SPEC,"24,995.76",FISCAL YEAR 2016,"","","","CALLAWAY, ROBERT M"
,CHIEF ADMIN OFCR OF THE HOUSE,2016Q3,PERSONNEL COMPENSATION,"","CARCAMO, ALICIA L",07/01/16,09/30/16,ACCOUNTING TECHNICIAN,"19,564.74",FISCAL YEAR 2016,"","","","CARCAMO, ALICIA L"
,CHIEF ADMIN OFCR OF THE HOUSE,2016Q3,PERSONNEL COMPENSATION,"","CARNEY, MICHAEL T",07/01/16,09/30/16,MANAGER (CAO COMPLIANCE),"28,924.26",FISCAL YEAR 2016,"","","","CARNEY, MICHAEL T"
,CHIEF ADMIN OFCR OF THE HOUSE,2016Q3,PERSONNEL COMPENSATION,"","CARNNIA,CASEY",07/01/16,09/30/16,INTERNET SYSTEMS SPECIALIST,"23,142.75",FISCAL YEAR 2016,"","","","CARNNIA,CASEY"
,CHIEF ADMIN OFCR OF THE HOUSE,2016Q3,PERSONNEL COMPENSATION,"","CARR, JOSH D",07/01/16,09/30/16,SENIOR SYSTEMS ENGINEER,"25,920.99",FISCAL YEAR 2016,"","","","CARR, JOSH D"
,CHIEF ADMIN OFCR OF THE HOUSE,2016Q3,PERSONNEL COMPENSATION,"","CARRICO, RONALD",07/01/16,09/30/16,SR BUSINESS PROCESS APPL SPEC,"37,873.67",FISCAL YEAR 2016,"","","","CARRICO, RONALD"
,CHIEF ADMIN OFCR OF THE HOUSE,2016Q3,PERSONNEL COMPENSATION,"","CARSON,LAWRENCE T",07/01/16,09/30/16,SALES SPECIALIST,"10,754.76",FISCAL YEAR 2016,"","","","CARSON,LAWRENCE T"
,CHIEF ADMIN OFCR OF THE HOUSE,2016Q3,PERSONNEL COMPENSATION,"","CARTER JR, JOHN L",07/01/16,09/30/16,"MANAGER, FINISHING","26,567.76",FISCAL YEAR 2016,"","","","CARTER JR, JOHN L"
,CHIEF ADMIN OFCR OF THE HOUSE,2016Q3,PERSONNEL COMPENSATION,"","CARTER,DELISA D",07/01/16,09/30/16,SR. SOFTWARE SPECIALIST,"37,027.26",FISCAL YEAR 2016,"","","","CARTER,DELISA D"
,CHIEF ADMIN OFCR OF THE HOUSE,2016Q3,PERSONNEL COMPENSATION,"","CAULK, ANDREW T",07/01/16,09/30/16,MANAGER,"25,456.26",FISCAL YEAR 2016,"","","","CAULK, ANDREW T"
,CHIEF ADMIN OFCR OF THE HOUSE,2016Q3,PERSONNEL COMPENSATION,"","CHABOT, ELLIOT C",07/01/16,09/06/16,SENIOR SYSTEMS ANALYST,"24,296.07",FISCAL YEAR 2016,"","","","CHABOT, ELLIOT C"
,CHIEF ADMIN OFCR OF THE HOUSE,2016Q3,PERSONNEL COMPENSATION,"","CHABOT, ELLIOT C",09/01/16,09/06/16,SENIOR SYSTEMS ANALYST (OTHER COMPENSATION),"4,279.42",FISCAL YEAR 2016,"","","","CHABOT, ELLIOT C"
,CHIEF ADMIN OFCR OF THE HOUSE,2016Q3,PERSONNEL COMPENSATION,"","CHAMBERS, KEVIN N",07/01/16,08/10/16,SENIOR PROJECTS SPECIALIST,"9,758.77",FISCAL YEAR 2016,"","","","CHAMBERS, KEVIN N"
,CHIEF ADMIN OFCR OF THE HOUSE,2016Q3,PERSONNEL COMPENSATION,"","CHAMBERS, KEVIN N",08/11/16,09/30/16,MANAGER,"14,142.36",FISCAL YEAR 2016,"","","","CHAMBERS, KEVIN N"
,CHIEF ADMIN OFCR OF THE HOUSE,2016Q3,PERSONNEL COMPENSATION,"","CHANG, SU-HWA",07/01/16,09/03/16,SENIOR SYSTEMS ENGINEER,"22,453.37",FISCAL YEAR 2016,"","","","CHANG, SU-HWA"
,CHIEF ADMIN OFCR OF THE HOUSE,2016Q3,PERSONNEL COMPENSATION,"","CHANG, SU-HWA",09/01/16,09/03/16,SENIOR SYSTEMS ENGINEER (OTHER COMPENSATION),"10,692.08",FISCAL YEAR 2016,"","","","CHANG, SU-HWA"
,CHIEF ADMIN OFCR OF THE HOUSE,2016Q3,PERSONNEL COMPENSATION,"","CHARGUALAF,JESSE",07/01/16,09/30/16,BROADCAST ENGINEER/PROD SPEC,"21,035.01",FISCAL YEAR 2016,"","","","CHARGUALAF,JESSE"
,CHIEF ADMIN OFCR OF THE HOUSE,2016Q3,PERSONNEL COMPENSATION,"","CHARGUALAF,JESSE",06/01/16,07/31/16,BROADCAST ENGINEER/PROD SPEC. (OVERTIME),819.14,FISCAL YEAR 2016,"","","","CHARGUALAF,JESSE"
,CHIEF ADMIN OFCR OF THE HOUSE,2016Q3,PERSONNEL COMPENSATION,"","CHEN, SUSAN",06/01/16,06/28/16,FINANCIAL COUNSELOR,-381.09,FISCAL YEAR 2016,"","","","CHEN, SUSAN"
,CHIEF ADMIN OFCR OF THE HOUSE,2016Q3,PERSONNEL COMPENSATION,"","CHEN, SUSAN",06/01/16,09/30/16,RESOURCE ANALYST,"18,562.01",FISCAL YEAR 2016,"","","","CHEN, SUSAN"
,CHIEF ADMIN OFCR OF THE HOUSE,2016Q3,PERSONNEL COMPENSATION,"","CHIU,JIMMY",07/01/16,09/30/16,HRIS APPLICATIONS SYST ANALYST,"26,644.01",FISCAL YEAR 2016,"","","","CHIU,JIMMY"
,CHIEF ADMIN OFCR OF THE HOUSE,2016Q3,PERSONNEL COMPENSATION,"","CIANGO,JACOB",07/01/16,09/30/16,APPLICATION SYSTEMS ADMINISTRA,"32,615.25",FISCAL YEAR 2016,"","","","CIANGO,JACOB"
,CHIEF ADMIN OFCR OF THE HOUSE,2016Q3,PERSONNEL COMPENSATION,"","CICALE, MICHAEL P",07/01/16,09/30/16,SR CUSTOMER SOLUTIONS REP,"20,369.01",FISCAL YEAR 2016,"","","","CICALE, MICHAEL P"
,CHIEF ADMIN OFCR OF THE HOUSE,2016Q3,PERSONNEL COMPENSATION,"","CLAGGETT, TIMOTHY A",07/01/16,09/30/16,JOURNEYMAN TEXTILE SPEC,"19,564.74",FISCAL YEAR 2016,"","","","CLAGGETT, TIMOTHY A"
,CHIEF ADMIN OFCR OF THE HOUSE,2016Q3,PERSONNEL COMPENSATION,"","CLARK, MARION",07/01/16,09/30/16,SR TELECOMMUNICATIONS ADMIN,"18,757.74",FISCAL YEAR 2016,"","","","CLARK, MARION"
,CHIEF ADMIN OFCR OF THE HOUSE,2016Q3,PERSONNEL COMPENSATION,"","CLARK, MARION",08/01/16,08/31/16,SR TELECOMMUNICATIONS ADMIN (OVERTIME),288.58,FISCAL YEAR 2016,"","","","CLARK, MARION"
,CHIEF ADMIN OFCR OF THE HOUSE,2016Q3,PERSONNEL COMPENSATION,"","CLARK, YVETTE I",08/29/16,09/30/16,TRAINING COORDINATOR,"5,577.25",FISCAL YEAR 2016,"","","","CLARK, YVETTE I"
,CHIEF ADMIN OFCR OF THE HOUSE,2016Q3,PERSONNEL COMPENSATION,"","CLARKE, JOHN P",07/01/16,09/30/16,SUPERVISOR (RECEIVING),"22,880.49",FISCAL YEAR 2016,"","","","CLARKE, JOHN P"
,CHIEF ADMIN OFCR OF THE HOUSE,2016Q3,PERSONNEL COMPENSATION,"","CLOCKER, JOHN C",09/06/16,09/30/16,DEPUTY CAO,"11,853.89",FISCAL YEAR 2016,"","","","CLOCKER, JOHN C"
,CHIEF ADMIN OFCR OF THE HOUSE,2016Q3,PERSONNEL COMPENSATION,"","COAKLEY,KRISTEN J",07/01/16,09/30/16,TELEPHONE SYSTEMS CONSULTANT,"20,572.74",FISCAL YEAR 2016,"","","","COAKLEY,KRISTEN J"
,CHIEF ADMIN OFCR OF THE HOUSE,2016Q3,PERSONNEL COMPENSATION,"","COBB, FAYE C",07/01/16,09/30/16,"DIR, BUDGET, POLICY & PLANNING","41,187.00",FISCAL YEAR 2016,"","","","COBB, FAYE C"
,CHIEF ADMIN OFCR OF THE HOUSE,2016Q3,PERSONNEL COMPENSATION,"","COLBERT, RAY C",07/01/16,09/30/16,SR BROADCAST ENG/PROD SPECLST,"24,534.00",FISCAL YEAR 2016,"","","","COLBERT, RAY C"
,CHIEF ADMIN OFCR OF THE HOUSE,2016Q3,PERSONNEL COMPENSATION,"","COLBERT, RAY C",06/01/16,07/31/16,SR BROADCAST ENG/PROD SPECLST (OVERTIME),235.91,FISCAL YEAR 2016,"","","","COLBERT, RAY C"
,CHIEF ADMIN OFCR OF THE HOUSE,2016Q3,PERSONNEL COMPENSATION,"","COLLINS, JOHN B",07/01/16,09/30/16,BROADCAST PRODUCTION TECHNICIA,"24,265.26",FISCAL YEAR 2016,"","","","COLLINS, JOHN B"
,CHIEF ADMIN OFCR OF THE HOUSE,2016Q3,PERSONNEL COMPENSATION,"","COLLINS, JOHN B",07/01/16,07/31/16,BROADCAST PRODUCTION TECHNICIA (OVERTIME),"1,073.26",FISCAL YEAR 2016,"","","","COLLINS, JOHN B"
,CHIEF ADMIN OFCR OF THE HOUSE,2016Q3,PERSONNEL COMPENSATION,"","COLOM,BELANE S",09/26/16,09/30/16,ACCOUNTING TECHNICIAN,677.21,FISCAL YEAR 2016,"","","","COLOM,BELANE S"
,CHIEF ADMIN OFCR OF THE HOUSE,2016Q3,PERSONNEL COMPENSATION,"","CONNOLLY,ERIC",07/01/16,09/30/16,PHOTOGRAPHER,"15,686.01",FISCAL YEAR 2016,"","","","CONNOLLY,ERIC"
,CHIEF ADMIN OFCR OF THE HOUSE,2016Q3,PERSONNEL COMPENSATION,"","COOK, ERIC H",07/01/16,09/30/16,NETWORK TECHNICIAN,"20,996.25",FISCAL YEAR 2016,"","","","COOK, ERIC H"
,CHIEF ADMIN OFCR OF THE HOUSE,2016Q3,PERSONNEL COMPENSATION,"","COOPER, RICHARD S",07/01/16,09/30/16,STAFF ACCOUNTANT (A),"26,383.74",FISCAL YEAR 2016,"","","","COOPER, RICHARD S"
,CHIEF ADMIN OFCR OF THE HOUSE,2016Q3,PERSONNEL COMPENSATION,"","CORNEJO, LUIS E",07/01/16,09/30/16,SENIOR SYSTEMS ENGINEER,"26,847.51",FISCAL YEAR 2016,"","","","CORNEJO, LUIS E"
,CHIEF ADMIN OFCR OF THE HOUSE,2016Q3,PERSONNEL COMPENSATION,"","COX, BRIDGET A",07/01/16,09/30/16,SENIOR SYSTEMS ANALYST,"31,027.74",FISCAL YEAR 2016,"","","","COX, BRIDGET A"
,CHIEF ADMIN OFCR OF THE HOUSE,2016Q3,PERSONNEL COMPENSATION,"","COYNE III, THOMAS E",07/01/16,09/30/16,CHIEF LOGISTICS OFFICER,"42,102.75",FISCAL YEAR 2016,"","","","COYNE III, THOMAS E"
,CHIEF ADMIN OFCR OF THE HOUSE,2016Q3,PERSONNEL COMPENSATION,"","CRUDUP III, WILLIAM D",07/01/16,09/30/16,RECEIVING/WAREHOUSE SPEC (A),"13,060.74",FISCAL YEAR 2016,"","","","CRUDUP III, WILLIAM D"
,CHIEF ADMIN OFCR OF THE HOUSE,2016Q3,PERSONNEL COMPENSATION,"","CUFF,LOREN D",07/01/16,09/30/16,INTERNET SYSTEMS SPECIALIST,"20,591.01",FISCAL YEAR 2016,"","","","CUFF,LOREN D"
,CHIEF ADMIN OFCR OF THE HOUSE,2016Q3,PERSONNEL COMPENSATION,"","CUFFEE,DANIELLE M",09/12/16,09/30/16,ASSET/INVENTORY COUNSELOR,"2,573.39",FISCAL YEAR 2016,"","","","CUFFEE,DANIELLE M"
,CHIEF ADMIN OFCR OF THE HOUSE,2016Q3,PERSONNEL COMPENSATION,"","CUFFEY, LAWRENCE",07/01/16,09/30/16,SR SCHEDULING SPEC/SAFETY LIAS,"18,757.74",FISCAL YEAR 2016,"","","","CUFFEY, LAWRENCE"
,CHIEF ADMIN OFCR OF THE HOUSE,2016Q3,PERSONNEL COMPENSATION,"","CUPRILL, CARLOS",07/01/16,09/30/16,SR TECHNICAL SUPPORT REP,"23,803.26",FISCAL YEAR 2016,"","","","CUPRILL, CARLOS"
,CHIEF ADMIN OFCR OF THE HOUSE,2016Q3,PERSONNEL COMPENSATION,"","CUTLER JR, BENJAMIN S",07/01/16,09/30/16,PAYROLL & BENEFITS ASSISTANT,"16,150.17",FISCAL YEAR 2016,"","","","CUTLER JR, BENJAMIN S"
,CHIEF ADMIN OFCR OF THE HOUSE,2016Q3,PERSONNEL COMPENSATION,"","DAHL,RYAN S",07/01/16,09/30/16,MEDIA LOGISTICS COORDINATOR,"17,148.99",FISCAL YEAR 2016,"","","","DAHL,RYAN S"
,CHIEF ADMIN OFCR OF THE HOUSE,2016Q3,PERSONNEL COMPENSATION,"","DAHLSTROM, DARREN",07/01/16,09/30/16,"MANAGER, CABINET","22,421.25",FISCAL YEAR 2016,"","","","DAHLSTROM, DARREN"
,CHIEF ADMIN OFCR OF THE HOUSE,2016Q3,PERSONNEL COMPENSATION,"","DAVENPORT,KAREN V",07/01/16,09/30/16,FINANCIAL ANALYST,"23,340.00",FISCAL YEAR 2016,"","","","DAVENPORT,KAREN V"
,CHIEF ADMIN OFCR OF THE HOUSE,2016Q3,PERSONNEL COMPENSATION,"","DAVIS, JOHN J",07/01/16,09/30/16,BROADCAST PRODUCTION TECHNICIA,"23,803.26",FISCAL YEAR 2016,"","","","DAVIS, JOHN J"
,CHIEF ADMIN OFCR OF THE HOUSE,2016Q3,PERSONNEL COMPENSATION,"","DAVIS, JOHN J",06/01/16,07/31/16,BROADCAST PRODUCTION TECHNICIA (OVERTIME),68.66,FISCAL YEAR 2016,"","","","DAVIS, JOHN J"
,CHIEF ADMIN OFCR OF THE HOUSE,2016Q3,PERSONNEL COMPENSATION,"","DAVIS, STACHIA G",07/01/16,09/30/16,DIR MOD FURN & TRANSITION,"28,924.26",FISCAL YEAR 2016,"","","","DAVIS, STACHIA G"
,CHIEF ADMIN OFCR OF THE HOUSE,2016Q3,PERSONNEL COMPENSATION,"","DAVIS,SCOTT K",07/01/16,09/30/16,PAYROLL & BENEFITS GENERALIST,"17,550.51",FISCAL YEAR 2016,"","","","DAVIS,SCOTT K"
,CHIEF ADMIN OFCR OF THE HOUSE,2016Q3,PERSONNEL COMPENSATION,"","DAVIS,SCOTT K",06/01/16,07/31/16,PAYROLL & BENEFITS GENERALIST (OVERTIME),464.07,FISCAL YEAR 2016,"","","","DAVIS,SCOTT K"
,CHIEF ADMIN OFCR OF THE HOUSE,2016Q3,PERSONNEL COMPENSATION,"","DAWKINS, JOANN",07/01/16,09/30/16,SR TELECOMM ADMIN,"17,082.75",FISCAL YEAR 2016,"","","","DAWKINS, JOANN"
,CHIEF ADMIN OFCR OF THE HOUSE,2016Q3,PERSONNEL COMPENSATION,"","DEAN, JOSEPH M",07/01/16,09/30/16,JOURNEYMAN TEXTILE SPEC,"21,400.50",FISCAL YEAR 2016,"","","","DEAN, JOSEPH M"
,CHIEF ADMIN OFCR OF THE HOUSE,2016Q3,PERSONNEL COMPENSATION,"","DEAN, JOSEPH M",06/01/16,08/31/16,JOURNEYMAN TEXTILE SPEC (OVERTIME),"5,847.59",FISCAL YEAR 2016,"","","","DEAN, JOSEPH M"
,CHIEF ADMIN OFCR OF THE HOUSE,2016Q3,PERSONNEL COMPENSATION,"","DEAVER,JAMES",07/01/16,07/31/16,SENIOR SYSTEMS ENGINEER,"11,063.17",FISCAL YEAR 2016,"","","","DEAVER,JAMES"
,CHIEF ADMIN OFCR OF THE HOUSE,2016Q3,PERSONNEL COMPENSATION,"","DEAVER,JAMES",08/01/16,09/30/16,ENTERPRISE ADMINISTRATOR,"22,126.34",FISCAL YEAR 2016,"","","","DEAVER,JAMES"
,CHIEF ADMIN OFCR OF THE HOUSE,2016Q3,PERSONNEL COMPENSATION,"","DELISLE,KALDON A",07/01/16,09/30/16,JOURNEYMAN FURNITURE SPEC,"14,988.51",FISCAL YEAR 2016,"","","","DELISLE,KALDON A"
,CHIEF ADMIN OFCR OF THE HOUSE,2016Q3,PERSONNEL COMPENSATION,"","DELUCA, ALAN",07/01/16,09/30/16,COMPUTER FACILITIES OP MGR (A),"37,027.26",FISCAL YEAR 2016,"","","","DELUCA, ALAN"
,CHIEF ADMIN OFCR OF THE HOUSE,2016Q3,PERSONNEL COMPENSATION,"","DENT,RICHARD H",07/01/16,09/30/16,JOURNEYMAN TEXTILE SPEC,"13,582.74",FISCAL YEAR 2016,"","","","DENT,RICHARD H"
,CHIEF ADMIN OFCR OF THE HOUSE,2016Q3,PERSONNEL COMPENSATION,"","DERRICK, SCOTT",07/01/16,09/30/16,GRAPHIC DESIGNER,"23,803.26",FISCAL YEAR 2016,"","","","DERRICK, SCOTT"
,CHIEF ADMIN OFCR OF THE HOUSE,2016Q3,PERSONNEL COMPENSATION,"","DETWEILER,BETHANY",07/01/16,09/30/16,ADMINISTRATIVE SPECIALIST,"10,926.51",FISCAL YEAR 2016,"","","","DETWEILER,BETHANY"
,CHIEF ADMIN OFCR OF THE HOUSE,2016Q3,PERSONNEL COMPENSATION,"","DICKIE, JAMES",07/01/16,09/30/16,ENGINEERING OPS MANAGER,"32,043.51",FISCAL YEAR 2016,"","","","DICKIE, JAMES"
,CHIEF ADMIN OFCR OF THE HOUSE,2016Q3,PERSONNEL COMPENSATION,"","DIEFFENDERFER, GARY L",07/01/16,09/30/16,SR. APPLICATION DBA SPECIALIST,"33,189.51",FISCAL YEAR 2016,"","","","DIEFFENDERFER, GARY L"
,CHIEF ADMIN OFCR OF THE HOUSE,2016Q3,PERSONNEL COMPENSATION,"","DOBBINS, MARK",07/01/16,09/30/16,"MANAGER, PURCHASING","24,265.26",FISCAL YEAR 2016,"","","","DOBBINS, MARK"
,CHIEF ADMIN OFCR OF THE HOUSE,2016Q3,PERSONNEL COMPENSATION,"","DOOLEY,GENEVA",07/01/16,09/30/16,SENIOR SOFTWARE SPECIALIST,"33,762.75",FISCAL YEAR 2016,"","","","DOOLEY,GENEVA"
,CHIEF ADMIN OFCR OF THE HOUSE,2016Q3,PERSONNEL COMPENSATION,"","DOZIER, BRIAN A",07/01/16,09/30/16,SR RECEIVING & WAREHOUSIN SPEC,"16,745.49",FISCAL YEAR 2016,"","","","DOZIER, BRIAN A"
,CHIEF ADMIN OFCR OF THE HOUSE,2016Q3,PERSONNEL COMPENSATION,"","DUENAS, JOSEPH E",07/01/16,09/30/16,TECHNICAL SUPPORT REP,"19,779.24",FISCAL YEAR 2016,"","","","DUENAS, JOSEPH E"
,CHIEF ADMIN OFCR OF THE HOUSE,2016Q3,PERSONNEL COMPENSATION,"","DUNKLIN, KELDA Y",07/01/16,09/30/16,SR TECHNICAL SUPPORT REP,"27,307.74",FISCAL YEAR 2016,"","","","DUNKLIN, KELDA Y"
,CHIEF ADMIN OFCR OF THE HOUSE,2016Q3,PERSONNEL COMPENSATION,"","DURAN, ROLANDO",07/01/16,09/30/16,ELECTRONICS TECHNICIAN (A),"23,340.00",FISCAL YEAR 2016,"","","","DURAN, ROLANDO"
,CHIEF ADMIN OFCR OF THE HOUSE,2016Q3,PERSONNEL COMPENSATION,"","DURAN, ROLANDO",06/01/16,07/31/16,ELECTRONICS TECHNICIAN (A) (OVERTIME),852.80,FISCAL YEAR 2016,"","","","DURAN, ROLANDO"
,CHIEF ADMIN OFCR OF THE HOUSE,2016Q3,PERSONNEL COMPENSATION,"","DYSON,LAURA",07/01/16,09/30/16,SR ENTERPRISE ARCHITECT,"32,043.51",FISCAL YEAR 2016,"","","","DYSON,LAURA"
,CHIEF ADMIN OFCR OF THE HOUSE,2016Q3,PERSONNEL COMPENSATION,"","EAGLIN,HOPE J",07/01/16,09/30/16,SENIOR SECURITY ANALYST,"25,393.35",FISCAL YEAR 2016,"","","","EAGLIN,HOPE J"
,CHIEF ADMIN OFCR OF THE HOUSE,2016Q3,PERSONNEL COMPENSATION,"","EGERSON, TROY H",07/01/16,09/30/16,JOURNEYMAN TEXTILE SPEC,"19,161.24",FISCAL YEAR 2016,"","","","EGERSON, TROY H"
,CHIEF ADMIN OFCR OF THE HOUSE,2016Q3,PERSONNEL COMPENSATION,"","EGERSON, TROY H",08/01/16,08/31/16,JOURNEYMAN TEXTILE SPEC (OVERTIME),442.18,FISCAL YEAR 2016,"","","","EGERSON, TROY H"
,CHIEF ADMIN OFCR OF THE HOUSE,2016Q3,PERSONNEL COMPENSATION,"","ELIAS, ANDREW C",07/01/16,09/30/16,DEPUTY DIRECTOR,"32,076.24",FISCAL YEAR 2016,"","","","ELIAS, ANDREW C"
,CHIEF ADMIN OFCR OF THE HOUSE,2016Q3,PERSONNEL COMPENSATION,"","ELLIN, JAMES B",07/01/16,09/30/16,SR NETWORK SYSTEMS ENGINEER,"31,469.01",FISCAL YEAR 2016,"","","","ELLIN, JAMES B"
,CHIEF ADMIN OFCR OF THE HOUSE,2016Q3,PERSONNEL COMPENSATION,"","ELLIOTT, RONALD",07/01/16,09/30/16,SR INFO SYST. SECURITY ANALYST,"26,383.74",FISCAL YEAR 2016,"","","","ELLIOTT, RONALD"
,CHIEF ADMIN OFCR OF THE HOUSE,2016Q3,PERSONNEL COMPENSATION,"","ELLIS,FRANKLIN M",07/01/16,09/30/16,SR SYSTEMS SUPPORT ENGINEER,"24,069.75",FISCAL YEAR 2016,"","","","ELLIS,FRANKLIN M"
,CHIEF ADMIN OFCR OF THE HOUSE,2016Q3,PERSONNEL COMPENSATION,"","ELLIS-GREGG, SHARON",07/01/16,09/30/16,PAYROLL & BENEFITS ASSISTANT,"14,976.99",FISCAL YEAR 2016,"","","","ELLIS-GREGG, SHARON"
,CHIEF ADMIN OFCR OF THE HOUSE,2016Q3,PERSONNEL COMPENSATION,"","ELLIS-JONES, DEBORAH",07/01/16,09/30/16,ADMIN-FINANCE & PAYROLL,"24,534.00",FISCAL YEAR 2016,"","","","ELLIS-JONES, DEBORAH"
,CHIEF ADMIN OFCR OF THE HOUSE,2016Q3,PERSONNEL COMPENSATION,"","EMAMALI, NICOLE S",07/01/16,09/30/16,SR TECHNICAL SUPPORT REP,"28,924.26",FISCAL YEAR 2016,"","","","EMAMALI, NICOLE S"
,CHIEF ADMIN OFCR OF THE HOUSE,2016Q3,PERSONNEL COMPENSATION,"","ENGLISH IV, JAMES H",07/01/16,09/30/16,JOURNEYMAN FURNITURE SPEC,"14,292.51",FISCAL YEAR 2016,"","","","ENGLISH IV, JAMES H"
,CHIEF ADMIN OFCR OF THE HOUSE,2016Q3,PERSONNEL COMPENSATION,"","ENGLISH, JOSEPH H",07/01/16,09/30/16,MOBILE COMM SPECIALIST (DATA),"26,383.74",FISCAL YEAR 2016,"","","","ENGLISH, JOSEPH H"
,CHIEF ADMIN OFCR OF THE HOUSE,2016Q3,PERSONNEL COMPENSATION,"","ERVING, JAMES H",07/01/16,09/30/16,COMMUNICATIONS SPECIALIST,"27,307.74",FISCAL YEAR 2016,"","","","ERVING, JAMES H"
,CHIEF ADMIN OFCR OF THE HOUSE,2016Q3,PERSONNEL COMPENSATION,"","ETCHISON,CHERYL A",07/01/16,09/30/16,"MANAGER, PAYROLL & BENEFITS","30,707.24",FISCAL YEAR 2016,"","","","ETCHISON,CHERYL A"
,CHIEF ADMIN OFCR OF THE HOUSE,2016Q3,PERSONNEL COMPENSATION,"","EVANS JR, WILLIAM R",07/01/16,09/30/16,ELECTRONICS TECHNICIAN (A),"23,803.26",FISCAL YEAR 2016,"","","","EVANS JR, WILLIAM R"
,CHIEF ADMIN OFCR OF THE HOUSE,2016Q3,PERSONNEL COMPENSATION,"","EVANS JR, WILLIAM R",06/01/16,08/31/16,ELECTRONICS TECHNICIAN (A) (OVERTIME),"1,384.69",FISCAL YEAR 2016,"","","","EVANS JR, WILLIAM R"
,CHIEF ADMIN OFCR OF THE HOUSE,2016Q3,PERSONNEL COMPENSATION,"","EVANS,THOMAS F",07/01/16,09/30/16,INFO SYSTEMS SECURITY ANALYST,"24,534.00",FISCAL YEAR 2016,"","","","EVANS,THOMAS F"
,CHIEF ADMIN OFCR OF THE HOUSE,2016Q3,PERSONNEL COMPENSATION,"","EWERS, GRETCHEN",07/01/16,09/30/16,MANAGER,"27,307.74",FISCAL YEAR 2016,"","","","EWERS, GRETCHEN"
,CHIEF ADMIN OFCR OF THE HOUSE,2016Q3,PERSONNEL COMPENSATION,"","EWING JR, JOHN C",07/01/16,08/14/16,RECEIVING/WAREHOUSE SPEC,"5,555.85",FISCAL YEAR 2016,"","","","EWING JR, JOHN C"
,CHIEF ADMIN OFCR OF THE HOUSE,2016Q3,PERSONNEL COMPENSATION,"","EWING JR, JOHN C",08/15/16,09/30/16,ASSET/INVENTORY COUNSELOR,"6,230.32",FISCAL YEAR 2016,"","","","EWING JR, JOHN C"
,CHIEF ADMIN OFCR OF THE HOUSE,2016Q3,PERSONNEL COMPENSATION,"","FAISON, SHAWNA",08/01/16,09/30/16,SR GRAPHIC DESIGNER,"7,314.75",FISCAL YEAR 2016,"","","","FAISON, SHAWNA"
,CHIEF ADMIN OFCR OF THE HOUSE,2016Q3,PERSONNEL COMPENSATION,"","FARLEY, JOANN I",07/01/16,09/30/16,FINANCIAL COUNSELOR,"18,757.74",FISCAL YEAR 2016,"","","","FARLEY, JOANN I"
,CHIEF ADMIN OFCR OF THE HOUSE,2016Q3,PERSONNEL COMPENSATION,"","FINUCANE,CHRISTOPHER B",07/01/16,09/30/16,DIRECTOR ENTERPRISE OPERATIONS,"41,187.00",FISCAL YEAR 2016,"","","","FINUCANE,CHRISTOPHER B"
,CHIEF ADMIN OFCR OF THE HOUSE,2016Q3,PERSONNEL COMPENSATION,"","FISHER, JEROME",07/01/16,09/30/16,SR TECH SOLUTIONS ENGINEER,"25,920.99",FISCAL YEAR 2016,"","","","FISHER, JEROME"
,CHIEF ADMIN OFCR OF THE HOUSE,2016Q3,PERSONNEL COMPENSATION,"","FITZGERALD,KATHLEEN M",07/01/16,09/30/16,BUSINESS CONTINUITY MANAGER,"32,043.51",FISCAL YEAR 2016,"","","","FITZGERALD,KATHLEEN M"
,CHIEF ADMIN OFCR OF THE HOUSE,2016Q3,PERSONNEL COMPENSATION,"","FONTNEAU, BRUCE",07/01/16,09/30/16,SR SYSTEMS ENGINEER,"26,292.51",FISCAL YEAR 2016,"","","","FONTNEAU, BRUCE"
,CHIEF ADMIN OFCR OF THE HOUSE,2016Q3,PERSONNEL COMPENSATION,"","FORD, DARIN J",07/01/16,09/30/16,SR TECHNICAL SUPPORT REP (A),"23,803.26",FISCAL YEAR 2016,"","","","FORD, DARIN J"
,CHIEF ADMIN OFCR OF THE HOUSE,2016Q3,PERSONNEL COMPENSATION,"","FORGIONE, JOHN A",07/01/16,09/30/16,SR CUSTOMER SOLUTIONS REP,"19,564.74",FISCAL YEAR 2016,"","","","FORGIONE, JOHN A"
,CHIEF ADMIN OFCR OF THE HOUSE,2016Q3,PERSONNEL COMPENSATION,"","FOSTER, CHARLES J",04/01/16,09/30/16,PAYROLL & BENEFITS ASSISTANT,"14,276.38",FISCAL YEAR 2016,"","","","FOSTER, CHARLES J"
,CHIEF ADMIN OFCR OF THE HOUSE,2016Q3,PERSONNEL COMPENSATION,"","FOSTER, CHARLES J",06/01/16,06/30/16,PAYROLL & BENEFITS ASSISTANT (OVERTIME),189.90,FISCAL YEAR 2016,"","","","FOSTER, CHARLES J"
,CHIEF ADMIN OFCR OF THE HOUSE,2016Q3,PERSONNEL COMPENSATION,"","FOSTER,KRISTIN N",07/01/16,09/30/16,PAYROLL & BENEFITS GENERALIST,"15,940.74",FISCAL YEAR 2016,"","","","FOSTER,KRISTIN N"
,CHIEF ADMIN OFCR OF THE HOUSE,2016Q3,PERSONNEL COMPENSATION,"","FOUNTAIN,ANIKA",07/01/16,09/30/16,TECH SOLUTIONS TECHNICIAN,"18,757.74",FISCAL YEAR 2016,"","","","FOUNTAIN,ANIKA"
,CHIEF ADMIN OFCR OF THE HOUSE,2016Q3,PERSONNEL COMPENSATION,"","FRAVEL,DON J",07/01/16,09/30/16,TECH SOLUTIONS TECHNICIAN,"18,356.49",FISCAL YEAR 2016,"","","","FRAVEL,DON J"
,CHIEF ADMIN OFCR OF THE HOUSE,2016Q3,PERSONNEL COMPENSATION,"","FRECH, JASON L",07/01/16,08/03/16,SR SYSTEMS ENGINEER,"10,219.28",FISCAL YEAR 2016,"","","","FRECH, JASON L"
,CHIEF ADMIN OFCR OF THE HOUSE,2016Q3,PERSONNEL COMPENSATION,"","FRECH, JASON L",08/04/16,09/30/16,ENTERPRISE ADMINISTRATOR,"18,843.41",FISCAL YEAR 2016,"","","","FRECH, JASON L"
,CHIEF ADMIN OFCR OF THE HOUSE,2016Q3,PERSONNEL COMPENSATION,"","FREEMAN, ANTOINETTE P",07/01/16,09/30/16,ADMINISTRATIVE SPECIALIST,"15,325.26",FISCAL YEAR 2016,"","","","FREEMAN, ANTOINETTE P"
,CHIEF ADMIN OFCR OF THE HOUSE,2016Q3,PERSONNEL COMPENSATION,"","FREENEY, MALCOLM",07/01/16,09/30/16,PROJECT MANAGER,"26,847.51",FISCAL YEAR 2016,"","","","FREENEY, MALCOLM"
,CHIEF ADMIN OFCR OF THE HOUSE,2016Q3,PERSONNEL COMPENSATION,"","FRENCH, CHARLES",07/01/16,09/30/16,SENIOR NETWORK TECHNICIAN,"26,383.74",FISCAL YEAR 2016,"","","","FRENCH, CHARLES"
,CHIEF ADMIN OFCR OF THE HOUSE,2016Q3,PERSONNEL COMPENSATION,"","FRITZ,ERIC D",07/01/16,08/03/16,SENIOR SYSTEMS ENGINEER,"10,412.24",FISCAL YEAR 2016,"","","","FRITZ,ERIC D"
,CHIEF ADMIN OFCR OF THE HOUSE,2016Q3,PERSONNEL COMPENSATION,"","FRITZ,ERIC D",08/04/16,09/30/16,ENT OPER BRANCH MGR TEAM LEAD,"18,843.41",FISCAL YEAR 2016,"","","","FRITZ,ERIC D"
,CHIEF ADMIN OFCR OF THE HOUSE,2016Q3,PERSONNEL COMPENSATION,"","GAINES, JULIA W",07/01/16,09/30/16,SPECIAL ASSISTANT (A),"26,567.76",FISCAL YEAR 2016,"","","","GAINES, JULIA W"
,CHIEF ADMIN OFCR OF THE HOUSE,2016Q3,PERSONNEL COMPENSATION,"","GALLAGHER, RENEE",07/01/16,09/30/16,SR INFO SYST. SECURITY ANALYST,"26,383.74",FISCAL YEAR 2016,"","","","GALLAGHER, RENEE"
,CHIEF ADMIN OFCR OF THE HOUSE,2016Q3,PERSONNEL COMPENSATION,"","GALLAGHER,RYAN S",07/01/16,09/30/16,HUMAN RESOURCES GENERALIST,"17,550.51",FISCAL YEAR 2016,"","","","GALLAGHER,RYAN S"
,CHIEF ADMIN OFCR OF THE HOUSE,2016Q3,PERSONNEL COMPENSATION,"","GALLAGHER,SARAH C",08/08/16,09/30/16,FINANCIAL RPT ACCOUNTANT,"13,901.90",FISCAL YEAR 2016,"","","","GALLAGHER,SARAH C"
,CHIEF ADMIN OFCR OF THE HOUSE,2016Q3,PERSONNEL COMPENSATION,"","GARAY, GERMAN",07/01/16,09/30/16,BROADCAST PRODUCTION TECHNICIA,"23,803.26",FISCAL YEAR 2016,"","","","GARAY, GERMAN"
,CHIEF ADMIN OFCR OF THE HOUSE,2016Q3,PERSONNEL COMPENSATION,"","GARAY, GERMAN",06/01/16,07/31/16,BROADCAST PRODUCTION TECHNICIA (OVERTIME),"2,036.98",FISCAL YEAR 2016,"","","","GARAY, GERMAN"
,CHIEF ADMIN OFCR OF THE HOUSE,2016Q3,PERSONNEL COMPENSATION,"","GARCIA, JOHN",07/01/16,09/30/16,JOURNEYMAN FURNITURE SPEC,"14,292.51",FISCAL YEAR 2016,"","","","GARCIA, JOHN"
,CHIEF ADMIN OFCR OF THE HOUSE,2016Q3,PERSONNEL COMPENSATION,"","GASKINS, JAMES R",07/01/16,08/03/16,BRANCH MANAGER,"12,379.67",FISCAL YEAR 2016,"","","","GASKINS, JAMES R"
,CHIEF ADMIN OFCR OF THE HOUSE,2016Q3,PERSONNEL COMPENSATION,"","GASKINS, JAMES R",08/04/16,09/30/16,ENTERPRISE OPER BRANCH MGR,"21,444.35",FISCAL YEAR 2016,"","","","GASKINS, JAMES R"
,CHIEF ADMIN OFCR OF THE HOUSE,2016Q3,PERSONNEL COMPENSATION,"","GATES, TRENA F",07/01/16,09/30/16,FINANCIAL ANALYST,"21,807.24",FISCAL YEAR 2016,"","","","GATES, TRENA F"
,CHIEF ADMIN OFCR OF THE HOUSE,2016Q3,PERSONNEL COMPENSATION,"","GATES,COREY M",07/01/16,09/30/16,JOURNEYMAN TEXTILE SPEC,"16,074.41",FISCAL YEAR 2016,"","","","GATES,COREY M"
,CHIEF ADMIN OFCR OF THE HOUSE,2016Q3,PERSONNEL COMPENSATION,"","GATES,COREY M",07/01/16,08/31/16,JOURNEYMAN TEXTILE SPEC (OVERTIME),"3,149.79",FISCAL YEAR 2016,"","","","GATES,COREY M"
,CHIEF ADMIN OFCR OF THE HOUSE,2016Q3,PERSONNEL COMPENSATION,"","GATES,THOMAS D",07/01/16,09/30/16,SENIOR SYSTEMS ENGINEER,"24,995.76",FISCAL YEAR 2016,"","","","GATES,THOMAS D"
,CHIEF ADMIN OFCR OF THE HOUSE,2016Q3,PERSONNEL COMPENSATION,"","GEPERT,DARLA M",07/01/16,09/30/16,ADMINISTRATIVE SPECIALIST,"15,338.01",FISCAL YEAR 2016,"","","","GEPERT,DARLA M"
,CHIEF ADMIN OFCR OF THE HOUSE,2016Q3,PERSONNEL COMPENSATION,"","GERARDEN,PAUL J",07/01/16,09/30/16,SR CUSTOMER SOLUTIONS REP,"15,940.74",FISCAL YEAR 2016,"","","","GERARDEN,PAUL J"
,CHIEF ADMIN OFCR OF THE HOUSE,2016Q3,PERSONNEL COMPENSATION,"","GILLIS,DANIEL",07/01/16,09/30/16,ADA AIDE,"7,135.50",FISCAL YEAR 2016,"","","","GILLIS,DANIEL"
,CHIEF ADMIN OFCR OF THE HOUSE,2016Q3,PERSONNEL COMPENSATION,"","GILLIS,DANIEL",06/01/16,08/31/16,ADA AIDE (OVERTIME),"11,161.07",FISCAL YEAR 2016,"","","","GILLIS,DANIEL"
,CHIEF ADMIN OFCR OF THE HOUSE,2016Q3,PERSONNEL COMPENSATION,"","GIZARA, MICHAEL P",07/01/16,09/30/16,TEAM LEAD OPERATNS/ADV CONTENT,"33,762.75",FISCAL YEAR 2016,"","","","GIZARA, MICHAEL P"
,CHIEF ADMIN OFCR OF THE HOUSE,2016Q3,PERSONNEL COMPENSATION,"","GOGGINS II, JAMES D",07/01/16,09/30/16,NETWORK COMM SPECIALIST (A),"23,803.26",FISCAL YEAR 2016,"","","","GOGGINS II, JAMES D"
,CHIEF ADMIN OFCR OF THE HOUSE,2016Q3,PERSONNEL COMPENSATION,"","GOLDSBOROUGH-LEE, ANGEL M",07/01/16,09/30/16,"DIR, TECH MGT & INTERNAL CTRLS","36,390.99",FISCAL YEAR 2016,"","","","GOLDSBOROUGH-LEE, ANGEL M"
,CHIEF ADMIN OFCR OF THE HOUSE,2016Q3,PERSONNEL COMPENSATION,"","GONZALEZ, ROSARIO D",07/01/16,09/30/16,SR CUSTOMER SOLUTIONS REP,"20,726.09",FISCAL YEAR 2016,"","","","GONZALEZ, ROSARIO D"
,CHIEF ADMIN OFCR OF THE HOUSE,2016Q3,PERSONNEL COMPENSATION,"","GOODLOW, LISA L",07/01/16,09/30/16,SR COMM SECURITY ANALYST,"26,292.51",FISCAL YEAR 2016,"","","","GOODLOW, LISA L"
,CHIEF ADMIN OFCR OF THE HOUSE,2016Q3,PERSONNEL COMPENSATION,"","GOULD, MICHAEL",07/01/16,09/30/16,"MANAGER, REMEDY MANAGEMENT","31,469.01",FISCAL YEAR 2016,"","","","GOULD, MICHAEL"
,CHIEF ADMIN OFCR OF THE HOUSE,2016Q3,PERSONNEL COMPENSATION,"","GOULD,MELISSA C",09/01/16,09/30/16,MANAGEMENT & PRODUCT ANALYST,"8,939.92",FISCAL YEAR 2016,"","","","GOULD,MELISSA C"
,CHIEF ADMIN OFCR OF THE HOUSE,2016Q3,PERSONNEL COMPENSATION,"","GRAEUB, ANDREW C",07/01/16,09/30/16,"MANAGER, NETWORK SYST ENGINEER","35,756.25",FISCAL YEAR 2016,"","","","GRAEUB, ANDREW C"
,CHIEF ADMIN OFCR OF THE HOUSE,2016Q3,PERSONNEL COMPENSATION,"","GRANT,LISA",07/01/16,09/30/16,CHIEF PROCUREMENT OFFICER,"42,102.75",FISCAL YEAR 2016,"","","","GRANT,LISA"
,CHIEF ADMIN OFCR OF THE HOUSE,2016Q3,PERSONNEL COMPENSATION,"","GRECO,JACQUELINE M",07/01/16,09/30/16,CUSTOMER SOLUTIONS REP,"13,233.99",FISCAL YEAR 2016,"","","","GRECO,JACQUELINE M"
,CHIEF ADMIN OFCR OF THE HOUSE,2016Q3,PERSONNEL COMPENSATION,"","GREEN, CAROLINE",07/01/16,09/30/16,TECHNICAL SUPPORT REP (A),"18,757.74",FISCAL YEAR 2016,"","","","GREEN, CAROLINE"
,CHIEF ADMIN OFCR OF THE HOUSE,2016Q3,PERSONNEL COMPENSATION,"","GREEN, MITCHELL",07/01/16,09/30/16,CONTRACT ADMINISTRATOR,"33,762.75",FISCAL YEAR 2016,"","","","GREEN, MITCHELL"
,CHIEF ADMIN OFCR OF THE HOUSE,2016Q3,PERSONNEL COMPENSATION,"","GREENE, CHANTEL T",07/01/16,09/30/16,MGR BUS SYS AND INTEGRATION,"37,027.26",FISCAL YEAR 2016,"","","","GREENE, CHANTEL T"
,CHIEF ADMIN OFCR OF THE HOUSE,2016Q3,PERSONNEL COMPENSATION,"","GRIGGS,KYLE R",07/01/16,09/30/16,CONTRACTS SPECIALIST,"21,498.24",FISCAL YEAR 2016,"","","","GRIGGS,KYLE R"
,CHIEF ADMIN OFCR OF THE HOUSE,2016Q3,PERSONNEL COMPENSATION,"","GRONSKI,ROBERT S",07/01/16,09/30/16,SR BUSINESS PROCESS APPL SPEC,"32,043.51",FISCAL YEAR 2016,"","","","GRONSKI,ROBERT S"
,CHIEF ADMIN OFCR OF THE HOUSE,2016Q3,PERSONNEL COMPENSATION,"","GUDURU,PRATAP K",07/01/16,09/30/16,SENIOR SYSTEMS ENGINEER,"32,998.09",FISCAL YEAR 2016,"","","","GUDURU,PRATAP K"
,CHIEF ADMIN OFCR OF THE HOUSE,2016Q3,PERSONNEL COMPENSATION,"","GUGLIOTTA,NORMAN",07/01/16,09/30/16,FINANCIAL COUNSELOR (A),"17,550.51",FISCAL YEAR 2016,"","","","GUGLIOTTA,NORMAN"
,CHIEF ADMIN OFCR OF THE HOUSE,2016Q3,PERSONNEL COMPENSATION,"","GUGLIOTTA,NORMAN",06/01/16,06/30/16,FINANCIAL COUNSELOR (A) (OVERTIME),455.63,FISCAL YEAR 2016,"","","","GUGLIOTTA,NORMAN"
,CHIEF ADMIN OFCR OF THE HOUSE,2016Q3,PERSONNEL COMPENSATION,"","HALL,MORGAN",07/01/16,09/30/16,FACILITIES MANAGEMENT SPECIALI,"17,951.25",FISCAL YEAR 2016,"","","","HALL,MORGAN"
,CHIEF ADMIN OFCR OF THE HOUSE,2016Q3,PERSONNEL COMPENSATION,"","HAMBRIC, STEEN H",07/01/16,09/30/16,CHIEF TECHNOLOGY OFFICER,"42,102.75",FISCAL YEAR 2016,"","","","HAMBRIC, STEEN H"
,CHIEF ADMIN OFCR OF THE HOUSE,2016Q3,PERSONNEL COMPENSATION,"","HAMEL,RYAN T",07/01/16,09/30/16,THIRD ASSISTANT,"17,550.51",FISCAL YEAR 2016,"","","","HAMEL,RYAN T"
,CHIEF ADMIN OFCR OF THE HOUSE,2016Q3,PERSONNEL COMPENSATION,"","HAMNER, PHILIP D",07/01/16,09/30/16,"DIRECTOR, ACCOUNTING","37,662.51",FISCAL YEAR 2016,"","","","HAMNER, PHILIP D"
,CHIEF ADMIN OFCR OF THE HOUSE,2016Q3,PERSONNEL COMPENSATION,"","HANEY, WINSTON",07/01/16,09/30/16,ASSET/INVENTORY COUNSELOR,"14,629.26",FISCAL YEAR 2016,"","","","HANEY, WINSTON"
,CHIEF ADMIN OFCR OF THE HOUSE,2016Q3,PERSONNEL COMPENSATION,"","HANONU, TINA M",07/01/16,08/05/16,SPECIAL ADVISOR/TRANSITION,"16,373.29",FISCAL YEAR 2016,"","","","HANONU, TINA M"
,CHIEF ADMIN OFCR OF THE HOUSE,2016Q3,PERSONNEL COMPENSATION,"","HANONU, TINA M",08/01/16,08/05/16,SPECIAL ADVISOR/TRANSITION (OTHER COMPENSATION),"3,976.37",FISCAL YEAR 2016,"","","","HANONU, TINA M"
,CHIEF ADMIN OFCR OF THE HOUSE,2016Q3,PERSONNEL COMPENSATION,"","HAQ,RABIA",07/01/16,09/30/16,BUSINESS PROC APPLIC SPEC,"24,995.76",FISCAL YEAR 2016,"","","","HAQ,RABIA"
,CHIEF ADMIN OFCR OF THE HOUSE,2016Q3,PERSONNEL COMPENSATION,"","HARGROVE, BRIAN",07/01/16,09/30/16,LOGISTICS & DIST SPEC (A),"11,058.51",FISCAL YEAR 2016,"","","","HARGROVE, BRIAN"
,CHIEF ADMIN OFCR OF THE HOUSE,2016Q3,PERSONNEL COMPENSATION,"","HARRELL,VICKIE",07/01/16,09/30/16,SR NETWORK COMM SPECIALIST (A),"24,534.00",FISCAL YEAR 2016,"","","","HARRELL,VICKIE"
,CHIEF ADMIN OFCR OF THE HOUSE,2016Q3,PERSONNEL COMPENSATION,"","HARRINGTON, KEITH",07/01/16,09/30/16,FINANCIAL COUNSELOR,"23,431.74",FISCAL YEAR 2016,"","","","HARRINGTON, KEITH"
,CHIEF ADMIN OFCR OF THE HOUSE,2016Q3,PERSONNEL COMPENSATION,"","HARRINGTON, KEITH",07/01/16,08/31/16,FINANCIAL COUNSELOR (OVERTIME),473.13,FISCAL YEAR 2016,"","","","HARRINGTON, KEITH"
,CHIEF ADMIN OFCR OF THE HOUSE,2016Q3,PERSONNEL COMPENSATION,"","HARRIS, DONALD",07/01/16,09/30/16,NETWORK COMM SUPERVISOR,"31,469.01",FISCAL YEAR 2016,"","","","HARRIS, DONALD"
,CHIEF ADMIN OFCR OF THE HOUSE,2016Q3,PERSONNEL COMPENSATION,"","HARRIS, KEVIN",07/01/16,09/30/16,JOURNEYMAN FURNITURE SPEC,"20,369.01",FISCAL YEAR 2016,"","","","HARRIS, KEVIN"
,CHIEF ADMIN OFCR OF THE HOUSE,2016Q3,PERSONNEL COMPENSATION,"","HARVEY, JAMIE",07/01/16,09/30/16,SR TELECOMMUNICATIONS ADMIN (A,"17,082.75",FISCAL YEAR 2016,"","","","HARVEY, JAMIE"
,CHIEF ADMIN OFCR OF THE HOUSE,2016Q3,PERSONNEL COMPENSATION,"","HARVEY,KINSEY B",07/01/16,09/30/16,MEDIA LOGISTICS COORDINATOR,"18,158.49",FISCAL YEAR 2016,"","","","HARVEY,KINSEY B"
,CHIEF ADMIN OFCR OF THE HOUSE,2016Q3,PERSONNEL COMPENSATION,"","HAYES,KATHLEEN M",07/01/16,09/30/16,CUSTOMER SOLUTIONS REP,"15,338.01",FISCAL YEAR 2016,"","","","HAYES,KATHLEEN M"
,CHIEF ADMIN OFCR OF THE HOUSE,2016Q3,PERSONNEL COMPENSATION,"","HAYES,MICHELLE P",07/01/16,09/30/16,SENIOR SYSTEMS ENGINEER,"33,189.51",FISCAL YEAR 2016,"","","","HAYES,MICHELLE P"
,CHIEF ADMIN OFCR OF THE HOUSE,2016Q3,PERSONNEL COMPENSATION,"","HEEB III, JOHN J",07/01/16,09/30/16,SR BUSINESS PROCESS APPL SPEC,"34,909.74",FISCAL YEAR 2016,"","","","HEEB III, JOHN J"
,CHIEF ADMIN OFCR OF THE HOUSE,2016Q3,PERSONNEL COMPENSATION,"","HERBERT, GREGORY L",07/01/16,09/30/16,REC/WAREHOUSE SPEC (A),"12,756.51",FISCAL YEAR 2016,"","","","HERBERT, GREGORY L"
,CHIEF ADMIN OFCR OF THE HOUSE,2016Q3,PERSONNEL COMPENSATION,"","HERBERT, GREGORY L",06/01/16,06/30/16,REC/WAREHOUSE SPEC (A) (OVERTIME),183.99,FISCAL YEAR 2016,"","","","HERBERT, GREGORY L"
,CHIEF ADMIN OFCR OF THE HOUSE,2016Q3,PERSONNEL COMPENSATION,"","HERBERT,DONNA",07/01/16,07/24/16,FINANCIAL ANALYST,"5,033.36",FISCAL YEAR 2016,"","","","HERBERT,DONNA"
,CHIEF ADMIN OFCR OF THE HOUSE,2016Q3,PERSONNEL COMPENSATION,"","HERBERT,DONNA",07/01/16,07/22/16,FINANCIAL ANALYST (OTHER COMPENSATION),714.97,FISCAL YEAR 2016,"","","","HERBERT,DONNA"
,CHIEF ADMIN OFCR OF THE HOUSE,2016Q3,PERSONNEL COMPENSATION,"","HIBBS, CYNTHIA",07/01/16,09/30/16,NETWORK COORDINATOR (A),"20,369.01",FISCAL YEAR 2016,"","","","HIBBS, CYNTHIA"
,CHIEF ADMIN OFCR OF THE HOUSE,2016Q3,PERSONNEL COMPENSATION,"","HIRSCH, PATRICK A",07/01/16,09/30/16,DIR-HOUSE RECORDING STUDIO,"42,102.75",FISCAL YEAR 2016,"","","","HIRSCH, PATRICK A"
,CHIEF ADMIN OFCR OF THE HOUSE,2016Q3,PERSONNEL COMPENSATION,"","HOBBS, DENINE",07/01/16,09/30/16,SPECIAL ASSISTANT,"25,920.99",FISCAL YEAR 2016,"","","","HOBBS, DENINE"
,CHIEF ADMIN OFCR OF THE HOUSE,2016Q3,PERSONNEL COMPENSATION,"","HODGES, JOHN E",07/01/16,09/30/16,DIR. OFFICE SUPPLY & GIFT SHOP,"27,870.75",FISCAL YEAR 2016,"","","","HODGES, JOHN E"
,CHIEF ADMIN OFCR OF THE HOUSE,2016Q3,PERSONNEL COMPENSATION,"","HOKHOLD, MARK D",07/01/16,09/30/16,SYSTEMS ENGINEER,"25,920.99",FISCAL YEAR 2016,"","","","HOKHOLD, MARK D"
,CHIEF ADMIN OFCR OF THE HOUSE,2016Q3,PERSONNEL COMPENSATION,"","HOLAU,GEORGE",07/01/16,09/30/16,FINANCIAL COUNSELOR,"21,400.50",FISCAL YEAR 2016,"","","","HOLAU,GEORGE"
,CHIEF ADMIN OFCR OF THE HOUSE,2016Q3,PERSONNEL COMPENSATION,"","HOLAU,GEORGE",06/01/16,06/30/16,FINANCIAL COUNSELOR (OVERTIME),370.39,FISCAL YEAR 2016,"","","","HOLAU,GEORGE"
,CHIEF ADMIN OFCR OF THE HOUSE,2016Q3,PERSONNEL COMPENSATION,"","HOLLAND, GREGORY",07/01/16,09/30/16,LOGISTICS & DIST SPEC (A),"11,972.25",FISCAL YEAR 2016,"","","","HOLLAND, GREGORY"
,CHIEF ADMIN OFCR OF THE HOUSE,2016Q3,PERSONNEL COMPENSATION,"","HOLLAND, GREGORY",06/01/16,06/30/16,LOGISTICS & DIST SPEC (A) (OVERTIME),184.18,FISCAL YEAR 2016,"","","","HOLLAND, GREGORY"
,CHIEF ADMIN OFCR OF THE HOUSE,2016Q3,PERSONNEL COMPENSATION,"","HOLLEY, STEVEN M",07/01/16,09/30/16,RECEIVING/WAREHOUSE SPEC (A),"11,668.50",FISCAL YEAR 2016,"","","","HOLLEY, STEVEN M"
,CHIEF ADMIN OFCR OF THE HOUSE,2016Q3,PERSONNEL COMPENSATION,"","HOLT,CLINTON F",07/01/16,09/30/16,BROADCAST ENGINEER/PROD SPEC,"21,035.01",FISCAL YEAR 2016,"","","","HOLT,CLINTON F"
,CHIEF ADMIN OFCR OF THE HOUSE,2016Q3,PERSONNEL COMPENSATION,"","HORNBURG, RICHARD A",07/01/16,09/30/16,BUSINESS PROC APPLIC SPEC,"29,449.74",FISCAL YEAR 2016,"","","","HORNBURG, RICHARD A"
,CHIEF ADMIN OFCR OF THE HOUSE,2016Q3,PERSONNEL COMPENSATION,"","HOWARD, ANTHONY T",07/01/16,09/30/16,JOURNEYMAN TEXTILE SPEC,"17,082.75",FISCAL YEAR 2016,"","","","HOWARD, ANTHONY T"
,CHIEF ADMIN OFCR OF THE HOUSE,2016Q3,PERSONNEL COMPENSATION,"","HOWARD, ANTHONY T",07/01/16,07/31/16,JOURNEYMAN TEXTILE SPEC (OVERTIME),"1,486.51",FISCAL YEAR 2016,"","","","HOWARD, ANTHONY T"
,CHIEF ADMIN OFCR OF THE HOUSE,2016Q3,PERSONNEL COMPENSATION,"","HUGHES, MICHAEL A",07/01/16,09/30/16,FINANCIAL COUNSELOR,"16,732.74",FISCAL YEAR 2016,"","","","HUGHES, MICHAEL A"
,CHIEF ADMIN OFCR OF THE HOUSE,2016Q3,PERSONNEL COMPENSATION,"","HUGHES,JAMAL C",07/01/16,09/30/16,ASSET/INVENTORY COUNSELOR,"14,629.26",FISCAL YEAR 2016,"","","","HUGHES,JAMAL C"
,CHIEF ADMIN OFCR OF THE HOUSE,2016Q3,PERSONNEL COMPENSATION,"","HUNT,DANIEL",07/01/16,09/30/16,SR NETWORK COMM SPECIALIST,"32,615.25",FISCAL YEAR 2016,"","","","HUNT,DANIEL"
,CHIEF ADMIN OFCR OF THE HOUSE,2016Q3,PERSONNEL COMPENSATION,"","HUNTER, STEVE",07/01/16,09/30/16,ASSET/INVENTORY COUNSELOR,"14,281.26",FISCAL YEAR 2016,"","","","HUNTER, STEVE"
,CHIEF ADMIN OFCR OF THE HOUSE,2016Q3,PERSONNEL COMPENSATION,"","HUNTER, STEVE",05/01/16,05/31/16,ACCOUNT MANAGEMENT COUNSELOR (OVERTIME),411.95,FISCAL YEAR 2016,"","","","HUNTER, STEVE"
,CHIEF ADMIN OFCR OF THE HOUSE,2016Q3,PERSONNEL COMPENSATION,"","HUNTER, STEVE",06/01/16,08/31/16,ASSET/INVENTORY COUNSELOR (OVERTIME),"1,380.05",FISCAL YEAR 2016,"","","","HUNTER, STEVE"
,CHIEF ADMIN OFCR OF THE HOUSE,2016Q3,PERSONNEL COMPENSATION,"","HURDA, JACQUELINE L",07/01/16,09/30/16,FINANCIAL COUNSELOR (A),"20,996.25",FISCAL YEAR 2016,"","","","HURDA, JACQUELINE L"
,CHIEF ADMIN OFCR OF THE HOUSE,2016Q3,PERSONNEL COMPENSATION,"","HURDA, JACQUELINE L",06/01/16,07/31/16,FINANCIAL COUNSELOR (A) (OVERTIME),363.39,FISCAL YEAR 2016,"","","","HURDA, JACQUELINE L"
,CHIEF ADMIN OFCR OF THE HOUSE,2016Q3,PERSONNEL COMPENSATION,"","ILOG,ANGELA M",07/01/16,09/30/16,CONTRACTS SUPPORT ADMIN,"15,338.01",FISCAL YEAR 2016,"","","","ILOG,ANGELA M"
,CHIEF ADMIN OFCR OF THE HOUSE,2016Q3,PERSONNEL COMPENSATION,"","INGRAM,DEXTER J",07/01/16,09/30/16,FINANCIAL COUNSELOR,"15,940.74",FISCAL YEAR 2016,"","","","INGRAM,DEXTER J"
,CHIEF ADMIN OFCR OF THE HOUSE,2016Q3,PERSONNEL COMPENSATION,"","INGRAM,DEXTER J",07/01/16,07/31/16,FINANCIAL COUNSELOR (OVERTIME),183.93,FISCAL YEAR 2016,"","","","INGRAM,DEXTER J"
,CHIEF ADMIN OFCR OF THE HOUSE,2016Q3,PERSONNEL COMPENSATION,"","JACKSON, REGGIE",07/01/16,09/30/16,SR TECHNICAL SUPPORT REP (A),"24,995.76",FISCAL YEAR 2016,"","","","JACKSON, REGGIE"
,CHIEF ADMIN OFCR OF THE HOUSE,2016Q3,PERSONNEL COMPENSATION,"","JACKSON, WANDA J",07/01/16,09/30/16,TELECOMMUNICATIONS BRANCH MNGR,"28,397.01",FISCAL YEAR 2016,"","","","JACKSON, WANDA J"
,CHIEF ADMIN OFCR OF THE HOUSE,2016Q3,PERSONNEL COMPENSATION,"","JACOBSON, BRADLEY J",07/01/16,07/31/16,BRANCH MANAGER,"12,130.33",FISCAL YEAR 2016,"","","","JACOBSON, BRADLEY J"
,CHIEF ADMIN OFCR OF THE HOUSE,2016Q3,PERSONNEL COMPENSATION,"","JACOBSON, BRADLEY J",08/01/16,09/30/16,ENTERPRISE OPER BRANCH MGR,"24,260.66",FISCAL YEAR 2016,"","","","JACOBSON, BRADLEY J"
,CHIEF ADMIN OFCR OF THE HOUSE,2016Q3,PERSONNEL COMPENSATION,"","JANIFER, ROLAND S",07/01/16,09/30/16,"SUPERVISOR,LOGIS & DIST (A)","19,161.24",FISCAL YEAR 2016,"","","","JANIFER, ROLAND S"
,CHIEF ADMIN OFCR OF THE HOUSE,2016Q3,PERSONNEL COMPENSATION,"","JECKO,BRITTANY E",07/01/16,09/30/16,SR BUSINESS PROC APPL SPEC,"26,468.26",FISCAL YEAR 2016,"","","","JECKO,BRITTANY E"
,CHIEF ADMIN OFCR OF THE HOUSE,2016Q3,PERSONNEL COMPENSATION,"","JEFFERSON,KENYATTA",07/01/16,09/30/16,TECHNICAL SUPPORT REP (A),"19,374.24",FISCAL YEAR 2016,"","","","JEFFERSON,KENYATTA"
,CHIEF ADMIN OFCR OF THE HOUSE,2016Q3,PERSONNEL COMPENSATION,"","JENKINS, JAMES",07/01/16,09/30/16,WORKFLOW COORDINATOR,"20,369.01",FISCAL YEAR 2016,"","","","JENKINS, JAMES"
,CHIEF ADMIN OFCR OF THE HOUSE,2016Q3,PERSONNEL COMPENSATION,"","JENNINGS, ARACELI",07/01/16,09/30/16,FINANCE ASSISTANT,"17,082.75",FISCAL YEAR 2016,"","","","JENNINGS, ARACELI"
,CHIEF ADMIN OFCR OF THE HOUSE,2016Q3,PERSONNEL COMPENSATION,"","JOHANN, DEREK",07/01/16,09/30/16,SUPERVISOR (DISPOSALS),"20,572.74",FISCAL YEAR 2016,"","","","JOHANN, DEREK"
,CHIEF ADMIN OFCR OF THE HOUSE,2016Q3,PERSONNEL COMPENSATION,"","JOHNSON, DWAYNE",07/01/16,09/30/16,RETAIL INVENTORY SPECIALIST,"15,325.26",FISCAL YEAR 2016,"","","","JOHNSON, DWAYNE"
,CHIEF ADMIN OFCR OF THE HOUSE,2016Q3,PERSONNEL COMPENSATION,"","JOHNSON, ERIC C",07/01/16,09/30/16,WORKFLOW COORDINATOR,"14,292.51",FISCAL YEAR 2016,"","","","JOHNSON, ERIC C"
,CHIEF ADMIN OFCR OF THE HOUSE,2016Q3,PERSONNEL COMPENSATION,"","JOHNSON, MARGARET K",07/01/16,09/30/16,SENIOR PROJECTS SPECIALIST,"19,374.24",FISCAL YEAR 2016,"","","","JOHNSON, MARGARET K"
,CHIEF ADMIN OFCR OF THE HOUSE,2016Q3,PERSONNEL COMPENSATION,"","JOHNSON, REGINALD",07/01/16,09/30/16,FINANCIAL COUNSELOR (A),"18,356.49",FISCAL YEAR 2016,"","","","JOHNSON, REGINALD"
,CHIEF ADMIN OFCR OF THE HOUSE,2016Q3,PERSONNEL COMPENSATION,"","JOHNSON, ROBERT C",07/01/16,09/30/16,SENIOR SYSTEMS ENGINEER,"31,027.74",FISCAL YEAR 2016,"","","","JOHNSON, ROBERT C"
,CHIEF ADMIN OFCR OF THE HOUSE,2016Q3,PERSONNEL COMPENSATION,"","JOHNSON,ANDRE D",07/01/16,09/30/16,SENIOR NETWORK TECHNICIAN,"18,294.24",FISCAL YEAR 2016,"","","","JOHNSON,ANDRE D"
,CHIEF ADMIN OFCR OF THE HOUSE,2016Q3,PERSONNEL COMPENSATION,"","JOHNSON,KWASI Z",07/01/16,09/30/16,LOGISTICS & DIST SPEC (A),"9,579.00",FISCAL YEAR 2016,"","","","JOHNSON,KWASI Z"
,CHIEF ADMIN OFCR OF THE HOUSE,2016Q3,PERSONNEL COMPENSATION,"","JONES III,CLARENCE",07/01/16,09/30/16,SENIOR NETWORK TECHNICIAN,"20,184.99",FISCAL YEAR 2016,"","","","JONES III,CLARENCE"
,CHIEF ADMIN OFCR OF THE HOUSE,2016Q3,PERSONNEL COMPENSATION,"","JONES JR, CHARLES J",07/01/16,09/30/16,SR NETWORK COMM SPEC (A),"26,292.51",FISCAL YEAR 2016,"","","","JONES JR, CHARLES J"
,CHIEF ADMIN OFCR OF THE HOUSE,2016Q3,PERSONNEL COMPENSATION,"","JONES, DEBORAH D",07/01/16,09/30/16,FINANCIAL COUNSELOR,"22,618.74",FISCAL YEAR 2016,"","","","JONES, DEBORAH D"
,CHIEF ADMIN OFCR OF THE HOUSE,2016Q3,PERSONNEL COMPENSATION,"","JONES, MITCHAEL",07/01/16,09/30/16,TECHNICAL TRAINER,"20,996.25",FISCAL YEAR 2016,"","","","JONES, MITCHAEL"
,CHIEF ADMIN OFCR OF THE HOUSE,2016Q3,PERSONNEL COMPENSATION,"","JONES, MOLLY C",07/01/16,08/26/16,ASSISTANT DIRECTOR,"11,421.82",FISCAL YEAR 2016,"","","","JONES, MOLLY C"
,CHIEF ADMIN OFCR OF THE HOUSE,2016Q3,PERSONNEL COMPENSATION,"","JONES, MOLLY C",08/01/16,08/26/16,ASSISTANT DIRECTOR (OTHER COMPENSATION),"6,118.83",FISCAL YEAR 2016,"","","","JONES, MOLLY C"
,CHIEF ADMIN OFCR OF THE HOUSE,2016Q3,PERSONNEL COMPENSATION,"","JONES, STEPHEN E",07/01/16,07/31/16,SENIOR SYSTEMS ENGINEER,"10,681.17",FISCAL YEAR 2016,"","","","JONES, STEPHEN E"
,CHIEF ADMIN OFCR OF THE HOUSE,2016Q3,PERSONNEL COMPENSATION,"","JONES, STEPHEN E",08/01/16,09/30/16,ENT OPS ENGINEERING TEAM LEAD,"21,362.34",FISCAL YEAR 2016,"","","","JONES, STEPHEN E"
,CHIEF ADMIN OFCR OF THE HOUSE,2016Q3,PERSONNEL COMPENSATION,"","JONES, WESLEY D",07/01/16,09/30/16,LOGISTICS & DIST SPEC (A),"11,972.25",FISCAL YEAR 2016,"","","","JONES, WESLEY D"
,CHIEF ADMIN OFCR OF THE HOUSE,2016Q3,PERSONNEL COMPENSATION,"","JONES,RODNEY B",07/01/16,09/30/16,SR TECHNICAL SUPPORT REP,"22,421.25",FISCAL YEAR 2016,"","","","JONES,RODNEY B"
,CHIEF ADMIN OFCR OF THE HOUSE,2016Q3,PERSONNEL COMPENSATION,"","JONES,YOLANDA S",07/01/16,09/30/16,PAYROLL & BENEFITS GENERALIST,"17,148.99",FISCAL YEAR 2016,"","","","JONES,YOLANDA S"
,CHIEF ADMIN OFCR OF THE HOUSE,2016Q3,PERSONNEL COMPENSATION,"","JONES,YOLANDA S",07/01/16,07/31/16,PAYROLL & BENEFITS GENERALIST (OVERTIME),160.93,FISCAL YEAR 2016,"","","","JONES,YOLANDA S"
,CHIEF ADMIN OFCR OF THE HOUSE,2016Q3,PERSONNEL COMPENSATION,"","JORDAN, YONG O",07/01/16,09/30/16,SR TECH SOLUTIONS ENGINEER,"25,920.99",FISCAL YEAR 2016,"","","","JORDAN, YONG O"
,CHIEF ADMIN OFCR OF THE HOUSE,2016Q3,PERSONNEL COMPENSATION,"","JORDAN,CHRISTOPHER",07/01/16,09/30/16,CHIEF OPERATIONS OFFICER,"42,102.75",FISCAL YEAR 2016,"","","","JORDAN,CHRISTOPHER"
,CHIEF ADMIN OFCR OF THE HOUSE,2016Q3,PERSONNEL COMPENSATION,"","JOYCE, ERIC",07/01/16,09/30/16,SUPERVISOR,"29,449.74",FISCAL YEAR 2016,"","","","JOYCE, ERIC"
,CHIEF ADMIN OFCR OF THE HOUSE,2016Q3,PERSONNEL COMPENSATION,"","JUDGE, NANCY",07/01/16,09/30/16,CUSTOMER SOLUTIONS REP,"16,383.99",FISCAL YEAR 2016,"","","","JUDGE, NANCY"
,CHIEF ADMIN OFCR OF THE HOUSE,2016Q3,PERSONNEL COMPENSATION,"","KAHLER, KENT",07/01/16,09/30/16,SYSTEMS ENGINEER,"26,383.74",FISCAL YEAR 2016,"","","","KAHLER, KENT"
,CHIEF ADMIN OFCR OF THE HOUSE,2016Q3,PERSONNEL COMPENSATION,"","KEANE, MICHAEL T",07/01/16,09/30/16,"MANAGER, WORKFLOW MANAGEMENT","24,534.00",FISCAL YEAR 2016,"","","","KEANE, MICHAEL T"
,CHIEF ADMIN OFCR OF THE HOUSE,2016Q3,PERSONNEL COMPENSATION,"","KELLAHER,ANTHONY",07/01/16,09/30/16,MEDIA COORDINATOR & VISUAL DES,"20,184.99",FISCAL YEAR 2016,"","","","KELLAHER,ANTHONY"
,CHIEF ADMIN OFCR OF THE HOUSE,2016Q3,PERSONNEL COMPENSATION,"","KELLEY, KEVIN S",07/01/16,09/30/16,CUSTOMER SOLUTIONS REP,"17,082.75",FISCAL YEAR 2016,"","","","KELLEY, KEVIN S"
,CHIEF ADMIN OFCR OF THE HOUSE,2016Q3,PERSONNEL COMPENSATION,"","KELLEY, MARY M",07/01/16,09/30/16,RESOURCE MANAGER,"30,502.26",FISCAL YEAR 2016,"","","","KELLEY, MARY M"
,CHIEF ADMIN OFCR OF THE HOUSE,2016Q3,PERSONNEL COMPENSATION,"","KELLEY, TARA A",07/01/16,09/30/16,COMMUNICATIONS SPEC (A),"21,807.24",FISCAL YEAR 2016,"","","","KELLEY, TARA A"
,CHIEF ADMIN OFCR OF THE HOUSE,2016Q3,PERSONNEL COMPENSATION,"","KEMP, DAVID S",07/01/16,07/31/16,SENIOR SYSTEMS ENGINEER,"11,636.58",FISCAL YEAR 2016,"","","","KEMP, DAVID S"
,CHIEF ADMIN OFCR OF THE HOUSE,2016Q3,PERSONNEL COMPENSATION,"","KEMP, DAVID S",08/04/16,08/19/16,ENT OPS ENGINEERING TEAM LEAD,"7,369.84",FISCAL YEAR 2016,"","","","KEMP, DAVID S"
,CHIEF ADMIN OFCR OF THE HOUSE,2016Q3,PERSONNEL COMPENSATION,"","KEMP, DAVID S",08/04/16,08/19/16,ENT OPS ENGINEERING TEAM LEAD (OTHER COMPENSATION),387.89,FISCAL YEAR 2016,"","","","KEMP, DAVID S"
,CHIEF ADMIN OFCR OF THE HOUSE,2016Q3,PERSONNEL COMPENSATION,"","KENEALY, PATRICK T",07/01/16,09/30/16,FINANCIAL ANALYST,"36,055.50",FISCAL YEAR 2016,"","","","KENEALY, PATRICK T"
,CHIEF ADMIN OFCR OF THE HOUSE,2016Q3,PERSONNEL COMPENSATION,"","KIKO,PHILIP G",08/01/16,09/30/16,CHIEF ADMINISTRATIVE OFFICER,"28,750.00",FISCAL YEAR 2016,"","","","KIKO,PHILIP G"
,CHIEF ADMIN OFCR OF THE HOUSE,2016Q3,PERSONNEL COMPENSATION,"","KILSON,FRANKLIN P",07/01/16,09/30/16,NETWORK TECHNICIAN,"22,880.49",FISCAL YEAR 2016,"","","","KILSON,FRANKLIN P"
,CHIEF ADMIN OFCR OF THE HOUSE,2016Q3,PERSONNEL COMPENSATION,"","KIMBALL, MARK E",07/01/16,09/30/16,SR TECHNICAL SUPPORT REP (A),"23,340.00",FISCAL YEAR 2016,"","","","KIMBALL, MARK E"
,CHIEF ADMIN OFCR OF THE HOUSE,2016Q3,PERSONNEL COMPENSATION,"","KLEMP, CAROLINE",07/01/16,09/30/16,DIRECTOR MEMBERS' SERVICES,"37,199.76",FISCAL YEAR 2016,"","","","KLEMP, CAROLINE"
,CHIEF ADMIN OFCR OF THE HOUSE,2016Q3,PERSONNEL COMPENSATION,"","KNELL, KATHERINE A",07/01/16,09/30/16,HRIS APPLICATIONS MANAGER,"42,102.75",FISCAL YEAR 2016,"","","","KNELL, KATHERINE A"
,CHIEF ADMIN OFCR OF THE HOUSE,2016Q3,PERSONNEL COMPENSATION,"","KNOERL, THOMAS K",07/01/16,09/30/16,COMPUTER FACILITIES OPER MGR,"27,347.25",FISCAL YEAR 2016,"","","","KNOERL, THOMAS K"
,CHIEF ADMIN OFCR OF THE HOUSE,2016Q3,PERSONNEL COMPENSATION,"","KORNACKI, OLGA R",07/01/16,09/30/16,DIRECTOR,"36,055.50",FISCAL YEAR 2016,"","","","KORNACKI, OLGA R"
,CHIEF ADMIN OFCR OF THE HOUSE,2016Q3,PERSONNEL COMPENSATION,"","KOZTOSKI, DOUGLAS W",07/01/16,09/30/16,BROADCAST PRODUCTION TECHNICIA,"20,591.01",FISCAL YEAR 2016,"","","","KOZTOSKI, DOUGLAS W"
,CHIEF ADMIN OFCR OF THE HOUSE,2016Q3,PERSONNEL COMPENSATION,"","KOZTOSKI, DOUGLAS W",06/01/16,07/31/16,BROADCAST PRODUCTION TECHNICIA (OVERTIME),"1,039.44",FISCAL YEAR 2016,"","","","KOZTOSKI, DOUGLAS W"
,CHIEF ADMIN OFCR OF THE HOUSE,2016Q3,PERSONNEL COMPENSATION,"","KRALY,ELIZABETH A",07/01/16,09/30/16,"DIRECTOR, CAO HUMAN RESOURCES","29,752.74",FISCAL YEAR 2016,"","","","KRALY,ELIZABETH A"
,CHIEF ADMIN OFCR OF THE HOUSE,2016Q3,PERSONNEL COMPENSATION,"","KREMKAU,REBECCA K",07/01/16,09/30/16,FINANCIAL ANALYST,"22,421.25",FISCAL YEAR 2016,"","","","KREMKAU,REBECCA K"
,CHIEF ADMIN OFCR OF THE HOUSE,2016Q3,PERSONNEL COMPENSATION,"","KUPER, KAREN",07/01/16,09/30/16,SPECIAL ASSISTANT/OPER SUPERVI,"26,383.74",FISCAL YEAR 2016,"","","","KUPER, KAREN"
,CHIEF ADMIN OFCR OF THE HOUSE,2016Q3,PERSONNEL COMPENSATION,"","LAGASSE, DANIEL",07/01/16,09/30/16,BCDR OPERATIONS MANAGER,"34,489.26",FISCAL YEAR 2016,"","","","LAGASSE, DANIEL"
,CHIEF ADMIN OFCR OF THE HOUSE,2016Q3,PERSONNEL COMPENSATION,"","LAU,DAVID E",07/01/16,09/30/16,INFORMATION SECURITY MANAGER,"35,126.01",FISCAL YEAR 2016,"","","","LAU,DAVID E"
,CHIEF ADMIN OFCR OF THE HOUSE,2016Q3,PERSONNEL COMPENSATION,"","LAVAN,JENNIFER H",07/01/16,09/30/16,SR EA COUNSELOR,"26,292.51",FISCAL YEAR 2016,"","","","LAVAN,JENNIFER H"
,CHIEF ADMIN OFCR OF THE HOUSE,2016Q3,PERSONNEL COMPENSATION,"","LEA,SAMUEL E",07/01/16,09/30/16,SR. SECURITY ENGINEER,"31,469.01",FISCAL YEAR 2016,"","","","LEA,SAMUEL E"
,CHIEF ADMIN OFCR OF THE HOUSE,2016Q3,PERSONNEL COMPENSATION,"","LEATHERBURY,MICHELLE Y",07/01/16,09/30/16,COMMUNICATIONS SPECIALIST,"23,607.00",FISCAL YEAR 2016,"","","","LEATHERBURY,MICHELLE Y"
,CHIEF ADMIN OFCR OF THE HOUSE,2016Q3,PERSONNEL COMPENSATION,"","LEBER, DENNIS",07/01/16,09/30/16,SR NETWORK SYSTEMS ENGINEER,"29,449.74",FISCAL YEAR 2016,"","","","LEBER, DENNIS"
,CHIEF ADMIN OFCR OF THE HOUSE,2016Q3,PERSONNEL COMPENSATION,"","LEE, DARNELL A",07/01/16,09/30/16,ASSISTANT CAO,"39,940.26",FISCAL YEAR 2016,"","","","LEE, DARNELL A"
,CHIEF ADMIN OFCR OF THE HOUSE,2016Q3,PERSONNEL COMPENSATION,"","LEIBY,FREDERICK",07/01/16,09/30/16,CONTRACT ADMINISTRATOR,"19,374.24",FISCAL YEAR 2016,"","","","LEIBY,FREDERICK"
,CHIEF ADMIN OFCR OF THE HOUSE,2016Q3,PERSONNEL COMPENSATION,"","LEONARD,DENISE D",07/01/16,09/30/16,WORKFLOW COORDINATOR,"17,148.99",FISCAL YEAR 2016,"","","","LEONARD,DENISE D"
,CHIEF ADMIN OFCR OF THE HOUSE,2016Q3,PERSONNEL COMPENSATION,"","LESNEWSKY,ERIK",07/01/16,09/30/16,ADA AIDE,"6,917.76",FISCAL YEAR 2016,"","","","LESNEWSKY,ERIK"
,CHIEF ADMIN OFCR OF THE HOUSE,2016Q3,PERSONNEL COMPENSATION,"","LESNEWSKY,ERIK",06/01/16,07/31/16,ADA AIDE (OVERTIME),"5,908.06",FISCAL YEAR 2016,"","","","LESNEWSKY,ERIK"
,CHIEF ADMIN OFCR OF THE HOUSE,2016Q3,PERSONNEL COMPENSATION,"","LEV,MARK S",06/27/16,09/30/16,SR BUS SOFTWARE SPECIALIST,"34,064.82",FISCAL YEAR 2016,"","","","LEV,MARK S"
,CHIEF ADMIN OFCR OF THE HOUSE,2016Q3,PERSONNEL COMPENSATION,"","LEWIS, JOHN T",07/01/16,09/30/16,DIRECTOR FURNISHINGS,"29,449.74",FISCAL YEAR 2016,"","","","LEWIS, JOHN T"
,CHIEF ADMIN OFCR OF THE HOUSE,2016Q3,PERSONNEL COMPENSATION,"","LEWIS, ROBERT M",07/01/16,08/12/16,PHOTOGRAPHIC LAB TECHNICIAN,"8,620.74",FISCAL YEAR 2016,"","","","LEWIS, ROBERT M"
,CHIEF ADMIN OFCR OF THE HOUSE,2016Q3,PERSONNEL COMPENSATION,"","LEWIS, ROBERT M",08/01/16,08/12/16,PHOTOGRAPHIC LAB TECHNICIAN (OTHER COMPENSATION),327.13,FISCAL YEAR 2016,"","","","LEWIS, ROBERT M"
,CHIEF ADMIN OFCR OF THE HOUSE,2016Q3,PERSONNEL COMPENSATION,"","LIM,CHAU T",07/01/16,09/30/16,SENIOR ACCOUNTANT (A),"26,383.74",FISCAL YEAR 2016,"","","","LIM,CHAU T"
,CHIEF ADMIN OFCR OF THE HOUSE,2016Q3,PERSONNEL COMPENSATION,"","LINVILLE, RAY A",07/01/16,09/30/16,SENIOR SYSTEMS ENGINEER,"32,076.24",FISCAL YEAR 2016,"","","","LINVILLE, RAY A"
,CHIEF ADMIN OFCR OF THE HOUSE,2016Q3,PERSONNEL COMPENSATION,"","LITTLE, ANDREAL P",07/01/16,09/30/16,ADMINISTRATIVE SPECIALIST,"17,082.75",FISCAL YEAR 2016,"","","","LITTLE, ANDREAL P"
,CHIEF ADMIN OFCR OF THE HOUSE,2016Q3,PERSONNEL COMPENSATION,"","LITTLE, ANDREAL P",03/01/16,08/31/16,ADMINISTRATIVE SPECIALIST (OVERTIME),"3,104.43",FISCAL YEAR 2016,"","","","LITTLE, ANDREAL P"
,CHIEF ADMIN OFCR OF THE HOUSE,2016Q3,PERSONNEL COMPENSATION,"","LITTLE, HAROLD M",07/01/16,09/30/16,SR TECH SOLUTIONS ENGINEER,"25,920.99",FISCAL YEAR 2016,"","","","LITTLE, HAROLD M"
,CHIEF ADMIN OFCR OF THE HOUSE,2016Q3,PERSONNEL COMPENSATION,"","LOGAN, KATHERINE J",07/01/16,09/30/16,DIRECTOR PAYROLL AND BENEFITS,"42,102.75",FISCAL YEAR 2016,"","","","LOGAN, KATHERINE J"
,CHIEF ADMIN OFCR OF THE HOUSE,2016Q3,PERSONNEL COMPENSATION,"","LONG, JOHN P",07/01/16,09/30/16,CAPITOL BUILDING SUPERVISOR,"26,819.76",FISCAL YEAR 2016,"","","","LONG, JOHN P"
,CHIEF ADMIN OFCR OF THE HOUSE,2016Q3,PERSONNEL COMPENSATION,"","LOVING, ANTHONY",07/01/16,09/30/16,APPLICATION DBA SPECIALIST,"29,449.74",FISCAL YEAR 2016,"","","","LOVING, ANTHONY"
,CHIEF ADMIN OFCR OF THE HOUSE,2016Q3,PERSONNEL COMPENSATION,"","LUEKEN,PAIGE J",08/01/16,09/30/16,EXECUTIVE ADMINISTRATOR,"12,105.66",FISCAL YEAR 2016,"","","","LUEKEN,PAIGE J"
,CHIEF ADMIN OFCR OF THE HOUSE,2016Q3,PERSONNEL COMPENSATION,"","MAAS, JENNIFER A",07/01/16,09/30/16,"MGR, USER EXPERIENCE & DESIGN","27,870.75",FISCAL YEAR 2016,"","","","MAAS, JENNIFER A"
,CHIEF ADMIN OFCR OF THE HOUSE,2016Q3,PERSONNEL COMPENSATION,"","MAGNOTTI IV,LOUIS",07/01/16,09/30/16,AUDIO SPECIALIST,"18,970.26",FISCAL YEAR 2016,"","","","MAGNOTTI IV,LOUIS"
,CHIEF ADMIN OFCR OF THE HOUSE,2016Q3,PERSONNEL COMPENSATION,"","MAGNOTTI IV,LOUIS",06/01/16,07/31/16,AUDIO SPECIALIST (OVERTIME),"2,252.69",FISCAL YEAR 2016,"","","","MAGNOTTI IV,LOUIS"
,CHIEF ADMIN OFCR OF THE HOUSE,2016Q3,PERSONNEL COMPENSATION,"","MAGRUDER, TIMOTHY",07/01/16,09/30/16,JOURNEYMAN FURNITURE SPEC,"16,383.99",FISCAL YEAR 2016,"","","","MAGRUDER, TIMOTHY"
,CHIEF ADMIN OFCR OF THE HOUSE,2016Q3,PERSONNEL COMPENSATION,"","MAIDEN III, LEWIS L",07/01/16,09/30/16,SR LOGISTICS & DIST SPEC,"16,033.26",FISCAL YEAR 2016,"","","","MAIDEN III, LEWIS L"
,CHIEF ADMIN OFCR OF THE HOUSE,2016Q3,PERSONNEL COMPENSATION,"","MALASPINA,KIMBERLY J",07/01/16,09/30/16,JOURNEYMAN TEXTILE SPEC,"17,951.25",FISCAL YEAR 2016,"","","","MALASPINA,KIMBERLY J"
,CHIEF ADMIN OFCR OF THE HOUSE,2016Q3,PERSONNEL COMPENSATION,"","MALLON, MICHAEL P",07/01/16,09/30/16,"MANAGER, CENT REC & WAREHOUSE","25,456.26",FISCAL YEAR 2016,"","","","MALLON, MICHAEL P"
,CHIEF ADMIN OFCR OF THE HOUSE,2016Q3,PERSONNEL COMPENSATION,"","MALLOY, DEON",07/01/16,09/30/16,SR TECHNICAL SUPPORT REP (A),"23,340.00",FISCAL YEAR 2016,"","","","MALLOY, DEON"
,CHIEF ADMIN OFCR OF THE HOUSE,2016Q3,PERSONNEL COMPENSATION,"","MARABLE,EUGENE N",07/01/16,09/30/16,ASSET/INVENTORY COUNSELOR,"11,918.86",FISCAL YEAR 2016,"","","","MARABLE,EUGENE N"
,CHIEF ADMIN OFCR OF THE HOUSE,2016Q3,PERSONNEL COMPENSATION,"","MARABLE,EUGENE N",08/01/16,08/31/16,ASSET/INVENTORY COUNSELOR (OVERTIME),703.25,FISCAL YEAR 2016,"","","","MARABLE,EUGENE N"
,CHIEF ADMIN OFCR OF THE HOUSE,2016Q3,PERSONNEL COMPENSATION,"","MARCUS, RALPH J",07/01/16,09/30/16,TECHNICAL DIRECTOR (A),"25,456.26",FISCAL YEAR 2016,"","","","MARCUS, RALPH J"
,CHIEF ADMIN OFCR OF THE HOUSE,2016Q3,PERSONNEL COMPENSATION,"","MARCUS, RALPH J",06/01/16,07/31/16,TECHNICAL DIRECTOR (A) (OVERTIME),452.83,FISCAL YEAR 2016,"","","","MARCUS, RALPH J"
,CHIEF ADMIN OFCR OF THE HOUSE,2016Q3,PERSONNEL COMPENSATION,"","MARLOW,JOEL T",07/01/16,09/30/16,SENIOR SYSTEMS ENGINEER,"26,292.51",FISCAL YEAR 2016,"","","","MARLOW,JOEL T"
,CHIEF ADMIN OFCR OF THE HOUSE,2016Q3,PERSONNEL COMPENSATION,"","MARSH, STEVE W",07/01/16,09/30/16,"MANAGER, ACCOUNTING","30,502.26",FISCAL YEAR 2016,"","","","MARSH, STEVE W"
,CHIEF ADMIN OFCR OF THE HOUSE,2016Q3,PERSONNEL COMPENSATION,"","MARTIN, CHRISTOPHER W",07/01/16,09/30/16,JOURNEYMAN FURNITURE SPEC,"20,369.01",FISCAL YEAR 2016,"","","","MARTIN, CHRISTOPHER W"
,CHIEF ADMIN OFCR OF THE HOUSE,2016Q3,PERSONNEL COMPENSATION,"","MARTINEZ, JAIME D",07/01/16,09/30/16,SENIOR SYSTEMS ENGINEER,"29,449.74",FISCAL YEAR 2016,"","","","MARTINEZ, JAIME D"
,CHIEF ADMIN OFCR OF THE HOUSE,2016Q3,PERSONNEL COMPENSATION,"","MARTINS, RICHARD",07/01/16,09/30/16,MANAGER NETWORK CONFIG. MNGMNT,"37,027.26",FISCAL YEAR 2016,"","","","MARTINS, RICHARD"
,CHIEF ADMIN OFCR OF THE HOUSE,2016Q3,PERSONNEL COMPENSATION,"","MASHETER JR, FREDERICK J",07/01/16,09/30/16,PURCHASING AGENT,"16,022.49",FISCAL YEAR 2016,"","","","MASHETER JR, FREDERICK J"
,CHIEF ADMIN OFCR OF THE HOUSE,2016Q3,PERSONNEL COMPENSATION,"","MASON, TRON",07/01/16,09/30/16,SR NETWORK COMM SPEC (A),"28,924.26",FISCAL YEAR 2016,"","","","MASON, TRON"
,CHIEF ADMIN OFCR OF THE HOUSE,2016Q3,PERSONNEL COMPENSATION,"","MASSENGALE, DOUG",07/01/16,09/30/16,CHIEF ENGINEER,"32,615.25",FISCAL YEAR 2016,"","","","MASSENGALE, DOUG"
,CHIEF ADMIN OFCR OF THE HOUSE,2016Q3,PERSONNEL COMPENSATION,"","MATADIAL, GLORIA V",07/01/16,08/31/16,SUPERVISOR,"19,984.16",FISCAL YEAR 2016,"","","","MATADIAL, GLORIA V"
,CHIEF ADMIN OFCR OF THE HOUSE,2016Q3,PERSONNEL COMPENSATION,"","MATADIAL, GLORIA V",08/01/16,08/31/16,SUPERVISOR (OTHER COMPENSATION),"2,810.27",FISCAL YEAR 2016,"","","","MATADIAL, GLORIA V"
,CHIEF ADMIN OFCR OF THE HOUSE,2016Q3,PERSONNEL COMPENSATION,"","MATHIS,MARC R",07/01/16,09/30/16,NETWORK TECHNICIAN,"20,591.01",FISCAL YEAR 2016,"","","","MATHIS,MARC R"
,CHIEF ADMIN OFCR OF THE HOUSE,2016Q3,PERSONNEL COMPENSATION,"","MATTHEWS,LEVI S",07/01/16,09/30/16,MANAGER,"24,534.00",FISCAL YEAR 2016,"","","","MATTHEWS,LEVI S"
,CHIEF ADMIN OFCR OF THE HOUSE,2016Q3,PERSONNEL COMPENSATION,"","MAULDIN,EVAN B",07/01/16,09/30/16,FINANCIAL ANALYST,"20,591.01",FISCAL YEAR 2016,"","","","MAULDIN,EVAN B"
,CHIEF ADMIN OFCR OF THE HOUSE,2016Q3,PERSONNEL COMPENSATION,"","MAY,SARITA M",04/01/16,09/30/16,SR TELECOMMUNICATIONS ADMIN,"15,409.38",FISCAL YEAR 2016,"","","","MAY,SARITA M"
,CHIEF ADMIN OFCR OF THE HOUSE,2016Q3,PERSONNEL COMPENSATION,"","MAZZULLO, MICHAEL A",07/01/16,09/30/16,RECEIVING/WAREHOUSE SPEC,"11,972.25",FISCAL YEAR 2016,"","","","MAZZULLO, MICHAEL A"
,CHIEF ADMIN OFCR OF THE HOUSE,2016Q3,PERSONNEL COMPENSATION,"","MCBRIDE-CHAMBERS, LISBETH",07/01/16,09/30/16,SR EA COUNSELOR,"33,131.01",FISCAL YEAR 2016,"","","","MCBRIDE-CHAMBERS, LISBETH"
,CHIEF ADMIN OFCR OF THE HOUSE,2016Q3,PERSONNEL COMPENSATION,"","MCCAULEY, ERICA C",07/01/16,09/30/16,FINANCIAL ANALYST,"18,294.24",FISCAL YEAR 2016,"","","","MCCAULEY, ERICA C"
,CHIEF ADMIN OFCR OF THE HOUSE,2016Q3,PERSONNEL COMPENSATION,"","MCCUE, BRIAN M",07/01/16,09/30/16,FINANCIAL ANALYST,"19,779.24",FISCAL YEAR 2016,"","","","MCCUE, BRIAN M"
,CHIEF ADMIN OFCR OF THE HOUSE,2016Q3,PERSONNEL COMPENSATION,"","MCDONALD, BRADLEY A",07/01/16,09/30/16,"MANAGER, ENTERPRISE APPL SUPP","37,027.26",FISCAL YEAR 2016,"","","","MCDONALD, BRADLEY A"
,CHIEF ADMIN OFCR OF THE HOUSE,2016Q3,PERSONNEL COMPENSATION,"","MCFADDEN, SAINT JUAN",03/01/16,09/30/16,SR PAYROLL & BENS GENERALIST,"21,103.35",FISCAL YEAR 2016,"","","","MCFADDEN, SAINT JUAN"
,CHIEF ADMIN OFCR OF THE HOUSE,2016Q3,PERSONNEL COMPENSATION,"","MCFADDEN,MIRANDA J",07/01/16,09/30/16,BUDGET ANALYST,"24,534.00",FISCAL YEAR 2016,"","","","MCFADDEN,MIRANDA J"
,CHIEF ADMIN OFCR OF THE HOUSE,2016Q3,PERSONNEL COMPENSATION,"","MCGARRY, THOMAS K",07/01/16,09/30/16,JOURNEYMAN FURNITURE SPEC,"21,176.25",FISCAL YEAR 2016,"","","","MCGARRY, THOMAS K"
,CHIEF ADMIN OFCR OF THE HOUSE,2016Q3,PERSONNEL COMPENSATION,"","MCKITTRICK, DAVID E",07/01/16,09/30/16,SR BUSINESS PROCESS APPL SPEC,"38,929.74",FISCAL YEAR 2016,"","","","MCKITTRICK, DAVID E"
,CHIEF ADMIN OFCR OF THE HOUSE,2016Q3,PERSONNEL COMPENSATION,"","MEDINA,LIZ",06/01/16,06/17/16,ADA AIDE (OTHER COMPENSATION),555.82,FISCAL YEAR 2016,"","","","MEDINA,LIZ"
,CHIEF ADMIN OFCR OF THE HOUSE,2016Q3,PERSONNEL COMPENSATION,"","MEISTER, DARLENE T",07/01/16,09/30/16,"DIR, DIVERSITY & ORG CHGE MGT","35,336.09",FISCAL YEAR 2016,"","","","MEISTER, DARLENE T"
,CHIEF ADMIN OFCR OF THE HOUSE,2016Q3,PERSONNEL COMPENSATION,"","MELVIN, MICHAEL C",07/01/16,09/30/16,CONTINUITY TECH SUPP REP,"20,996.25",FISCAL YEAR 2016,"","","","MELVIN, MICHAEL C"
,CHIEF ADMIN OFCR OF THE HOUSE,2016Q3,PERSONNEL COMPENSATION,"","MENDOZA,LYDIA",07/01/16,09/30/16,PAYROLL & BENEFITS GENERALIST,"17,550.51",FISCAL YEAR 2016,"","","","MENDOZA,LYDIA"
,CHIEF ADMIN OFCR OF THE HOUSE,2016Q3,PERSONNEL COMPENSATION,"","MEREDITH, DWAINE",07/01/16,09/30/16,LOGISTICS & DIST SPEC (A),"11,058.51",FISCAL YEAR 2016,"","","","MEREDITH, DWAINE"
,CHIEF ADMIN OFCR OF THE HOUSE,2016Q3,PERSONNEL COMPENSATION,"","METZLER,FRANMARIE",06/01/16,08/22/16,PHOTOGRAPHER/LAB TECH (TEMP),"12,065.29",FISCAL YEAR 2016,"","","","METZLER,FRANMARIE"
,CHIEF ADMIN OFCR OF THE HOUSE,2016Q3,PERSONNEL COMPENSATION,"","MICHALEK, WILLIAM",07/01/16,09/30/16,BILLING ADMINISTRATOR,"17,777.01",FISCAL YEAR 2016,"","","","MICHALEK, WILLIAM"
,CHIEF ADMIN OFCR OF THE HOUSE,2016Q3,PERSONNEL COMPENSATION,"","MILASI, FRANCESCO",07/01/16,09/30/16,SENIOR NETWORK TECHNICIAN (A),"25,644.24",FISCAL YEAR 2016,"","","","MILASI, FRANCESCO"
,CHIEF ADMIN OFCR OF THE HOUSE,2016Q3,PERSONNEL COMPENSATION,"","MILBUT, ANTHONY P",07/01/16,09/30/16,MOBILE COMMUNICATIONS SPECIAL,"27,347.25",FISCAL YEAR 2016,"","","","MILBUT, ANTHONY P"
,CHIEF ADMIN OFCR OF THE HOUSE,2016Q3,PERSONNEL COMPENSATION,"","MILLER JR, LOUIS",07/01/16,09/30/16,PURCHASING AGENT,"14,629.26",FISCAL YEAR 2016,"","","","MILLER JR, LOUIS"
,CHIEF ADMIN OFCR OF THE HOUSE,2016Q3,PERSONNEL COMPENSATION,"","MILLER, KEITH E",07/01/16,09/30/16,BROADCAST PRODUCTION TECHNICIA,"23,803.26",FISCAL YEAR 2016,"","","","MILLER, KEITH E"
,CHIEF ADMIN OFCR OF THE HOUSE,2016Q3,PERSONNEL COMPENSATION,"","MILLER, KEITH E",07/01/16,07/31/16,BROADCAST PRODUCTION TECHNICIA (OVERTIME),34.33,FISCAL YEAR 2016,"","","","MILLER, KEITH E"
,CHIEF ADMIN OFCR OF THE HOUSE,2016Q3,PERSONNEL COMPENSATION,"","MILLER,MICHAEL A",07/01/16,09/30/16,"MANAGER, PROD AND SUPPORT","27,870.75",FISCAL YEAR 2016,"","","","MILLER,MICHAEL A"
,CHIEF ADMIN OFCR OF THE HOUSE,2016Q3,PERSONNEL COMPENSATION,"","MILLER,SHAWN",07/01/16,09/30/16,SR CUSTOMER SOLUTIONS REP,"18,565.74",FISCAL YEAR 2016,"","","","MILLER,SHAWN"
,CHIEF ADMIN OFCR OF THE HOUSE,2016Q3,PERSONNEL COMPENSATION,"","MILLER-LAMILL, ELOISE R",07/01/16,09/30/16,BROADCAST PRODUCTION TECHNICIA,"23,803.26",FISCAL YEAR 2016,"","","","MILLER-LAMILL, ELOISE R"
,CHIEF ADMIN OFCR OF THE HOUSE,2016Q3,PERSONNEL COMPENSATION,"","MILLER-LAMILL, ELOISE R",06/01/16,07/31/16,BROADCAST PRODUCTION TECHNICIA (OVERTIME),"2,483.29",FISCAL YEAR 2016,"","","","MILLER-LAMILL, ELOISE R"
,CHIEF ADMIN OFCR OF THE HOUSE,2016Q3,PERSONNEL COMPENSATION,"","MINOR,LESLIE",07/01/16,09/30/16,FINANCIAL COUNSELOR,"17,550.51",FISCAL YEAR 2016,"","","","MINOR,LESLIE"
,CHIEF ADMIN OFCR OF THE HOUSE,2016Q3,PERSONNEL COMPENSATION,"","MINTON, DONNA",07/01/16,09/30/16,BUSINESS PROC APPLIC SPEC,"29,449.74",FISCAL YEAR 2016,"","","","MINTON, DONNA"
,CHIEF ADMIN OFCR OF THE HOUSE,2016Q3,PERSONNEL COMPENSATION,"","MINTURN, JOHN J",07/01/16,09/30/16,INFO SYSTEMS SECURITY MNGR,"35,126.01",FISCAL YEAR 2016,"","","","MINTURN, JOHN J"
,CHIEF ADMIN OFCR OF THE HOUSE,2016Q3,PERSONNEL COMPENSATION,"","MITTAL, RAHUL V",07/01/16,08/06/16,RISK AND INTERNAL CTRL ANALYST,"9,998.30",FISCAL YEAR 2016,"","","","MITTAL, RAHUL V"
,CHIEF ADMIN OFCR OF THE HOUSE,2016Q3,PERSONNEL COMPENSATION,"","MITTAL, RAHUL V",08/01/16,08/06/16,RISK AND INTERNAL CTRL ANALYST (OTHER COMPENSATION),"3,714.65",FISCAL YEAR 2016,"","","","MITTAL, RAHUL V"
,CHIEF ADMIN OFCR OF THE HOUSE,2016Q3,PERSONNEL COMPENSATION,"","MODICA, MICHAEL",07/01/16,09/30/16,CUSTOMER RELATIONS MANAGER,"33,189.51",FISCAL YEAR 2016,"","","","MODICA, MICHAEL"
,CHIEF ADMIN OFCR OF THE HOUSE,2016Q3,PERSONNEL COMPENSATION,"","MOLL, ANDREW C",07/01/16,09/30/16,SR INTERNET SYSTEMS SPECIALIST,"34,909.74",FISCAL YEAR 2016,"","","","MOLL, ANDREW C"
,CHIEF ADMIN OFCR OF THE HOUSE,2016Q3,PERSONNEL COMPENSATION,"","MOORE II,GARY L",07/01/16,09/30/16,SENIOR NETWORK TECHNICIAN,"21,035.01",FISCAL YEAR 2016,"","","","MOORE II,GARY L"
,CHIEF ADMIN OFCR OF THE HOUSE,2016Q3,PERSONNEL COMPENSATION,"","MOORE, EDWARDA P",07/01/16,09/30/16,FINANCIAL COUNSELOR,"20,996.25",FISCAL YEAR 2016,"","","","MOORE, EDWARDA P"
,CHIEF ADMIN OFCR OF THE HOUSE,2016Q3,PERSONNEL COMPENSATION,"","MORENO,SUZANNA D",07/01/16,08/11/16,PAYROLL & BENEFITS GENERALIST,"7,800.22",FISCAL YEAR 2016,"","","","MORENO,SUZANNA D"
,CHIEF ADMIN OFCR OF THE HOUSE,2016Q3,PERSONNEL COMPENSATION,"","MORETTI, SCOTT A",07/01/16,09/30/16,NETWORK TECHNICIAN,"23,340.00",FISCAL YEAR 2016,"","","","MORETTI, SCOTT A"
,CHIEF ADMIN OFCR OF THE HOUSE,2016Q3,PERSONNEL COMPENSATION,"","MORGAN,CODY R",07/01/16,09/30/16,JOURNEYMAN TEXTILE SPEC,"17,550.51",FISCAL YEAR 2016,"","","","MORGAN,CODY R"
,CHIEF ADMIN OFCR OF THE HOUSE,2016Q3,PERSONNEL COMPENSATION,"","MORRIS,NICOLE C",07/01/16,09/30/16,"BUSINESS MANAGEMENT, MANAGER","35,126.01",FISCAL YEAR 2016,"","","","MORRIS,NICOLE C"
,CHIEF ADMIN OFCR OF THE HOUSE,2016Q3,PERSONNEL COMPENSATION,"","MORRISON,SAMUEL D",07/01/16,09/30/16,JOURNEYMAN TEXTILE SPEC,"13,931.01",FISCAL YEAR 2016,"","","","MORRISON,SAMUEL D"
,CHIEF ADMIN OFCR OF THE HOUSE,2016Q3,PERSONNEL COMPENSATION,"","MORRISON,SAMUEL D",06/01/16,08/31/16,JOURNEYMAN TEXTILE SPEC (OVERTIME),"1,557.31",FISCAL YEAR 2016,"","","","MORRISON,SAMUEL D"
,CHIEF ADMIN OFCR OF THE HOUSE,2016Q3,PERSONNEL COMPENSATION,"","MOSLEY, JOSEPH",07/01/16,09/30/16,TECHNICAL DIRECTOR (A),"25,456.26",FISCAL YEAR 2016,"","","","MOSLEY, JOSEPH"
,CHIEF ADMIN OFCR OF THE HOUSE,2016Q3,PERSONNEL COMPENSATION,"","MOSLEY, JOSEPH",06/01/16,07/31/16,TECHNICAL DIRECTOR (A) (OVERTIME),"1,419.66",FISCAL YEAR 2016,"","","","MOSLEY, JOSEPH"
,CHIEF ADMIN OFCR OF THE HOUSE,2016Q3,PERSONNEL COMPENSATION,"","MOXLEY,STEVEN",07/01/16,09/30/16,SR APPLICATION SECURITY ANALYS,"28,397.01",FISCAL YEAR 2016,"","","","MOXLEY,STEVEN"
,CHIEF ADMIN OFCR OF THE HOUSE,2016Q3,PERSONNEL COMPENSATION,"","MOYA, DAVID L",07/01/16,09/30/16,SYSTEMS ENGINEER,"26,383.74",FISCAL YEAR 2016,"","","","MOYA, DAVID L"
